Workbook

Sheet 作成起動
C2: 《COBOL向けファイルレイアウト作成》 | I2: =TODAY() -> 2017-09-16
D4: ※下記情報を入力後に作成開始して下さい。
B5: お客様名称 | D5: 株式会社つくばＩＴパートナー | M5: １．レベル階層は１０階層まで
B6: システム名称 | D6: サンプルシステム | M6: ２．ＯＣＣＵＲＳは最大５階層まで
B7: サブシステム名称 | D7: サンプルサブシステム | M7: ３．ステップの最後は必ず”．(ピリオド)”で終了していること
B8: ファイル名称 | D8: サンプルファイル | M8: ４．１ステップ最大項目数１０項目まで
B9: コピー句名 | D9: =IF(ISERROR(FIND(".",D16))=TRUE,D16,MID(D16,1,FIND(".",D16)-1)) ->  | M9: ５．原ソース１，０００ステップまで（増幅後も１，０００ステップまで）
B10: 作成日 | M10: ※ソースが1,000ステップを超えた場合は下記で対処すること。
B12: ＰＲＥＦＩＸ | M12: ①「WORK」「増幅」の２シートを必要明細分複写で増やす（1,005行以降に追加）
B14: ソース情報 | M14: ② マクロ「レコード項目定義書作成」のmaxstepのリテラルを必要行数（①で増やした行数分以下）に変更する
D15: =IF(D14="","",LEFT(D14,FIND("/",SUBSTITUTE(D14,"\","/",LEN(D14)-LEN(SUBSTITUTE(D14,"\",""))))-1)) -> 
D16: =IF(D14="","",MID(D14,FIND("/",SUBSTITUTE(D14,"\","/",LEN(D14)-LEN(SUBSTITUTE(D14,"\",""))))+1,LEN(D14)-LEN(D15)-1)) ->  | M16: ※複数０１レベル可
M17: 注）頁設定はＢ４
D24: ※ﾚｺｰﾄﾞ項目定義書の日本語項目名入力後に実行する。
D25: 日本語項目名がない場合はｱｲﾃﾑ名にて作成となる。
E27: 株式会社つくばＩＴパートナー

Sheet レコード項目定義書
B1: お客様名称 | U1: ファイル名 | AZ1: 作成日：
B2: システム名 | U2: レコード名 | AO2: ＲＬ
B3: ｻﾌﾞｼｽﾃﾑ名 | U3: コピー句名 | AO3: PREFIX | BF3: /
B5: レベル番号 | G5: ｱｲﾃﾑ名称 | R5: 項目名称（日本語） | AC5: ﾃｰﾌﾞﾙ 添字 | AF5: ﾀｲﾌﾟ | AH5: 桁数 | AL5: USAGE | AM5: 開始桁 | AP5: 集団 | AS5: 基本 | AV5: OCCURS | AX5: 再定義先 | BC5: 備考
AH6: 整数部 | AJ6: 少数部 | AP6: バイト数 | AS6: バイト数

Sheet LAYOUT
A1: お客様名称 | N1: システム名 | AA1: サブシステム名 | AN1: ファイル名 | BA1: レコード名 | BN1: ＲＬ | BS1: PREFIX | BW1: コピー句名 | CH1: 作成日 | CQ1: 頁
CT2: /
I4: 10 | S4: =I4+10 -> 20 | AC4: =S4+10 -> 30 | AM4: =AC4+10 -> 40 | AW4: =AM4+10 -> 50 | BG4: =AW4+10 -> 60 | BQ4: =BG4+10 -> 70 | CA4: =BQ4+10 -> 80 | CK4: =CA4+10 -> 90 | CU4: =CK4+10 -> 100
A5: 桁 | B5: 1 | C5: 2 | D5: 3 | E5: 4 | F5: 5 | G5: 6 | H5: 7 | I5: 8 | J5: 9 | L5: 1 | M5: 2 | N5: 3 | O5: 4 | P5: 5 | Q5: 6 | R5: 7 | S5: 8 | T5: 9 | V5: 1 | W5: 2 | X5: 3 | Y5: 4 | Z5: 5 | AA5: 6 | AB5: 7 | AC5: 8 | AD5: 9 | AF5: 1 | AG5: 2 | AH5: 3 | AI5: 4 | AJ5: 5 | AK5: 6 | AL5: 7 | AM5: 8 | AN5: 9 | AP5: 1 | AQ5: 2 | AR5: 3 | AS5: 4 | AT5: 5 | AU5: 6 | AV5: 7 | AW5: 8 | AX5: 9 | AZ5: 1 | BA5: 2 | BB5: 3 | BC5: 4 | BD5: 5 | BE5: 6 | BF5: 7 | BG5: 8 | BH5: 9 | BJ5: 1 | BK5: 2 | BL5: 3 | BM5: 4 | BN5: 5 | BO5: 6 | BP5: 7 | BQ5: 8 | BR5: 9 | BT5: 1 | BU5: 2 | BV5: 3 | BW5: 4 | BX5: 5 | BY5: 6 | BZ5: 7 | CA5: 8 | CB5: 9 | CD5: 1 | CE5: 2 | CF5: 3 | CG5: 4 | CH5: 5 | CI5: 6 | CJ5: 7 | CK5: 8 | CL5: 9 | CN5: 1 | CO5: 2 | CP5: 3 | CQ5: 4 | CR5: 5 | CS5: 6 | CT5: 7 | CU5: 8 | CV5: 9
A6: 内 容
A17: 属性
A18: USAGE
A19: byte
I21: =I4+100 -> 110 | S21: =I21+10 -> 120 | AC21: =S21+10 -> 130 | AM21: =AC21+10 -> 140 | AW21: =AM21+10 -> 150 | BG21: =AW21+10 -> 160 | BQ21: =BG21+10 -> 170 | CA21: =BQ21+10 -> 180 | CK21: =CA21+10 -> 190 | CU21: =CK21+10 -> 200
A22: 桁 | B22: 1 | C22: 2 | D22: 3 | E22: 4 | F22: 5 | G22: 6 | H22: 7 | I22: 8 | J22: 9 | L22: 1 | M22: 2 | N22: 3 | O22: 4 | P22: 5 | Q22: 6 | R22: 7 | S22: 8 | T22: 9 | V22: 1 | W22: 2 | X22: 3 | Y22: 4 | Z22: 5 | AA22: 6 | AB22: 7 | AC22: 8 | AD22: 9 | AF22: 1 | AG22: 2 | AH22: 3 | AI22: 4 | AJ22: 5 | AK22: 6 | AL22: 7 | AM22: 8 | AN22: 9 | AP22: 1 | AQ22: 2 | AR22: 3 | AS22: 4 | AT22: 5 | AU22: 6 | AV22: 7 | AW22: 8 | AX22: 9 | AZ22: 1 | BA22: 2 | BB22: 3 | BC22: 4 | BD22: 5 | BE22: 6 | BF22: 7 | BG22: 8 | BH22: 9 | BJ22: 1 | BK22: 2 | BL22: 3 | BM22: 4 | BN22: 5 | BO22: 6 | BP22: 7 | BQ22: 8 | BR22: 9 | BT22: 1 | BU22: 2 | BV22: 3 | BW22: 4 | BX22: 5 | BY22: 6 | BZ22: 7 | CA22: 8 | CB22: 9 | CD22: 1 | CE22: 2 | CF22: 3 | CG22: 4 | CH22: 5 | CI22: 6 | CJ22: 7 | CK22: 8 | CL22: 9 | CN22: 1 | CO22: 2 | CP22: 3 | CQ22: 4 | CR22: 5 | CS22: 6 | CT22: 7 | CU22: 8 | CV22: 9
A23: 内 容
A34: 属性
A35: USAGE
A36: byte
I38: =I21+100 -> 210 | S38: =I38+10 -> 220 | AC38: =S38+10 -> 230 | AM38: =AC38+10 -> 240 | AW38: =AM38+10 -> 250 | BG38: =AW38+10 -> 260 | BQ38: =BG38+10 -> 270 | CA38: =BQ38+10 -> 280 | CK38: =CA38+10 -> 290 | CU38: =CK38+10 -> 300
A39: 桁 | B39: 1 | C39: 2 | D39: 3 | E39: 4 | F39: 5 | G39: 6 | H39: 7 | I39: 8 | J39: 9 | L39: 1 | M39: 2 | N39: 3 | O39: 4 | P39: 5 | Q39: 6 | R39: 7 | S39: 8 | T39: 9 | V39: 1 | W39: 2 | X39: 3 | Y39: 4 | Z39: 5 | AA39: 6 | AB39: 7 | AC39: 8 | AD39: 9 | AF39: 1 | AG39: 2 | AH39: 3 | AI39: 4 | AJ39: 5 | AK39: 6 | AL39: 7 | AM39: 8 | AN39: 9 | AP39: 1 | AQ39: 2 | AR39: 3 | AS39: 4 | AT39: 5 | AU39: 6 | AV39: 7 | AW39: 8 | AX39: 9 | AZ39: 1 | BA39: 2 | BB39: 3 | BC39: 4 | BD39: 5 | BE39: 6 | BF39: 7 | BG39: 8 | BH39: 9 | BJ39: 1 | BK39: 2 | BL39: 3 | BM39: 4 | BN39: 5 | BO39: 6 | BP39: 7 | BQ39: 8 | BR39: 9 | BT39: 1 | BU39: 2 | BV39: 3 | BW39: 4 | BX39: 5 | BY39: 6 | BZ39: 7 | CA39: 8 | CB39: 9 | CD39: 1 | CE39: 2 | CF39: 3 | CG39: 4 | CH39: 5 | CI39: 6 | CJ39: 7 | CK39: 8 | CL39: 9 | CN39: 1 | CO39: 2 | CP39: 3 | CQ39: 4 | CR39: 5 | CS39: 6 | CT39: 7 | CU39: 8 | CV39: 9
A40: 内 容
A51: 属性
A52: USAGE
A53: byte
I55: =I38+100 -> 310 | S55: =I55+10 -> 320 | AC55: =S55+10 -> 330 | AM55: =AC55+10 -> 340 | AW55: =AM55+10 -> 350 | BG55: =AW55+10 -> 360 | BQ55: =BG55+10 -> 370 | CA55: =BQ55+10 -> 380 | CK55: =CA55+10 -> 390 | CU55: =CK55+10 -> 400
A56: 桁 | B56: 1 | C56: 2 | D56: 3 | E56: 4 | F56: 5 | G56: 6 | H56: 7 | I56: 8 | J56: 9 | L56: 1 | M56: 2 | N56: 3 | O56: 4 | P56: 5 | Q56: 6 | R56: 7 | S56: 8 | T56: 9 | V56: 1 | W56: 2 | X56: 3 | Y56: 4 | Z56: 5 | AA56: 6 | AB56: 7 | AC56: 8 | AD56: 9 | AF56: 1 | AG56: 2 | AH56: 3 | AI56: 4 | AJ56: 5 | AK56: 6 | AL56: 7 | AM56: 8 | AN56: 9 | AP56: 1 | AQ56: 2 | AR56: 3 | AS56: 4 | AT56: 5 | AU56: 6 | AV56: 7 | AW56: 8 | AX56: 9 | AZ56: 1 | BA56: 2 | BB56: 3 | BC56: 4 | BD56: 5 | BE56: 6 | BF56: 7 | BG56: 8 | BH56: 9 | BJ56: 1 | BK56: 2 | BL56: 3 | BM56: 4 | BN56: 5 | BO56: 6 | BP56: 7 | BQ56: 8 | BR56: 9 | BT56: 1 | BU56: 2 | BV56: 3 | BW56: 4 | BX56: 5 | BY56: 6 | BZ56: 7 | CA56: 8 | CB56: 9 | CD56: 1 | CE56: 2 | CF56: 3 | CG56: 4 | CH56: 5 | CI56: 6 | CJ56: 7 | CK56: 8 | CL56: 9 | CN56: 1 | CO56: 2 | CP56: 3 | CQ56: 4 | CR56: 5 | CS56: 6 | CT56: 7 | CU56: 8 | CV56: 9
A57: 内 容
A68: 属性
A69: USAGE
A70: byte

Sheet WORK (hidden)
B2: =COUNTA(A:A)+3 -> 4
A3: SOC | B3: 加工 | W3: OCCURS | AH3: ﾚﾍﾞﾙ 階層 | AI3: レベル番号 | AS3: ﾃﾞｰﾀ名 | AT3: PIC | AU3: V | AV3: 整数 | BC3: 少数 | BI3: 合計 桁数 | BJ3: PACK属性 | BM3: 基本 ﾊﾞｲﾄ数 | BN3: 集団 判定 | BO3: 新 PIC | BP3: OCCURS | BQ3: 繰り返し | BV3: REDEFINES | BY3: 集団 | CA3: 基本 | CC3: 集団 | CE3: 基本 | CG3: 日本語項目名 | CI3: 添字 | CJ3: 集団範囲 | CL3: 桁数 | CN3: 増幅行 | CO3: 再定義 | CQ3: 桁チェック | CU3: 被再定義 | CV3: 開始桁
C4: 1 | D4: 2 | E4: 3 | F4: 4 | G4: 5 | H4: 6 | I4: 7 | J4: 8 | K4: 9 | L4: 10 | M4: 1 | N4: 2 | O4: 3 | P4: 4 | Q4: 5 | R4: 6 | S4: 7 | T4: 8 | U4: 9 | V4: 10 | W4: 1 | X4: 2 | Y4: 3 | Z4: 4 | AA4: 5 | AB4: 6 | AC4: 7 | AD4: 8 | AE4: 9 | AF4: 10 | AG4: 回数 | AI4: 1 | AJ4: 2 | AK4: 3 | AL4: 4 | AM4: 5 | AN4: 6 | AO4: 7 | AP4: 8 | AQ4: 9 | AR4: 10 | AV4: 整数 PIC | AW4: ( | AX4: S | AY4: ﾀｲﾌﾟ | AZ4: ｶｯｺ内 桁数 | BA4: ｶｯｺなし 桁数 | BB4: 整数 桁数 | BC4: 少数 PIC | BD4: ( | BE4: ﾀｲﾌﾟ | BF4: ｶｯｺ内 桁数 | BG4: ｶｯｺなし 桁数 | BH4: 少数 桁数 | BJ4: PACKED-DECIMAL | BK4: COMP-3 | BL4: 判定 | BQ4: 集団１ | BR4: 集団２ | BS4: 集団３ | BT4: 集団４ | BU4: 集団５ | BV4: 元項目 | BW4: REDEFINES | BX4: 再定義項目 | BY4: 開始 | BZ4: 桁数 | CA4: 開始 | CB4: 桁数 | CC4: 開始 | CD4: 桁数 | CE4: 開始 | CF4: 桁数 | CG4: *>桁位置 | CH4: 項目名称 | CJ4: 対象 | CK4: 範囲 | CL4: 標準 | CM4: 再定義 | CO4: 一次 | CP4: 二次 | CQ4: 元桁数 | CR4: 再定義桁 | CS4: 相手先桁 | CT4: 結果
B5: =IF(OR(LEFT(TRIM(SUBSTITUTE(A5,"."," ")),1)="*",LEFT(TRIM(SUBSTITUTE(A5,"."," ")),1)="/"),"",TRIM(SUBSTITUTE(A5,"."," "))&" ") ->  | C5: =IF($A5="","",IF(B5=" ",0,IF(ISERROR(SEARCH(" ",B5,1))=TRUE,0,SEARCH(" ",B5,1)))) ->  | D5: =IF($A5="","",IF(C5=0,0,IF(ISERROR(SEARCH(" ",$B5,C5+1))=TRUE,0,SEARCH(" ",$B5,C5+1)))) ->  | M5: =IF($A5="","",IF(C5=0,"",MID(B5,1,C5-1))) ->  | N5: =IF($A5="","",IF(OR(C5=0,D5=0),"",IF(MID(M5,1,2)="*>","",MID($B5,C5+1,D5-C5-1)))) ->  | O5: =IF($A5="","",IF(OR(D5=0,E5=0),"",IF(MID(N5,1,2)="*>","",MID($B5,D5+1,E5-D5-1)))) ->  | AH5: =IF(M5="","",levelgetW()) ->  | BP5: =IF(NEXTCELL("OCCURS",M5:V5)<>"",VALUE(NEXTCELL("OCCURS",M5:V5)),"") ->  | BQ5: =IF(AND(BQ4="",BP5=""),"",IF(AND(BQ4<>"",$AH5>BQ4),BQ4,IF($BP5<>"",$AH5,""))) ->  | BR5: =IF(AND(BR4="",BP5=""),"",IF(AND(BR4<>"",$AH5>BR4),BR4,IF(AND($BP5<>"",$AH5<>BQ5),$AH5,""))) ->  | BS5: =IF(AND(BS4="",BP5=""),"",IF(AND(BS4<>"",$AH5>BS4),BS4,IF(AND($BP5<>"",$AH5<>BQ5,$AH5<>BR5),$AH5,""))) ->  | BT5: =IF(AND(BT4="",BP5=""),"",IF(AND(BT4<>"",$AH5>BT4),BT4,IF(AND($BP5<>"",$AH5<>BQ5,$AH5<>BR5,$AH5<>BS5),$AH5,""))) ->  | BU5: =IF(AND(BU4="",BP5=""),"",IF(AND(BU4<>"",$AH5>BU4),BU4,IF(AND($BP5<>"",$AH5<>BQ5,$AH5<>BR5,$AH5<>BS5,$AH5<>BT5),$AH5,""))) -> 
B6: =IF(OR(LEFT(TRIM(SUBSTITUTE(A6,"."," ")),1) = "*",LEFT(TRIM(SUBSTITUTE(A6,"."," ")),1) = "/"),"",TRIM(SUBSTITUTE(A6,"."," "))&" ") ->  | AH6: =IF(M6="","",levelgetW()) ->  | BP6: =IF(NEXTCELL("OCCURS",M6:V6)<>"",VALUE(NEXTCELL("OCCURS",M6:V6)),"") ->  | BQ6: =IF(AND(BQ5="",BP6=""),"",IF(AND(BQ5<>"",$AH6>BQ5),BQ5,IF($BP6<>"",$AH6,""))) ->  | BS6: =IF(AND(BS5="",BP6=""),"",IF(AND(BS5<>"",$AH6>BS5),BS5,IF(AND($BP6<>"",$AH6<>BQ6,$AH6<>BR6),$AH6,""))) ->  | BT6: =IF(AND(BT5="",BP6=""),"",IF(AND(BT5<>"",$AH6>BT5),BT5,IF(AND($BP6<>"",$AH6<>BQ6,$AH6<>BR6,$AH6<>BS6),$AH6,""))) ->  | BU6: =IF(AND(BU5="",BP6=""),"",IF(AND(BU5<>"",$AH6>BU5),BU5,IF(AND($BP6<>"",$AH6<>BQ6,$AH6<>BR6,$AH6<>BS6,$AH6<>BT6),$AH6,""))) -> 
AH7: =IF(M7="","",levelgetW()) ->  | BP7: =IF(NEXTCELL("OCCURS",M7:V7)<>"",VALUE(NEXTCELL("OCCURS",M7:V7)),"") ->  | BQ7: =IF(AND(BQ6="",BP7=""),"",IF(AND(BQ6<>"",$AH7>BQ6),BQ6,IF($BP7<>"",$AH7,""))) ->  | BS7: =IF(AND(BS6="",BP7=""),"",IF(AND(BS6<>"",$AH7>BS6),BS6,IF(AND($BP7<>"",$AH7<>BQ7,$AH7<>BR7),$AH7,""))) ->  | BT7: =IF(AND(BT6="",BP7=""),"",IF(AND(BT6<>"",$AH7>BT6),BT6,IF(AND($BP7<>"",$AH7<>BQ7,$AH7<>BR7,$AH7<>BS7),$AH7,""))) ->  | BU7: =IF(AND(BU6="",BP7=""),"",IF(AND(BU6<>"",$AH7>BU6),BU6,IF(AND($BP7<>"",$AH7<>BQ7,$AH7<>BR7,$AH7<>BS7,$AH7<>BT7),$AH7,""))) -> 
AH8: =IF(M8="","",levelgetW()) ->  | BP8: =IF(NEXTCELL("OCCURS",M8:V8)<>"",VALUE(NEXTCELL("OCCURS",M8:V8)),"") -> 
AH9: =IF(M9="","",levelgetW()) ->  | BP9: =IF(NEXTCELL("OCCURS",M9:V9)<>"",VALUE(NEXTCELL("OCCURS",M9:V9)),"") -> 
AH10: =IF(M10="","",levelgetW()) ->  | BP10: =IF(NEXTCELL("OCCURS",M10:V10)<>"",VALUE(NEXTCELL("OCCURS",M10:V10)),"") -> 
AH11: =IF(M11="","",levelgetW()) ->  | BP11: =IF(NEXTCELL("OCCURS",M11:V11)<>"",VALUE(NEXTCELL("OCCURS",M11:V11)),"") -> 
AH12: =IF(M12="","",levelgetW()) ->  | BP12: =IF(NEXTCELL("OCCURS",M12:V12)<>"",VALUE(NEXTCELL("OCCURS",M12:V12)),"") ->  | BR12: =IF(AND(BR11="",BP12=""),"",IF(AND(BR11<>"",$AH12>BR11),BR11,IF(AND($BP12<>"",$AH12<>BQ12),$AH12,""))) -> 
AH13: =IF(M13="","",levelgetW()) ->  | BP13: =IF(NEXTCELL("OCCURS",M13:V13)<>"",VALUE(NEXTCELL("OCCURS",M13:V13)),"") -> 
AH14: =IF(M14="","",levelgetW()) ->  | BP14: =IF(NEXTCELL("OCCURS",M14:V14)<>"",VALUE(NEXTCELL("OCCURS",M14:V14)),"") -> 
AH15: =IF(M15="","",levelgetW()) ->  | BP15: =IF(NEXTCELL("OCCURS",M15:V15)<>"",VALUE(NEXTCELL("OCCURS",M15:V15)),"") -> 
AH16: =IF(M16="","",levelgetW()) ->  | BP16: =IF(NEXTCELL("OCCURS",M16:V16)<>"",VALUE(NEXTCELL("OCCURS",M16:V16)),"") -> 
AH17: =IF(M17="","",levelgetW()) ->  | BP17: =IF(NEXTCELL("OCCURS",M17:V17)<>"",VALUE(NEXTCELL("OCCURS",M17:V17)),"") -> 
AH18: =IF(M18="","",levelgetW()) -> 
AH19: =IF(M19="","",levelgetW()) -> 
AH20: =IF(M20="","",levelgetW()) -> 
D21: =IF($A21="","",IF(C21=0,0,IF(ISERROR(SEARCH(" ",$B21,C21+1))=TRUE,0,SEARCH(" ",$B21,C21+1)))) ->  | O21: =IF($A21="","",IF(OR(D21=0,E21=0),"",IF(MID(N21,1,2)="*>","",MID($B21,D21+1,E21-D21-1)))) ->  | AH21: =IF(M21="","",levelgetW()) -> 
N22: =IF($A22="","",IF(OR(C22=0,D22=0),"",IF(MID(M22,1,2)="*>","",MID($B22,C22+1,D22-C22-1)))) ->  | AH22: =IF(M22="","",levelgetW()) -> 
AH23: =IF(M23="","",levelgetW()) -> 
AH24: =IF(M24="","",levelgetW()) -> 
AH25: =IF(M25="","",levelgetW()) -> 
AH26: =IF(M26="","",levelgetW()) -> 
AH27: =IF(M27="","",levelgetW()) -> 
AH28: =IF(M28="","",levelgetW()) -> 
AH29: =IF(M29="","",levelgetW()) -> 
AH30: =IF(M30="","",levelgetW()) -> 
AH31: =IF(M31="","",levelgetW()) -> 
AH32: =IF(M32="","",levelgetW()) -> 
AH33: =IF(M33="","",levelgetW()) -> 
AH34: =IF(M34="","",levelgetW()) -> 
AH35: =IF(M35="","",levelgetW()) -> 
AH36: =IF(M36="","",levelgetW()) -> 
D37: =IF($A37="","",IF(C37=0,0,IF(ISERROR(SEARCH(" ",$B37,C37+1))=TRUE,0,SEARCH(" ",$B37,C37+1)))) ->  | AH37: =IF(M37="","",levelgetW()) -> 
N38: =IF($A38="","",IF(OR(C38=0,D38=0),"",IF(MID(M38,1,2)="*>","",MID($B38,C38+1,D38-C38-1)))) ->  | AH38: =IF(M38="","",levelgetW()) -> 
AH39: =IF(M39="","",levelgetW()) -> 
AH40: =IF(M40="","",levelgetW()) -> 
AH41: =IF(M41="","",levelgetW()) -> 
AH42: =IF(M42="","",levelgetW()) -> 
AH43: =IF(M43="","",levelgetW()) -> 
AH44: =IF(M44="","",levelgetW()) -> 
AH45: =IF(M45="","",levelgetW()) -> 
AH46: =IF(M46="","",levelgetW()) -> 
AH47: =IF(M47="","",levelgetW()) -> 
AH48: =IF(M48="","",levelgetW()) -> 
AH49: =IF(M49="","",levelgetW()) -> 
AH50: =IF(M50="","",levelgetW()) -> 
AH51: =IF(M51="","",levelgetW()) -> 
AH52: =IF(M52="","",levelgetW()) -> 
D53: =IF($A53="","",IF(C53=0,0,IF(ISERROR(SEARCH(" ",$B53,C53+1))=TRUE,0,SEARCH(" ",$B53,C53+1)))) ->  | AH53: =IF(M53="","",levelgetW()) -> 
N54: =IF($A54="","",IF(OR(C54=0,D54=0),"",IF(MID(M54,1,2)="*>","",MID($B54,C54+1,D54-C54-1)))) ->  | AH54: =IF(M54="","",levelgetW()) -> 
AH55: =IF(M55="","",levelgetW()) -> 
AH56: =IF(M56="","",levelgetW()) -> 
AH57: =IF(M57="","",levelgetW()) -> 
AH58: =IF(M58="","",levelgetW()) -> 
AH59: =IF(M59="","",levelgetW()) -> 
AH60: =IF(M60="","",levelgetW()) -> 
AH61: =IF(M61="","",levelgetW()) -> 
AH62: =IF(M62="","",levelgetW()) -> 
AH63: =IF(M63="","",levelgetW()) -> 
AH64: =IF(M64="","",levelgetW()) -> 
AH65: =IF(M65="","",levelgetW()) -> 
AH66: =IF(M66="","",levelgetW()) -> 
AH67: =IF(M67="","",levelgetW()) -> 
R68: =IF($A68="","",IF(OR(G68=0,H68=0),"",IF(MID(Q68,1,2)="*>","",MID($B68,G68+1,H68-G68-1)))) ->  | AH68: =IF(M68="","",levelgetW()) -> 
C69: =IF($A69="","",IF(B69=" ",0,IF(ISERROR(SEARCH(" ",B69,1))=TRUE,0,SEARCH(" ",B69,1)))) ->  | D69: =IF($A69="","",IF(C69=0,0,IF(ISERROR(SEARCH(" ",$B69,C69+1))=TRUE,0,SEARCH(" ",$B69,C69+1)))) ->  | M69: =IF($A69="","",IF(C69=0,"",MID(B69,1,C69-1))) ->  | AH69: =IF(M69="","",levelgetW()) ->  | BP69: =IF(NEXTCELL("OCCURS",M69:V69)<>"",VALUE(NEXTCELL("OCCURS",M69:V69)),"") -> 
B70: =IF(OR(LEFT(TRIM(SUBSTITUTE(A70,"."," ")),1) = "*",LEFT(TRIM(SUBSTITUTE(A70,"."," ")),1) = "/"),"",TRIM(SUBSTITUTE(A70,"."," "))&" ") ->  | N70: =IF($A70="","",IF(OR(C70=0,D70=0),"",IF(MID(M70,1,2)="*>","",MID($B70,C70+1,D70-C70-1)))) ->  | AH70: =IF(M70="","",levelgetW()) -> 
AH71: =IF(M71="","",levelgetW()) ->  | BQ71: =IF(AND(BQ70="",BP71=""),"",IF(AND(BQ70<>"",$AH71>BQ70),BQ70,IF($BP71<>"",$AH71,""))) ->  | BR71: =IF(AND(BR70="",BP71=""),"",IF(AND(BR70<>"",$AH71>BR70),BR70,IF(AND($BP71<>"",$AH71<>BQ71),$AH71,""))) ->  | BS71: =IF(AND(BS70="",BP71=""),"",IF(AND(BS70<>"",$AH71>BS70),BS70,IF(AND($BP71<>"",$AH71<>BQ71,$AH71<>BR71),$AH71,""))) ->  | BT71: =IF(AND(BT70="",BP71=""),"",IF(AND(BT70<>"",$AH71>BT70),BT70,IF(AND($BP71<>"",$AH71<>BQ71,$AH71<>BR71,$AH71<>BS71),$AH71,""))) ->  | BU71: =IF(AND(BU70="",BP71=""),"",IF(AND(BU70<>"",$AH71>BU70),BU70,IF(AND($BP71<>"",$AH71<>BQ71,$AH71<>BR71,$AH71<>BS71,$AH71<>BT71),$AH71,""))) -> 
AH72: =IF(M72="","",levelgetW()) -> 
AH73: =IF(M73="","",levelgetW()) -> 
AH74: =IF(M74="","",levelgetW()) -> 
AH75: =IF(M75="","",levelgetW()) -> 
AH76: =IF(M76="","",levelgetW()) -> 
AH77: =IF(M77="","",levelgetW()) -> 
AH78: =IF(M78="","",levelgetW()) -> 
AH79: =IF(M79="","",levelgetW()) -> 
AH80: =IF(M80="","",levelgetW()) -> 
AH81: =IF(M81="","",levelgetW()) -> 
AH82: =IF(M82="","",levelgetW()) -> 
AH83: =IF(M83="","",levelgetW()) -> 
AH84: =IF(M84="","",levelgetW()) -> 
D85: =IF($A85="","",IF(C85=0,0,IF(ISERROR(SEARCH(" ",$B85,C85+1))=TRUE,0,SEARCH(" ",$B85,C85+1)))) ->  | AH85: =IF(M85="","",levelgetW()) -> 
N86: =IF($A86="","",IF(OR(C86=0,D86=0),"",IF(MID(M86,1,2)="*>","",MID($B86,C86+1,D86-C86-1)))) ->  | AH86: =IF(M86="","",levelgetW()) -> 
AH87: =IF(M87="","",levelgetW()) -> 
AH88: =IF(M88="","",levelgetW()) -> 
AH89: =IF(M89="","",levelgetW()) -> 
AH90: =IF(M90="","",levelgetW()) -> 
AH91: =IF(M91="","",levelgetW()) -> 
R92: =IF($A92="","",IF(OR(G92=0,H92=0),"",IF(MID(Q92,1,2)="*>","",MID($B92,G92+1,H92-G92-1)))) ->  | AH92: =IF(M92="","",levelgetW()) -> 
AH93: =IF(M93="","",levelgetW()) -> 
AH94: =IF(M94="","",levelgetW()) -> 
AH95: =IF(M95="","",levelgetW()) -> 
AH96: =IF(M96="","",levelgetW()) -> 
AH97: =IF(M97="","",levelgetW()) -> 
AH98: =IF(M98="","",levelgetW()) -> 
AH99: =IF(M99="","",levelgetW()) -> 
AH100: =IF(M100="","",levelgetW()) -> 
D101: =IF($A101="","",IF(C101=0,0,IF(ISERROR(SEARCH(" ",$B101,C101+1))=TRUE,0,SEARCH(" ",$B101,C101+1)))) ->  | AH101: =IF(M101="","",levelgetW()) -> 
N102: =IF($A102="","",IF(OR(C102=0,D102=0),"",IF(MID(M102,1,2)="*>","",MID($B102,C102+1,D102-C102-1)))) ->  | AH102: =IF(M102="","",levelgetW()) -> 
AH103: =IF(M103="","",levelgetW()) -> 
AH104: =IF(M104="","",levelgetW()) -> 
AH105: =IF(M105="","",levelgetW()) -> 
AH106: =IF(M106="","",levelgetW()) -> 
AH107: =IF(M107="","",levelgetW()) -> 
AH108: =IF(M108="","",levelgetW()) -> 
AH109: =IF(M109="","",levelgetW()) -> 
AH110: =IF(M110="","",levelgetW()) -> 
AH111: =IF(M111="","",levelgetW()) -> 
AH112: =IF(M112="","",levelgetW()) -> 
AH113: =IF(M113="","",levelgetW()) -> 
AH114: =IF(M114="","",levelgetW()) -> 
AH115: =IF(M115="","",levelgetW()) -> 
AH116: =IF(M116="","",levelgetW()) -> 
D117: =IF($A117="","",IF(C117=0,0,IF(ISERROR(SEARCH(" ",$B117,C117+1))=TRUE,0,SEARCH(" ",$B117,C117+1)))) ->  | AH117: =IF(M117="","",levelgetW()) -> 
N118: =IF($A118="","",IF(OR(C118=0,D118=0),"",IF(MID(M118,1,2)="*>","",MID($B118,C118+1,D118-C118-1)))) ->  | AH118: =IF(M118="","",levelgetW()) -> 
AH119: =IF(M119="","",levelgetW()) -> 
AH120: =IF(M120="","",levelgetW()) -> 
AH121: =IF(M121="","",levelgetW()) -> 
AH122: =IF(M122="","",levelgetW()) -> 
AH123: =IF(M123="","",levelgetW()) -> 
AH124: =IF(M124="","",levelgetW()) -> 
AH125: =IF(M125="","",levelgetW()) -> 
AH126: =IF(M126="","",levelgetW()) -> 
AH127: =IF(M127="","",levelgetW()) -> 
AH128: =IF(M128="","",levelgetW()) -> 
AH129: =IF(M129="","",levelgetW()) -> 
AH130: =IF(M130="","",levelgetW()) -> 
AH131: =IF(M131="","",levelgetW()) -> 
AH132: =IF(M132="","",levelgetW()) -> 
C133: =IF($A133="","",IF(B133=" ",0,IF(ISERROR(SEARCH(" ",B133,1))=TRUE,0,SEARCH(" ",B133,1)))) ->  | D133: =IF($A133="","",IF(C133=0,0,IF(ISERROR(SEARCH(" ",$B133,C133+1))=TRUE,0,SEARCH(" ",$B133,C133+1)))) ->  | M133: =IF($A133="","",IF(C133=0,"",MID(B133,1,C133-1))) ->  | AH133: =IF(M133="","",levelgetW()) ->  | BP133: =IF(NEXTCELL("OCCURS",M133:V133)<>"",VALUE(NEXTCELL("OCCURS",M133:V133)),"") -> 
B134: =IF(OR(LEFT(TRIM(SUBSTITUTE(A134,"."," ")),1) = "*",LEFT(TRIM(SUBSTITUTE(A134,"."," ")),1) = "/"),"",TRIM(SUBSTITUTE(A134,"."," "))&" ") ->  | N134: =IF($A134="","",IF(OR(C134=0,D134=0),"",IF(MID(M134,1,2)="*>","",MID($B134,C134+1,D134-C134-1)))) ->  | AH134: =IF(M134="","",levelgetW()) -> 
AH135: =IF(M135="","",levelgetW()) ->  | BQ135: =IF(AND(BQ134="",BP135=""),"",IF(AND(BQ134<>"",$AH135>BQ134),BQ134,IF($BP135<>"",$AH135,""))) ->  | BR135: =IF(AND(BR134="",BP135=""),"",IF(AND(BR134<>"",$AH135>BR134),BR134,IF(AND($BP135<>"",$AH135<>BQ135),$AH135,""))) ->  | BS135: =IF(AND(BS134="",BP135=""),"",IF(AND(BS134<>"",$AH135>BS134),BS134,IF(AND($BP135<>"",$AH135<>BQ135,$AH135<>BR135),$AH135,""))) ->  | BT135: =IF(AND(BT134="",BP135=""),"",IF(AND(BT134<>"",$AH135>BT134),BT134,IF(AND($BP135<>"",$AH135<>BQ135,$AH135<>BR135,$AH135<>BS135),$AH135,""))) ->  | BU135: =IF(AND(BU134="",BP135=""),"",IF(AND(BU134<>"",$AH135>BU134),BU134,IF(AND($BP135<>"",$AH135<>BQ135,$AH135<>BR135,$AH135<>BS135,$AH135<>BT135),$AH135,""))) -> 
AH136: =IF(M136="","",levelgetW()) -> 
AH137: =IF(M137="","",levelgetW()) -> 
AH138: =IF(M138="","",levelgetW()) -> 
AH139: =IF(M139="","",levelgetW()) -> 
AH140: =IF(M140="","",levelgetW()) -> 
AH141: =IF(M141="","",levelgetW()) -> 
AH142: =IF(M142="","",levelgetW()) -> 
AH143: =IF(M143="","",levelgetW()) -> 
AH144: =IF(M144="","",levelgetW()) -> 
AH145: =IF(M145="","",levelgetW()) -> 
AH146: =IF(M146="","",levelgetW()) -> 
AH147: =IF(M147="","",levelgetW()) -> 
AH148: =IF(M148="","",levelgetW()) -> 
D149: =IF($A149="","",IF(C149=0,0,IF(ISERROR(SEARCH(" ",$B149,C149+1))=TRUE,0,SEARCH(" ",$B149,C149+1)))) ->  | AH149: =IF(M149="","",levelgetW()) -> 
N150: =IF($A150="","",IF(OR(C150=0,D150=0),"",IF(MID(M150,1,2)="*>","",MID($B150,C150+1,D150-C150-1)))) ->  | AH150: =IF(M150="","",levelgetW()) -> 
AH151: =IF(M151="","",levelgetW()) -> 
AH152: =IF(M152="","",levelgetW()) -> 
AH153: =IF(M153="","",levelgetW()) -> 
AH154: =IF(M154="","",levelgetW()) -> 
AH155: =IF(M155="","",levelgetW()) -> 
AH156: =IF(M156="","",levelgetW()) -> 
AH157: =IF(M157="","",levelgetW()) -> 
AH158: =IF(M158="","",levelgetW()) -> 
AH159: =IF(M159="","",levelgetW()) -> 
AH160: =IF(M160="","",levelgetW()) -> 
AH161: =IF(M161="","",levelgetW()) -> 
AH162: =IF(M162="","",levelgetW()) -> 
AH163: =IF(M163="","",levelgetW()) -> 
AH164: =IF(M164="","",levelgetW()) -> 
D165: =IF($A165="","",IF(C165=0,0,IF(ISERROR(SEARCH(" ",$B165,C165+1))=TRUE,0,SEARCH(" ",$B165,C165+1)))) ->  | AH165: =IF(M165="","",levelgetW()) -> 
N166: =IF($A166="","",IF(OR(C166=0,D166=0),"",IF(MID(M166,1,2)="*>","",MID($B166,C166+1,D166-C166-1)))) ->  | AH166: =IF(M166="","",levelgetW()) -> 
AH167: =IF(M167="","",levelgetW()) -> 
AH168: =IF(M168="","",levelgetW()) -> 
AH169: =IF(M169="","",levelgetW()) -> 
AH170: =IF(M170="","",levelgetW()) -> 
AH171: =IF(M171="","",levelgetW()) -> 
AH172: =IF(M172="","",levelgetW()) -> 
AH173: =IF(M173="","",levelgetW()) -> 
AH174: =IF(M174="","",levelgetW()) -> 
AH175: =IF(M175="","",levelgetW()) -> 
AH176: =IF(M176="","",levelgetW()) -> 
AH177: =IF(M177="","",levelgetW()) -> 
AH178: =IF(M178="","",levelgetW()) -> 
AH179: =IF(M179="","",levelgetW()) -> 
AH180: =IF(M180="","",levelgetW()) -> 
D181: =IF($A181="","",IF(C181=0,0,IF(ISERROR(SEARCH(" ",$B181,C181+1))=TRUE,0,SEARCH(" ",$B181,C181+1)))) ->  | AH181: =IF(M181="","",levelgetW()) -> 
N182: =IF($A182="","",IF(OR(C182=0,D182=0),"",IF(MID(M182,1,2)="*>","",MID($B182,C182+1,D182-C182-1)))) ->  | AH182: =IF(M182="","",levelgetW()) -> 
AH183: =IF(M183="","",levelgetW()) -> 
AH184: =IF(M184="","",levelgetW()) -> 
AH185: =IF(M185="","",levelgetW()) -> 
AH186: =IF(M186="","",levelgetW()) -> 
AH187: =IF(M187="","",levelgetW()) -> 
AH188: =IF(M188="","",levelgetW()) -> 
AH189: =IF(M189="","",levelgetW()) -> 
AH190: =IF(M190="","",levelgetW()) -> 
AH191: =IF(M191="","",levelgetW()) -> 
AH192: =IF(M192="","",levelgetW()) -> 
AH193: =IF(M193="","",levelgetW()) -> 
AH194: =IF(M194="","",levelgetW()) -> 
AH195: =IF(M195="","",levelgetW()) -> 
AH196: =IF(M196="","",levelgetW()) -> 
C197: =IF($A197="","",IF(B197=" ",0,IF(ISERROR(SEARCH(" ",B197,1))=TRUE,0,SEARCH(" ",B197,1)))) ->  | D197: =IF($A197="","",IF(C197=0,0,IF(ISERROR(SEARCH(" ",$B197,C197+1))=TRUE,0,SEARCH(" ",$B197,C197+1)))) ->  | M197: =IF($A197="","",IF(C197=0,"",MID(B197,1,C197-1))) ->  | AH197: =IF(M197="","",levelgetW()) ->  | BP197: =IF(NEXTCELL("OCCURS",M197:V197)<>"",VALUE(NEXTCELL("OCCURS",M197:V197)),"") -> 
B198: =IF(OR(LEFT(TRIM(SUBSTITUTE(A198,"."," ")),1) = "*",LEFT(TRIM(SUBSTITUTE(A198,"."," ")),1) = "/"),"",TRIM(SUBSTITUTE(A198,"."," "))&" ") ->  | N198: =IF($A198="","",IF(OR(C198=0,D198=0),"",IF(MID(M198,1,2)="*>","",MID($B198,C198+1,D198-C198-1)))) ->  | AH198: =IF(M198="","",levelgetW()) -> 
AH199: =IF(M199="","",levelgetW()) ->  | BQ199: =IF(AND(BQ198="",BP199=""),"",IF(AND(BQ198<>"",$AH199>BQ198),BQ198,IF($BP199<>"",$AH199,""))) ->  | BR199: =IF(AND(BR198="",BP199=""),"",IF(AND(BR198<>"",$AH199>BR198),BR198,IF(AND($BP199<>"",$AH199<>BQ199),$AH199,""))) ->  | BS199: =IF(AND(BS198="",BP199=""),"",IF(AND(BS198<>"",$AH199>BS198),BS198,IF(AND($BP199<>"",$AH199<>BQ199,$AH199<>BR199),$AH199,""))) ->  | BT199: =IF(AND(BT198="",BP199=""),"",IF(AND(BT198<>"",$AH199>BT198),BT198,IF(AND($BP199<>"",$AH199<>BQ199,$AH199<>BR199,$AH199<>BS199),$AH199,""))) ->  | BU199: =IF(AND(BU198="",BP199=""),"",IF(AND(BU198<>"",$AH199>BU198),BU198,IF(AND($BP199<>"",$AH199<>BQ199,$AH199<>BR199,$AH199<>BS199,$AH199<>BT199),$AH199,""))) -> 
AH200: =IF(M200="","",levelgetW()) -> 
AH201: =IF(M201="","",levelgetW()) -> 
... 803 more rows

Sheet 増幅 (hidden)
B1: 2 | C1: 3 | D1: 4 | E1: 5 | F1: 6 | G1: 7 | H1: 8 | I1: 9 | J1: 10 | K1: 11 | L1: 12 | M1: 13 | N1: 14 | O1: 15 | P1: 16 | Q1: 17 | R1: 18 | S1: 19 | T1: 20 | U1: 21 | V1: 22 | W1: 23 | X1: 24 | Y1: 25 | Z1: 26 | AA1: 27 | AB1: 28 | AC1: 29 | AD1: 30 | AE1: 31 | AF1: 32 | AG1: 33 | AH1: 34 | AI1: 35 | AJ1: 36 | AK1: 37 | AL1: 38 | AM1: 39 | AN1: 40 | AO1: 41 | AP1: 42 | AQ1: 43 | AR1: 44 | AS1: 45 | AT1: 46 | AU1: 47 | AV1: 48 | AW1: 49 | AX1: 50 | AY1: 51 | AZ1: 52 | BA1: 53 | BB1: 54 | BC1: 55 | BD1: 56 | BE1: 57 | BF1: 58 | BG1: 59 | BH1: 60 | BI1: 61 | BJ1: 62 | BK1: 63 | BL1: 64 | BM1: 65 | BN1: 66 | BO1: 67 | BP1: 68 | BQ1: 69 | BR1: 70 | BS1: 71 | BT1: 72 | BU1: 73 | BV1: 74 | BW1: 75 | BX1: 76 | BY1: 77 | BZ1: 78 | CA1: 79 | CB1: 80 | CC1: 81 | CD1: 82 | CE1: 83 | CF1: 84 | CG1: 85 | CH1: 86 | CI1: 87 | CJ1: 88 | CK1: 89 | CL1: 90 | CM1: 91 | CN1: 92 | CO1: 93 | CP1: 94 | CQ1: 95 | CR1: 96 | CS1: 97 | CT1: 98 | CU1: 99 | CV1: 100
B2: =COUNTA(A:A)+3 -> 4 | CC2: 再定義
A3: SOC | B3: 加工 | W3: OCCURS | AH3: ﾚﾍﾞﾙ 階層 | AI3: レベル番号 | AS3: ﾃﾞｰﾀ名 | AT3: PIC | AU3: V | AV3: 整数 | BC3: 少数 | BI3: 合計 桁数 | BJ3: PACK属性 | BM3: 基本 ﾊﾞｲﾄ数 | BN3: 集団 判定 | BO3: 新 PIC | BP3: OCCURS | BQ3: 繰り返し | BV3: REDEFINES | BY3: 集団 | CA3: 基本 | CC3: 集団 | CE3: 基本 | CG3: 日本語項目名 | CQ3: 桁チェック | CU3: 被再定義 | CV3: 開始桁
C4: 1 | D4: 2 | E4: 3 | F4: 4 | G4: 5 | H4: 6 | I4: 7 | J4: 8 | K4: 9 | L4: 10 | M4: 1 | N4: 2 | O4: 3 | P4: 4 | Q4: 5 | R4: 6 | S4: 7 | T4: 8 | U4: 9 | V4: 10 | W4: 1 | X4: 2 | Y4: 3 | Z4: 4 | AA4: 5 | AB4: 6 | AC4: 7 | AD4: 8 | AE4: 9 | AF4: 10 | AG4: 回数 | AI4: 1 | AJ4: 2 | AK4: 3 | AL4: 4 | AM4: 5 | AN4: 6 | AO4: 7 | AP4: 8 | AQ4: 9 | AR4: 10 | AV4: 整数 PIC | AW4: ( | AX4: S | AY4: ﾀｲﾌﾟ | AZ4: ｶｯｺ内 桁数 | BA4: ｶｯｺなし 桁数 | BB4: 整数 桁数 | BC4: 少数 PIC | BD4: ( | BE4: ﾀｲﾌﾟ | BF4: ｶｯｺ内 桁数 | BG4: ｶｯｺなし 桁数 | BH4: 少数 桁数 | BJ4: PACKED-DECIMAL | BK4: COMP-3 | BL4: 判定 | BQ4: 集団１ | BR4: 集団２ | BS4: 集団３ | BT4: 集団４ | BU4: 集団５ | BV4: 元項目 | BW4: REDEFINES | BX4: 再定義項目 | BY4: 開始 | BZ4: 桁数 | CA4: 開始 | CB4: 桁数 | CC4: 開始 | CD4: 桁数 | CE4: 開始 | CF4: 桁数 | CG4: *>桁位置 | CH4: 項目名称 | CQ4: 元桁数 | CR4: 再定義桁 | CS4: 相手先桁 | CT4: 結果
B5: =IF(OR(LEFT(TRIM(SUBSTITUTE(A5,"."," ")),1) = "*",LEFT(TRIM(SUBSTITUTE(A5,"."," ")),1) = "/"),"",TRIM(SUBSTITUTE(A5,"."," "))&" ") ->  | C5: =IF($A5="","",IF(B5=" ",0,IF(ISERROR(SEARCH(" ",B5,1))=TRUE,0,SEARCH(" ",B5,1)))) ->  | D5: =IF($A5="","",IF(C5=0,0,IF(ISERROR(SEARCH(" ",$B5,C5+1))=TRUE,0,SEARCH(" ",$B5,C5+1)))) ->  | M5: =IF($A5="","",IF(C5=0,"",MID(B5,1,C5-1))) ->  | N5: =IF($A5="","",IF(OR(C5=0,D5=0),"",IF(MID(M5,1,2)="*>","",MID($B5,C5+1,D5-C5-1)))) ->  | O5: =IF($A5="","",IF(OR(D5=0,E5=0),"",IF(MID(N5,1,2)="*>","",MID($B5,D5+1,E5-D5-1)))) ->  | P5: =IF($A5="","",IF(OR(E5=0,F5=0),"",IF(MID(O5,1,2)="*>","",MID($B5,E5+1,F5-E5-1)))) ->  | Q5: =IF($A5="","",IF(OR(F5=0,G5=0),"",IF(MID(P5,1,2)="*>","",MID($B5,F5+1,G5-F5-1)))) ->  | R5: =IF($A5="","",IF(OR(G5=0,H5=0),"",IF(MID(Q5,1,2)="*>","",MID($B5,G5+1,H5-G5-1)))) ->  | S5: =IF($A5="","",IF(OR(H5=0,I5=0),"",IF(MID(R5,1,2)="*>","",MID($B5,H5+1,I5-H5-1)))) ->  | T5: =IF($A5="","",IF(OR(I5=0,J5=0),"",IF(MID(S5,1,2)="*>","",MID($B5,I5+1,J5-I5-1)))) ->  | U5: =IF($A5="","",IF(OR(J5=0,K5=0),"",IF(MID(T5,1,2)="*>","",MID($B5,J5+1,K5-J5-1)))) ->  | V5: =IF($A5="","",IF(OR(K5=0,L5=0),"",IF(MID(U5,1,2)="*>","",MID($B5,K5+1,L5-K5-1)))) ->  | AH5: =IF(M5="","",levelget()) ->  | AI5: =IF($AH5<>AI$4,"",$M5) ->  | AJ5: =IF($AH5<>AJ$4,"",$M5) ->  | AS5: =IF(N5<>"",TRIM(N5)&CI5,"") ->  | AT5: =NEXTCELL(AT$3,M5:V5) ->  | AU5: =IF(ISERROR(SEARCH("V",$AT5,1))=TRUE,"",SEARCH("V",$AT5,1)) ->  | AV5: =IF(AU5="",AT5,MID(AT5,1,AU5-1)) ->  | AW5: =IF(ISERROR(SEARCH(AW$4,$AV5,1))=TRUE,"",SEARCH(AW$4,$AV5,1)) ->  | AX5: =IF(MID(AV5,1,1)="S","S","") ->  | AY5: =IF(AX5="S","9",MID(AV5,1,1)) ->  | AZ5: =IF($AT5="","",IF(AW5="","",VALUE(MID(AV5,AW5+1,SEARCH(")",AV5,1)-AW5-1)))) ->  | BA5: =IF($AT5="","",IF(AZ5<>"","",IF(AX5="",VALUE(LEN(AV5)),VALUE(LEN(AV5)-1)))) ->  | BB5: =IF($AT5="","",SUM(AZ5:BA5)) ->  | BC5: =IF(AU5="","",MID(AT5,AU5+1,LEN(AT5)-AU5)) ->  | BD5: =IF(ISERROR(SEARCH(BD$4,$BC5,1))=TRUE,"",SEARCH(BD$4,$BC5,1)) ->  | BE5: =MID(BC5,1,1) ->  | BF5: =IF($AT5="","",IF(BD5="","",VALUE(MID(BC5,BD5+1,SEARCH(")",BC5,1)-BD5-1)))) ->  | BG5: =IF(OR($AT5="",BC5="",BF5<>""),"",VALUE(LEN(BC5))) ->  | BH5: =IF($BC5="","",SUM(BF5:BG5)) ->  | BI5: =IF($AT5="","",SUM(BB5,BH5)) ->  | BJ5: =IF(ISERROR(HLOOKUP(BJ$4,M5:V5,1,FALSE))=TRUE,"","P") ->  | BK5: =IF(ISERROR(HLOOKUP(BK$4,N5:AI5,1,FALSE))=TRUE,"","C") ->  | BL5: =IF(OR(BJ5<>"",BK5<>""),"P","") ->  | BM5: =IF(BI5=0,0,IF(AY5="N",BI5*2,IF(BL5<>"",ROUNDUP((BI5+1)/2,0),BI5))) ->  | BN5: =IF(A5="","",IF(AT5="","集団","")) ->  | BO5: =IF(A5="","",NewPic()) ->  | BP5: =IF(NEXTCELL("OCCURS",M5:V5)<>"",VALUE(NEXTCELL("OCCURS",M5:V5)),"") ->  | BQ5: =IF(AND(BQ4="",BP5=""),"",IF(AND(BQ4<>"",$AH5>BQ4),BQ4,IF($BP5<>"",$AH5,""))) ->  | BR5: =IF(AND(BR4="",BP5=""),"",IF(AND(BR4<>"",$AH5>BR4),BR4,IF(AND($BP5<>"",$AH5<>BQ5),$AH5,""))) ->  | BS5: =IF(AND(BS4="",BP5=""),"",IF(AND(BS4<>"",$AH5>BS4),BS4,IF(AND($BP5<>"",$AH5<>BQ5,$AH5<>BR5),$AH5,""))) ->  | BT5: =IF(AND(BT4="",BP5=""),"",IF(AND(BT4<>"",$AH5>BT4),BT4,IF(AND($BP5<>"",$AH5<>BQ5,$AH5<>BR5,$AH5<>BS5),$AH5,""))) ->  | BU5: =IF(AND(BU4="",BP5=""),"",IF(AND(BU4<>"",$AH5>BU4),BU4,IF(AND($BP5<>"",$AH5<>BQ5,$AH5<>BR5,$AH5<>BS5,$AH5<>BT5),$AH5,""))) ->  | BV5: =IF(ISERROR(VLOOKUP(AS5,$BW6:$BW10000,1,FALSE))=TRUE,"",VLOOKUP(AS5,$BW6:$BW10000,1,FALSE)) ->  | BW5: =IF(NEXTCELL(BW$4,M5:V5)="","",NEXTCELL(BW$4,M5:V5)&CI5) ->  | BX5: =IF(AND(BV5="",BW5="",BX4=""),"",IF(BW5<>"",IF(AND(BX4<>"",AH5>BX4),BX4,AH5),IF(AND(BX4<>"",AH5>BX4),BX4,""))) ->  | BY5: =IF(OR(BN5="",BX5<>""),"",CA5) ->  | BZ5: =IF(BY5="","",groupketa()) ->  | CA5: =IF(BX5<>"","",IF(AH5=1,1,IF(A5<>"",IF(CA4<>"",SUM(CA4,CB4),SUM(CE4,CF4)),""))) ->  | CB5: =IF(AND(A5<>"",BX5="",BN5=""),BM5,"") ->  | CC5: =IF(AND(BN5<>"",CE5<>""),CE5,"") ->  | CD5: =IF(CC5="","",groupketa()) ->  | CE5: =IF(BX5="","",IF(BW5<>"",VLOOKUP(BW5,$BV4:$CV$6,27,FALSE),SUM(CE4,CF4))) ->  | CF5: =IF(AND(A5<>"",BX5<>"",BN5=""),BM5,"") ->  | CH5: =TRIM(MID(getcell("*>",M5:V5),3,30)) ->  | CQ5: =IF(BZ5<>"",BZ5,IF(CB5<>"",CB5,IF(CD5<>"",CD5,IF(CF5<>"",CF5,"")))) ->  | CR5: =IF(BW5<>"",IF(CD5<>"",CD5,CF5),"") ->  | CS5: =IF(BW5<>"",VLOOKUP(BW5,$BV$5:$CQ$5,22,FALSE),"") ->  | CT5: =IF(CR5<>CS5,"×","") ->  | CU5: =IF(BV5<>"",AH5,"") ->  | CV5: =IF(CA5<>"",CA5,CE5) -> 
D6: =IF($A6="","",IF(C6=0,0,IF(ISERROR(SEARCH(" ",$B6,C6+1))=TRUE,0,SEARCH(" ",$B6,C6+1)))) ->  | AJ6: =IF($AH6<>AJ$4,"",$M6) ->  | AT6: =NEXTCELL(AT$3,M6:V6) ->  | BO6: =IF(A6="","",NewPic()) ->  | BP6: =IF(NEXTCELL("OCCURS",M6:V6)<>"",VALUE(NEXTCELL("OCCURS",M6:V6)),"") ->  | BV6: =IF(ISERROR(VLOOKUP(AS6,$BW7:$BW10000,1,FALSE))=TRUE,"",VLOOKUP(AS6,$BW7:$BW10000,1,FALSE)) ->  | BW6: =IF(NEXTCELL(BW$4,M6:V6)="","",NEXTCELL(BW$4,M6:V6)&CI6) ->  | BY6: =IF(OR(BN6="",BX6<>""),"",CA6) ->  | BZ6: =IF(BY6="","",groupketa()) ->  | CA6: =IF(BX6<>"","",IF(AH6=1,1,IF(A6<>"",IF(CA5<>"",SUM(CA5,CB5),SUM(CE5,CF5)),""))) ->  | CB6: =IF(AND(A6<>"",BX6="",BN6=""),BM6,"") ->  | CC6: =IF(AND(BN6<>"",CE6<>""),CE6,"") ->  | CD6: =IF(CC6="","",groupketa()) ->  | CE6: =IF(BX6="","",IF(BW6<>"",VLOOKUP(BW6,$BV5:$CV$6,27,FALSE),SUM(CE5,CF5))) ->  | CH6: =TRIM(MID(getcell("*>",M6:V6),3,30)) ->  | CS6: =IF(BW6<>"",VLOOKUP(BW6,$BV$5:$CQ5,22,FALSE),"") ->  | CU6: =IF(BV6<>"",AH6,IF(AH6>CU5,CU5,"")) -> 
D7: =IF($A7="","",IF(C7=0,0,IF(ISERROR(SEARCH(" ",$B7,C7+1))=TRUE,0,SEARCH(" ",$B7,C7+1)))) ->  | AT7: =NEXTCELL(AT$3,M7:V7) ->  | BO7: =IF(A7="","",NewPic()) ->  | BP7: =IF(NEXTCELL("OCCURS",M7:V7)<>"",VALUE(NEXTCELL("OCCURS",M7:V7)),"") ->  | BV7: =IF(ISERROR(VLOOKUP(AS7,$BW8:$BW10000,1,FALSE))=TRUE,"",VLOOKUP(AS7,$BW8:$BW10000,1,FALSE)) ->  | BW7: =IF(NEXTCELL(BW$4,M7:V7)="","",NEXTCELL(BW$4,M7:V7)&CI7) ->  | BZ7: =IF(BY7="","",groupketa()) ->  | CD7: =IF(CC7="","",groupketa()) ->  | CE7: =IF(BX7="","",IF(BW7<>"",VLOOKUP(BW7,$BV6:$CV$6,27,FALSE),SUM(CE6,CF6))) ->  | CS7: =IF(BW7<>"",VLOOKUP(BW7,$BV$5:$CQ6,22,FALSE),"") -> 
D8: =IF($A8="","",IF(C8=0,0,IF(ISERROR(SEARCH(" ",$B8,C8+1))=TRUE,0,SEARCH(" ",$B8,C8+1)))) ->  | G8: =IF($A8="","",IF(F8=0,0,IF(ISERROR(SEARCH(" ",$B8,F8+1))=TRUE,0,SEARCH(" ",$B8,F8+1)))) ->  | P8: =IF($A8="","",IF(OR(E8=0,F8=0),"",IF(MID(O8,1,2)="*>","",MID($B8,E8+1,F8-E8-1)))) ->  | AT8: =NEXTCELL(AT$3,M8:V8) ->  | BO8: =IF(A8="","",NewPic()) ->  | BP8: =IF(NEXTCELL("OCCURS",M8:V8)<>"",VALUE(NEXTCELL("OCCURS",M8:V8)),"") ->  | BV8: =IF(ISERROR(VLOOKUP(AS8,$BW9:$BW10000,1,FALSE))=TRUE,"",VLOOKUP(AS8,$BW9:$BW10000,1,FALSE)) ->  | BW8: =IF(NEXTCELL(BW$4,M8:V8)="","",NEXTCELL(BW$4,M8:V8)&CI8) ->  | BZ8: =IF(BY8="","",groupketa()) ->  | CD8: =IF(CC8="","",groupketa()) ->  | CE8: =IF(BX8="","",IF(BW8<>"",VLOOKUP(BW8,$BV$6:$CV7,27,FALSE),SUM(CE7,CF7))) ->  | CS8: =IF(BW8<>"",VLOOKUP(BW8,$BV$5:$CQ7,22,FALSE),"") -> 
D9: =IF($A9="","",IF(C9=0,0,IF(ISERROR(SEARCH(" ",$B9,C9+1))=TRUE,0,SEARCH(" ",$B9,C9+1)))) ->  | AT9: =NEXTCELL(AT$3,M9:V9) ->  | BO9: =IF(A9="","",NewPic()) ->  | BP9: =IF(NEXTCELL("OCCURS",M9:V9)<>"",VALUE(NEXTCELL("OCCURS",M9:V9)),"") ->  | BV9: =IF(ISERROR(VLOOKUP(AS9,$BW10:$BW10000,1,FALSE))=TRUE,"",VLOOKUP(AS9,$BW10:$BW10000,1,FALSE)) ->  | BW9: =IF(NEXTCELL(BW$4,M9:V9)="","",NEXTCELL(BW$4,M9:V9)&CI9) ->  | BZ9: =IF(BY9="","",groupketa()) ->  | CD9: =IF(CC9="","",groupketa()) ->  | CE9: =IF(BX9="","",IF(BW9<>"",VLOOKUP(BW9,$BV$6:$CV8,27,FALSE),SUM(CE8,CF8))) ->  | CS9: =IF(BW9<>"",VLOOKUP(BW9,$BV$5:$CQ8,22,FALSE),"") -> 
D10: =IF($A10="","",IF(C10=0,0,IF(ISERROR(SEARCH(" ",$B10,C10+1))=TRUE,0,SEARCH(" ",$B10,C10+1)))) ->  | AT10: =NEXTCELL(AT$3,M10:V10) ->  | BO10: =IF(A10="","",NewPic()) ->  | BP10: =IF(NEXTCELL("OCCURS",M10:V10)<>"",VALUE(NEXTCELL("OCCURS",M10:V10)),"") ->  | BV10: =IF(ISERROR(VLOOKUP(AS10,$BW11:$BW10000,1,FALSE))=TRUE,"",VLOOKUP(AS10,$BW11:$BW10000,1,FALSE)) ->  | BW10: =IF(NEXTCELL(BW$4,M10:V10)="","",NEXTCELL(BW$4,M10:V10)&CI10) ->  | BZ10: =IF(BY10="","",groupketa()) ->  | CD10: =IF(CC10="","",groupketa()) ->  | CE10: =IF(BX10="","",IF(BW10<>"",VLOOKUP(BW10,$BV$6:$CV9,27,FALSE),SUM(CE9,CF9))) ->  | CS10: =IF(BW10<>"",VLOOKUP(BW10,$BV$5:$CQ9,22,FALSE),"") -> 
D11: =IF($A11="","",IF(C11=0,0,IF(ISERROR(SEARCH(" ",$B11,C11+1))=TRUE,0,SEARCH(" ",$B11,C11+1)))) ->  | AT11: =NEXTCELL(AT$3,M11:V11) ->  | BO11: =IF(A11="","",NewPic()) ->  | BP11: =IF(NEXTCELL("OCCURS",M11:V11)<>"",VALUE(NEXTCELL("OCCURS",M11:V11)),"") ->  | BV11: =IF(ISERROR(VLOOKUP(AS11,$BW12:$BW10000,1,FALSE))=TRUE,"",VLOOKUP(AS11,$BW12:$BW10000,1,FALSE)) ->  | BW11: =IF(NEXTCELL(BW$4,M11:V11)="","",NEXTCELL(BW$4,M11:V11)&CI11) ->  | BZ11: =IF(BY11="","",groupketa()) ->  | CD11: =IF(CC11="","",groupketa()) ->  | CE11: =IF(BX11="","",IF(BW11<>"",VLOOKUP(BW11,$BV$6:$CV10,27,FALSE),SUM(CE10,CF10))) ->  | CS11: =IF(BW11<>"",VLOOKUP(BW11,$BV$5:$CQ10,22,FALSE),"") -> 
D12: =IF($A12="","",IF(C12=0,0,IF(ISERROR(SEARCH(" ",$B12,C12+1))=TRUE,0,SEARCH(" ",$B12,C12+1)))) ->  | AT12: =NEXTCELL(AT$3,M12:V12) ->  | BO12: =IF(A12="","",NewPic()) ->  | BP12: =IF(NEXTCELL("OCCURS",M12:V12)<>"",VALUE(NEXTCELL("OCCURS",M12:V12)),"") ->  | BV12: =IF(ISERROR(VLOOKUP(AS12,$BW13:$BW10000,1,FALSE))=TRUE,"",VLOOKUP(AS12,$BW13:$BW10000,1,FALSE)) ->  | BW12: =IF(NEXTCELL(BW$4,M12:V12)="","",NEXTCELL(BW$4,M12:V12)&CI12) ->  | BZ12: =IF(BY12="","",groupketa()) ->  | CD12: =IF(CC12="","",groupketa()) ->  | CE12: =IF(BX12="","",IF(BW12<>"",VLOOKUP(BW12,$BV$6:$CV11,27,FALSE),SUM(CE11,CF11))) ->  | CS12: =IF(BW12<>"",VLOOKUP(BW12,$BV$5:$CQ11,22,FALSE),"") ->  | CV12: =IF(CA12<>"",CA12,CE12) -> 
D13: =IF($A13="","",IF(C13=0,0,IF(ISERROR(SEARCH(" ",$B13,C13+1))=TRUE,0,SEARCH(" ",$B13,C13+1)))) ->  | G13: =IF($A13="","",IF(F13=0,0,IF(ISERROR(SEARCH(" ",$B13,F13+1))=TRUE,0,SEARCH(" ",$B13,F13+1)))) ->  | P13: =IF($A13="","",IF(OR(E13=0,F13=0),"",IF(MID(O13,1,2)="*>","",MID($B13,E13+1,F13-E13-1)))) ->  | AT13: =NEXTCELL(AT$3,M13:V13) ->  | BO13: =IF(A13="","",NewPic()) ->  | BP13: =IF(NEXTCELL("OCCURS",M13:V13)<>"",VALUE(NEXTCELL("OCCURS",M13:V13)),"") ->  | BV13: =IF(ISERROR(VLOOKUP(AS13,$BW14:$BW10000,1,FALSE))=TRUE,"",VLOOKUP(AS13,$BW14:$BW10000,1,FALSE)) ->  | BW13: =IF(NEXTCELL(BW$4,M13:V13)="","",NEXTCELL(BW$4,M13:V13)&CI13) ->  | BZ13: =IF(BY13="","",groupketa()) ->  | CD13: =IF(CC13="","",groupketa()) ->  | CE13: =IF(BX13="","",IF(BW13<>"",VLOOKUP(BW13,$BV$6:$CV12,27,FALSE),SUM(CE12,CF12))) ->  | CS13: =IF(BW13<>"",VLOOKUP(BW13,$BV$5:$CQ12,22,FALSE),"") -> 
D14: =IF($A14="","",IF(C14=0,0,IF(ISERROR(SEARCH(" ",$B14,C14+1))=TRUE,0,SEARCH(" ",$B14,C14+1)))) ->  | P14: =IF($A14="","",IF(OR(E14=0,F14=0),"",IF(MID(O14,1,2)="*>","",MID($B14,E14+1,F14-E14-1)))) ->  | AT14: =NEXTCELL(AT$3,M14:V14) ->  | BO14: =IF(A14="","",NewPic()) ->  | BP14: =IF(NEXTCELL("OCCURS",M14:V14)<>"",VALUE(NEXTCELL("OCCURS",M14:V14)),"") ->  | BV14: =IF(ISERROR(VLOOKUP(AS14,$BW15:$BW10000,1,FALSE))=TRUE,"",VLOOKUP(AS14,$BW15:$BW10000,1,FALSE)) ->  | BW14: =IF(NEXTCELL(BW$4,M14:V14)="","",NEXTCELL(BW$4,M14:V14)&CI14) ->  | BZ14: =IF(BY14="","",groupketa()) ->  | CD14: =IF(CC14="","",groupketa()) ->  | CE14: =IF(BX14="","",IF(BW14<>"",VLOOKUP(BW14,$BV$6:$CV13,27,FALSE),SUM(CE13,CF13))) ->  | CS14: =IF(BW14<>"",VLOOKUP(BW14,$BV$5:$CQ13,22,FALSE),"") -> 
D15: =IF($A15="","",IF(C15=0,0,IF(ISERROR(SEARCH(" ",$B15,C15+1))=TRUE,0,SEARCH(" ",$B15,C15+1)))) ->  | P15: =IF($A15="","",IF(OR(E15=0,F15=0),"",IF(MID(O15,1,2)="*>","",MID($B15,E15+1,F15-E15-1)))) ->  | AI15: =IF($AH15<>AI$4,"",$M15) ->  | AT15: =NEXTCELL(AT$3,M15:V15) ->  | BO15: =IF(A15="","",NewPic()) ->  | BP15: =IF(NEXTCELL("OCCURS",M15:V15)<>"",VALUE(NEXTCELL("OCCURS",M15:V15)),"") ->  | BV15: =IF(ISERROR(VLOOKUP(AS15,$BW16:$BW10000,1,FALSE))=TRUE,"",VLOOKUP(AS15,$BW16:$BW10000,1,FALSE)) ->  | BW15: =IF(NEXTCELL(BW$4,M15:V15)="","",NEXTCELL(BW$4,M15:V15)&CI15) ->  | BZ15: =IF(BY15="","",groupketa()) ->  | CD15: =IF(CC15="","",groupketa()) ->  | CE15: =IF(BX15="","",IF(BW15<>"",VLOOKUP(BW15,$BV$6:$CV14,27,FALSE),SUM(CE14,CF14))) ->  | CS15: =IF(BW15<>"",VLOOKUP(BW15,$BV$5:$CQ14,22,FALSE),"") -> 
D16: =IF($A16="","",IF(C16=0,0,IF(ISERROR(SEARCH(" ",$B16,C16+1))=TRUE,0,SEARCH(" ",$B16,C16+1)))) ->  | P16: =IF($A16="","",IF(OR(E16=0,F16=0),"",IF(MID(O16,1,2)="*>","",MID($B16,E16+1,F16-E16-1)))) ->  | BO16: =IF(A16="","",NewPic()) ->  | BP16: =IF(NEXTCELL("OCCURS",M16:V16)<>"",VALUE(NEXTCELL("OCCURS",M16:V16)),"") ->  | BV16: =IF(ISERROR(VLOOKUP(AS16,$BW17:$BW10000,1,FALSE))=TRUE,"",VLOOKUP(AS16,$BW17:$BW10000,1,FALSE)) ->  | BW16: =IF(NEXTCELL(BW$4,M16:V16)="","",NEXTCELL(BW$4,M16:V16)&CI16) ->  | BZ16: =IF(BY16="","",groupketa()) ->  | CD16: =IF(CC16="","",groupketa()) ->  | CE16: =IF(BX16="","",IF(BW16<>"",VLOOKUP(BW16,$BV$6:$CV15,27,FALSE),SUM(CE15,CF15))) ->  | CS16: =IF(BW16<>"",VLOOKUP(BW16,$BV$5:$CQ15,22,FALSE),"") -> 
D17: =IF($A17="","",IF(C17=0,0,IF(ISERROR(SEARCH(" ",$B17,C17+1))=TRUE,0,SEARCH(" ",$B17,C17+1)))) ->  | BO17: =IF(A17="","",NewPic()) ->  | BP17: =IF(NEXTCELL("OCCURS",M17:V17)<>"",VALUE(NEXTCELL("OCCURS",M17:V17)),"") ->  | BV17: =IF(ISERROR(VLOOKUP(AS17,$BW18:$BW10000,1,FALSE))=TRUE,"",VLOOKUP(AS17,$BW18:$BW10000,1,FALSE)) ->  | BW17: =IF(NEXTCELL(BW$4,M17:V17)="","",NEXTCELL(BW$4,M17:V17)&CI17) ->  | BZ17: =IF(BY17="","",groupketa()) ->  | CD17: =IF(CC17="","",groupketa()) ->  | CE17: =IF(BX17="","",IF(BW17<>"",VLOOKUP(BW17,$BV$6:$CV16,27,FALSE),SUM(CE16,CF16))) ->  | CS17: =IF(BW17<>"",VLOOKUP(BW17,$BV$5:$CQ16,22,FALSE),"") -> 
D18: =IF($A18="","",IF(C18=0,0,IF(ISERROR(SEARCH(" ",$B18,C18+1))=TRUE,0,SEARCH(" ",$B18,C18+1)))) ->  | BO18: =IF(A18="","",NewPic()) ->  | BP18: =IF(NEXTCELL("OCCURS",M18:V18)<>"",VALUE(NEXTCELL("OCCURS",M18:V18)),"") ->  | BV18: =IF(ISERROR(VLOOKUP(AS18,$BW19:$BW10000,1,FALSE))=TRUE,"",VLOOKUP(AS18,$BW19:$BW10000,1,FALSE)) ->  | BW18: =IF(NEXTCELL(BW$4,M18:V18)="","",NEXTCELL(BW$4,M18:V18)&CI18) ->  | BZ18: =IF(BY18="","",groupketa()) ->  | CD18: =IF(CC18="","",groupketa()) ->  | CE18: =IF(BX18="","",IF(BW18<>"",VLOOKUP(BW18,$BV$6:$CV17,27,FALSE),SUM(CE17,CF17))) ->  | CS18: =IF(BW18<>"",VLOOKUP(BW18,$BV$5:$CQ17,22,FALSE),"") -> 
D19: =IF($A19="","",IF(C19=0,0,IF(ISERROR(SEARCH(" ",$B19,C19+1))=TRUE,0,SEARCH(" ",$B19,C19+1)))) ->  | BO19: =IF(A19="","",NewPic()) ->  | BP19: =IF(NEXTCELL("OCCURS",M19:V19)<>"",VALUE(NEXTCELL("OCCURS",M19:V19)),"") ->  | BV19: =IF(ISERROR(VLOOKUP(AS19,$BW20:$BW10000,1,FALSE))=TRUE,"",VLOOKUP(AS19,$BW20:$BW10000,1,FALSE)) ->  | BW19: =IF(NEXTCELL(BW$4,M19:V19)="","",NEXTCELL(BW$4,M19:V19)&CI19) ->  | BZ19: =IF(BY19="","",groupketa()) ->  | CD19: =IF(CC19="","",groupketa()) ->  | CE19: =IF(BX19="","",IF(BW19<>"",VLOOKUP(BW19,$BV$6:$CV18,27,FALSE),SUM(CE18,CF18))) ->  | CS19: =IF(BW19<>"",VLOOKUP(BW19,$BV$5:$CQ18,22,FALSE),"") -> 
D20: =IF($A20="","",IF(C20=0,0,IF(ISERROR(SEARCH(" ",$B20,C20+1))=TRUE,0,SEARCH(" ",$B20,C20+1)))) ->  | BO20: =IF(A20="","",NewPic()) ->  | BP20: =IF(NEXTCELL("OCCURS",M20:V20)<>"",VALUE(NEXTCELL("OCCURS",M20:V20)),"") ->  | BV20: =IF(ISERROR(VLOOKUP(AS20,$BW21:$BW10000,1,FALSE))=TRUE,"",VLOOKUP(AS20,$BW21:$BW10000,1,FALSE)) ->  | BW20: =IF(NEXTCELL(BW$4,M20:V20)="","",NEXTCELL(BW$4,M20:V20)&CI20) ->  | BZ20: =IF(BY20="","",groupketa()) ->  | CD20: =IF(CC20="","",groupketa()) ->  | CE20: =IF(BX20="","",IF(BW20<>"",VLOOKUP(BW20,$BV$6:$CV19,27,FALSE),SUM(CE19,CF19))) ->  | CS20: =IF(BW20<>"",VLOOKUP(BW20,$BV$5:$CQ19,22,FALSE),"") -> 
D21: =IF($A21="","",IF(C21=0,0,IF(ISERROR(SEARCH(" ",$B21,C21+1))=TRUE,0,SEARCH(" ",$B21,C21+1)))) ->  | BO21: =IF(A21="","",NewPic()) ->  | BP21: =IF(NEXTCELL("OCCURS",M21:V21)<>"",VALUE(NEXTCELL("OCCURS",M21:V21)),"") ->  | BV21: =IF(ISERROR(VLOOKUP(AS21,$BW22:$BW10000,1,FALSE))=TRUE,"",VLOOKUP(AS21,$BW22:$BW10000,1,FALSE)) ->  | BW21: =IF(NEXTCELL(BW$4,M21:V21)="","",NEXTCELL(BW$4,M21:V21)&CI21) ->  | BZ21: =IF(BY21="","",groupketa()) ->  | CD21: =IF(CC21="","",groupketa()) ->  | CE21: =IF(BX21="","",IF(BW21<>"",VLOOKUP(BW21,$BV$6:$CV20,27,FALSE),SUM(CE20,CF20))) ->  | CF21: =IF(AND(A21<>"",BX21<>"",BN21=""),BM21,"") ->  | CS21: =IF(BW21<>"",VLOOKUP(BW21,$BV$5:$CQ20,22,FALSE),"") -> 
D22: =IF($A22="","",IF(C22=0,0,IF(ISERROR(SEARCH(" ",$B22,C22+1))=TRUE,0,SEARCH(" ",$B22,C22+1)))) ->  | BO22: =IF(A22="","",NewPic()) ->  | BP22: =IF(NEXTCELL("OCCURS",M22:V22)<>"",VALUE(NEXTCELL("OCCURS",M22:V22)),"") ->  | BV22: =IF(ISERROR(VLOOKUP(AS22,$BW23:$BW10000,1,FALSE))=TRUE,"",VLOOKUP(AS22,$BW23:$BW10000,1,FALSE)) ->  | BW22: =IF(NEXTCELL(BW$4,M22:V22)="","",NEXTCELL(BW$4,M22:V22)&CI22) ->  | BZ22: =IF(BY22="","",groupketa()) ->  | CD22: =IF(CC22="","",groupketa()) ->  | CE22: =IF(BX22="","",IF(BW22<>"",VLOOKUP(BW22,$BV$6:$CV21,27,FALSE),SUM(CE21,CF21))) ->  | CS22: =IF(BW22<>"",VLOOKUP(BW22,$BV$5:$CQ21,22,FALSE),"") -> 
D23: =IF($A23="","",IF(C23=0,0,IF(ISERROR(SEARCH(" ",$B23,C23+1))=TRUE,0,SEARCH(" ",$B23,C23+1)))) ->  | BO23: =IF(A23="","",NewPic()) ->  | BP23: =IF(NEXTCELL("OCCURS",M23:V23)<>"",VALUE(NEXTCELL("OCCURS",M23:V23)),"") ->  | BV23: =IF(ISERROR(VLOOKUP(AS23,$BW24:$BW10000,1,FALSE))=TRUE,"",VLOOKUP(AS23,$BW24:$BW10000,1,FALSE)) ->  | BW23: =IF(NEXTCELL(BW$4,M23:V23)="","",NEXTCELL(BW$4,M23:V23)&CI23) ->  | BY23: =IF(OR(BN23="",BX23<>""),"",CA23) ->  | BZ23: =IF(BY23="","",groupketa()) ->  | CD23: =IF(CC23="","",groupketa()) ->  | CE23: =IF(BX23="","",IF(BW23<>"",VLOOKUP(BW23,$BV$6:$CV22,27,FALSE),SUM(CE22,CF22))) ->  | CS23: =IF(BW23<>"",VLOOKUP(BW23,$BV$5:$CQ22,22,FALSE),"") -> 
D24: =IF($A24="","",IF(C24=0,0,IF(ISERROR(SEARCH(" ",$B24,C24+1))=TRUE,0,SEARCH(" ",$B24,C24+1)))) ->  | BO24: =IF(A24="","",NewPic()) ->  | BP24: =IF(NEXTCELL("OCCURS",M24:V24)<>"",VALUE(NEXTCELL("OCCURS",M24:V24)),"") ->  | BV24: =IF(ISERROR(VLOOKUP(AS24,$BW25:$BW10000,1,FALSE))=TRUE,"",VLOOKUP(AS24,$BW25:$BW10000,1,FALSE)) ->  | BW24: =IF(NEXTCELL(BW$4,M24:V24)="","",NEXTCELL(BW$4,M24:V24)&CI24) ->  | BY24: =IF(OR(BN24="",BX24<>""),"",CA24) ->  | BZ24: =IF(BY24="","",groupketa()) ->  | CD24: =IF(CC24="","",groupketa()) ->  | CE24: =IF(BX24="","",IF(BW24<>"",VLOOKUP(BW24,$BV$6:$CV23,27,FALSE),SUM(CE23,CF23))) ->  | CS24: =IF(BW24<>"",VLOOKUP(BW24,$BV$5:$CQ23,22,FALSE),"") -> 
D25: =IF($A25="","",IF(C25=0,0,IF(ISERROR(SEARCH(" ",$B25,C25+1))=TRUE,0,SEARCH(" ",$B25,C25+1)))) ->  | AI25: =IF($AH25<>AI$4,"",$M25) ->  | AT25: =NEXTCELL(AT$3,M25:V25) ->  | BO25: =IF(A25="","",NewPic()) ->  | BP25: =IF(NEXTCELL("OCCURS",M25:V25)<>"",VALUE(NEXTCELL("OCCURS",M25:V25)),"") ->  | BV25: =IF(ISERROR(VLOOKUP(AS25,$BW26:$BW10000,1,FALSE))=TRUE,"",VLOOKUP(AS25,$BW26:$BW10000,1,FALSE)) ->  | BW25: =IF(NEXTCELL(BW$4,M25:V25)="","",NEXTCELL(BW$4,M25:V25)&CI25) ->  | BZ25: =IF(BY25="","",groupketa()) ->  | CD25: =IF(CC25="","",groupketa()) ->  | CE25: =IF(BX25="","",IF(BW25<>"",VLOOKUP(BW25,$BV$6:$CV24,27,FALSE),SUM(CE24,CF24))) ->  | CS25: =IF(BW25<>"",VLOOKUP(BW25,$BV$5:$CQ24,22,FALSE),"") -> 
D26: =IF($A26="","",IF(C26=0,0,IF(ISERROR(SEARCH(" ",$B26,C26+1))=TRUE,0,SEARCH(" ",$B26,C26+1)))) ->  | BO26: =IF(A26="","",NewPic()) ->  | BP26: =IF(NEXTCELL("OCCURS",M26:V26)<>"",VALUE(NEXTCELL("OCCURS",M26:V26)),"") ->  | BV26: =IF(ISERROR(VLOOKUP(AS26,$BW27:$BW10000,1,FALSE))=TRUE,"",VLOOKUP(AS26,$BW27:$BW10000,1,FALSE)) ->  | BW26: =IF(NEXTCELL(BW$4,M26:V26)="","",NEXTCELL(BW$4,M26:V26)&CI26) ->  | BZ26: =IF(BY26="","",groupketa()) ->  | CD26: =IF(CC26="","",groupketa()) ->  | CE26: =IF(BX26="","",IF(BW26<>"",VLOOKUP(BW26,$BV$6:$CV25,27,FALSE),SUM(CE25,CF25))) ->  | CS26: =IF(BW26<>"",VLOOKUP(BW26,$BV$5:$CQ25,22,FALSE),"") -> 
D27: =IF($A27="","",IF(C27=0,0,IF(ISERROR(SEARCH(" ",$B27,C27+1))=TRUE,0,SEARCH(" ",$B27,C27+1)))) ->  | BO27: =IF(A27="","",NewPic()) ->  | BP27: =IF(NEXTCELL("OCCURS",M27:V27)<>"",VALUE(NEXTCELL("OCCURS",M27:V27)),"") ->  | BV27: =IF(ISERROR(VLOOKUP(AS27,$BW28:$BW10000,1,FALSE))=TRUE,"",VLOOKUP(AS27,$BW28:$BW10000,1,FALSE)) ->  | BW27: =IF(NEXTCELL(BW$4,M27:V27)="","",NEXTCELL(BW$4,M27:V27)&CI27) ->  | BZ27: =IF(BY27="","",groupketa()) ->  | CD27: =IF(CC27="","",groupketa()) ->  | CE27: =IF(BX27="","",IF(BW27<>"",VLOOKUP(BW27,$BV$6:$CV26,27,FALSE),SUM(CE26,CF26))) ->  | CS27: =IF(BW27<>"",VLOOKUP(BW27,$BV$5:$CQ26,22,FALSE),"") -> 
D28: =IF($A28="","",IF(C28=0,0,IF(ISERROR(SEARCH(" ",$B28,C28+1))=TRUE,0,SEARCH(" ",$B28,C28+1)))) ->  | BO28: =IF(A28="","",NewPic()) ->  | BP28: =IF(NEXTCELL("OCCURS",M28:V28)<>"",VALUE(NEXTCELL("OCCURS",M28:V28)),"") ->  | BV28: =IF(ISERROR(VLOOKUP(AS28,$BW29:$BW10000,1,FALSE))=TRUE,"",VLOOKUP(AS28,$BW29:$BW10000,1,FALSE)) ->  | BW28: =IF(NEXTCELL(BW$4,M28:V28)="","",NEXTCELL(BW$4,M28:V28)&CI28) ->  | BZ28: =IF(BY28="","",groupketa()) ->  | CD28: =IF(CC28="","",groupketa()) ->  | CE28: =IF(BX28="","",IF(BW28<>"",VLOOKUP(BW28,$BV$6:$CV27,27,FALSE),SUM(CE27,CF27))) ->  | CS28: =IF(BW28<>"",VLOOKUP(BW28,$BV$5:$CQ27,22,FALSE),"") -> 
D29: =IF($A29="","",IF(C29=0,0,IF(ISERROR(SEARCH(" ",$B29,C29+1))=TRUE,0,SEARCH(" ",$B29,C29+1)))) ->  | BO29: =IF(A29="","",NewPic()) ->  | BP29: =IF(NEXTCELL("OCCURS",M29:V29)<>"",VALUE(NEXTCELL("OCCURS",M29:V29)),"") ->  | BV29: =IF(ISERROR(VLOOKUP(AS29,$BW30:$BW10000,1,FALSE))=TRUE,"",VLOOKUP(AS29,$BW30:$BW10000,1,FALSE)) ->  | BW29: =IF(NEXTCELL(BW$4,M29:V29)="","",NEXTCELL(BW$4,M29:V29)&CI29) ->  | BZ29: =IF(BY29="","",groupketa()) ->  | CD29: =IF(CC29="","",groupketa()) ->  | CE29: =IF(BX29="","",IF(BW29<>"",VLOOKUP(BW29,$BV$6:$CV28,27,FALSE),SUM(CE28,CF28))) ->  | CS29: =IF(BW29<>"",VLOOKUP(BW29,$BV$5:$CQ28,22,FALSE),"") -> 
D30: =IF($A30="","",IF(C30=0,0,IF(ISERROR(SEARCH(" ",$B30,C30+1))=TRUE,0,SEARCH(" ",$B30,C30+1)))) ->  | BO30: =IF(A30="","",NewPic()) ->  | BP30: =IF(NEXTCELL("OCCURS",M30:V30)<>"",VALUE(NEXTCELL("OCCURS",M30:V30)),"") ->  | BV30: =IF(ISERROR(VLOOKUP(AS30,$BW31:$BW10000,1,FALSE))=TRUE,"",VLOOKUP(AS30,$BW31:$BW10000,1,FALSE)) ->  | BW30: =IF(NEXTCELL(BW$4,M30:V30)="","",NEXTCELL(BW$4,M30:V30)&CI30) ->  | BZ30: =IF(BY30="","",groupketa()) ->  | CD30: =IF(CC30="","",groupketa()) ->  | CE30: =IF(BX30="","",IF(BW30<>"",VLOOKUP(BW30,$BV$6:$CV29,27,FALSE),SUM(CE29,CF29))) ->  | CS30: =IF(BW30<>"",VLOOKUP(BW30,$BV$5:$CQ29,22,FALSE),"") -> 
D31: =IF($A31="","",IF(C31=0,0,IF(ISERROR(SEARCH(" ",$B31,C31+1))=TRUE,0,SEARCH(" ",$B31,C31+1)))) ->  | BO31: =IF(A31="","",NewPic()) ->  | BP31: =IF(NEXTCELL("OCCURS",M31:V31)<>"",VALUE(NEXTCELL("OCCURS",M31:V31)),"") ->  | BV31: =IF(ISERROR(VLOOKUP(AS31,$BW32:$BW10000,1,FALSE))=TRUE,"",VLOOKUP(AS31,$BW32:$BW10000,1,FALSE)) ->  | BW31: =IF(NEXTCELL(BW$4,M31:V31)="","",NEXTCELL(BW$4,M31:V31)&CI31) ->  | BZ31: =IF(BY31="","",groupketa()) ->  | CD31: =IF(CC31="","",groupketa()) ->  | CE31: =IF(BX31="","",IF(BW31<>"",VLOOKUP(BW31,$BV$6:$CV30,27,FALSE),SUM(CE30,CF30))) ->  | CS31: =IF(BW31<>"",VLOOKUP(BW31,$BV$5:$CQ30,22,FALSE),"") -> 
D32: =IF($A32="","",IF(C32=0,0,IF(ISERROR(SEARCH(" ",$B32,C32+1))=TRUE,0,SEARCH(" ",$B32,C32+1)))) ->  | BO32: =IF(A32="","",NewPic()) ->  | BP32: =IF(NEXTCELL("OCCURS",M32:V32)<>"",VALUE(NEXTCELL("OCCURS",M32:V32)),"") ->  | BV32: =IF(ISERROR(VLOOKUP(AS32,$BW33:$BW10000,1,FALSE))=TRUE,"",VLOOKUP(AS32,$BW33:$BW10000,1,FALSE)) ->  | BW32: =IF(NEXTCELL(BW$4,M32:V32)="","",NEXTCELL(BW$4,M32:V32)&CI32) ->  | BZ32: =IF(BY32="","",groupketa()) ->  | CD32: =IF(CC32="","",groupketa()) ->  | CE32: =IF(BX32="","",IF(BW32<>"",VLOOKUP(BW32,$BV$6:$CV31,27,FALSE),SUM(CE31,CF31))) ->  | CS32: =IF(BW32<>"",VLOOKUP(BW32,$BV$5:$CQ31,22,FALSE),"") -> 
D33: =IF($A33="","",IF(C33=0,0,IF(ISERROR(SEARCH(" ",$B33,C33+1))=TRUE,0,SEARCH(" ",$B33,C33+1)))) ->  | BO33: =IF(A33="","",NewPic()) ->  | BP33: =IF(NEXTCELL("OCCURS",M33:V33)<>"",VALUE(NEXTCELL("OCCURS",M33:V33)),"") ->  | BV33: =IF(ISERROR(VLOOKUP(AS33,$BW34:$BW10000,1,FALSE))=TRUE,"",VLOOKUP(AS33,$BW34:$BW10000,1,FALSE)) ->  | BW33: =IF(NEXTCELL(BW$4,M33:V33)="","",NEXTCELL(BW$4,M33:V33)&CI33) ->  | BZ33: =IF(BY33="","",groupketa()) ->  | CD33: =IF(CC33="","",groupketa()) ->  | CE33: =IF(BX33="","",IF(BW33<>"",VLOOKUP(BW33,$BV$6:$CV32,27,FALSE),SUM(CE32,CF32))) ->  | CS33: =IF(BW33<>"",VLOOKUP(BW33,$BV$5:$CQ32,22,FALSE),"") -> 
D34: =IF($A34="","",IF(C34=0,0,IF(ISERROR(SEARCH(" ",$B34,C34+1))=TRUE,0,SEARCH(" ",$B34,C34+1)))) ->  | BO34: =IF(A34="","",NewPic()) ->  | BP34: =IF(NEXTCELL("OCCURS",M34:V34)<>"",VALUE(NEXTCELL("OCCURS",M34:V34)),"") ->  | BV34: =IF(ISERROR(VLOOKUP(AS34,$BW35:$BW10000,1,FALSE))=TRUE,"",VLOOKUP(AS34,$BW35:$BW10000,1,FALSE)) ->  | BW34: =IF(NEXTCELL(BW$4,M34:V34)="","",NEXTCELL(BW$4,M34:V34)&CI34) ->  | BZ34: =IF(BY34="","",groupketa()) ->  | CD34: =IF(CC34="","",groupketa()) ->  | CE34: =IF(BX34="","",IF(BW34<>"",VLOOKUP(BW34,$BV$6:$CV33,27,FALSE),SUM(CE33,CF33))) ->  | CS34: =IF(BW34<>"",VLOOKUP(BW34,$BV$5:$CQ33,22,FALSE),"") -> 
D35: =IF($A35="","",IF(C35=0,0,IF(ISERROR(SEARCH(" ",$B35,C35+1))=TRUE,0,SEARCH(" ",$B35,C35+1)))) ->  | AI35: =IF($AH35<>AI$4,"",$M35) ->  | BO35: =IF(A35="","",NewPic()) ->  | BP35: =IF(NEXTCELL("OCCURS",M35:V35)<>"",VALUE(NEXTCELL("OCCURS",M35:V35)),"") ->  | BV35: =IF(ISERROR(VLOOKUP(AS35,$BW36:$BW10000,1,FALSE))=TRUE,"",VLOOKUP(AS35,$BW36:$BW10000,1,FALSE)) ->  | BW35: =IF(NEXTCELL(BW$4,M35:V35)="","",NEXTCELL(BW$4,M35:V35)&CI35) ->  | BZ35: =IF(BY35="","",groupketa()) ->  | CD35: =IF(CC35="","",groupketa()) ->  | CE35: =IF(BX35="","",IF(BW35<>"",VLOOKUP(BW35,$BV$6:$CV34,27,FALSE),SUM(CE34,CF34))) ->  | CS35: =IF(BW35<>"",VLOOKUP(BW35,$BV$5:$CQ34,22,FALSE),"") -> 
D36: =IF($A36="","",IF(C36=0,0,IF(ISERROR(SEARCH(" ",$B36,C36+1))=TRUE,0,SEARCH(" ",$B36,C36+1)))) ->  | BO36: =IF(A36="","",NewPic()) ->  | BP36: =IF(NEXTCELL("OCCURS",M36:V36)<>"",VALUE(NEXTCELL("OCCURS",M36:V36)),"") ->  | BV36: =IF(ISERROR(VLOOKUP(AS36,$BW37:$BW10000,1,FALSE))=TRUE,"",VLOOKUP(AS36,$BW37:$BW10000,1,FALSE)) ->  | BW36: =IF(NEXTCELL(BW$4,M36:V36)="","",NEXTCELL(BW$4,M36:V36)&CI36) ->  | BZ36: =IF(BY36="","",groupketa()) ->  | CD36: =IF(CC36="","",groupketa()) ->  | CE36: =IF(BX36="","",IF(BW36<>"",VLOOKUP(BW36,$BV$6:$CV35,27,FALSE),SUM(CE35,CF35))) ->  | CS36: =IF(BW36<>"",VLOOKUP(BW36,$BV$5:$CQ35,22,FALSE),"") -> 
D37: =IF($A37="","",IF(C37=0,0,IF(ISERROR(SEARCH(" ",$B37,C37+1))=TRUE,0,SEARCH(" ",$B37,C37+1)))) ->  | BO37: =IF(A37="","",NewPic()) ->  | BP37: =IF(NEXTCELL("OCCURS",M37:V37)<>"",VALUE(NEXTCELL("OCCURS",M37:V37)),"") ->  | BV37: =IF(ISERROR(VLOOKUP(AS37,$BW38:$BW10000,1,FALSE))=TRUE,"",VLOOKUP(AS37,$BW38:$BW10000,1,FALSE)) ->  | BW37: =IF(NEXTCELL(BW$4,M37:V37)="","",NEXTCELL(BW$4,M37:V37)&CI37) ->  | BZ37: =IF(BY37="","",groupketa()) ->  | CD37: =IF(CC37="","",groupketa()) ->  | CE37: =IF(BX37="","",IF(BW37<>"",VLOOKUP(BW37,$BV$6:$CV36,27,FALSE),SUM(CE36,CF36))) ->  | CS37: =IF(BW37<>"",VLOOKUP(BW37,$BV$5:$CQ36,22,FALSE),"") -> 
D38: =IF($A38="","",IF(C38=0,0,IF(ISERROR(SEARCH(" ",$B38,C38+1))=TRUE,0,SEARCH(" ",$B38,C38+1)))) ->  | BO38: =IF(A38="","",NewPic()) ->  | BP38: =IF(NEXTCELL("OCCURS",M38:V38)<>"",VALUE(NEXTCELL("OCCURS",M38:V38)),"") ->  | BV38: =IF(ISERROR(VLOOKUP(AS38,$BW39:$BW10000,1,FALSE))=TRUE,"",VLOOKUP(AS38,$BW39:$BW10000,1,FALSE)) ->  | BW38: =IF(NEXTCELL(BW$4,M38:V38)="","",NEXTCELL(BW$4,M38:V38)&CI38) ->  | BZ38: =IF(BY38="","",groupketa()) ->  | CD38: =IF(CC38="","",groupketa()) ->  | CE38: =IF(BX38="","",IF(BW38<>"",VLOOKUP(BW38,$BV$6:$CV37,27,FALSE),SUM(CE37,CF37))) ->  | CS38: =IF(BW38<>"",VLOOKUP(BW38,$BV$5:$CQ37,22,FALSE),"") -> 
D39: =IF($A39="","",IF(C39=0,0,IF(ISERROR(SEARCH(" ",$B39,C39+1))=TRUE,0,SEARCH(" ",$B39,C39+1)))) ->  | BO39: =IF(A39="","",NewPic()) ->  | BP39: =IF(NEXTCELL("OCCURS",M39:V39)<>"",VALUE(NEXTCELL("OCCURS",M39:V39)),"") ->  | BV39: =IF(ISERROR(VLOOKUP(AS39,$BW40:$BW10000,1,FALSE))=TRUE,"",VLOOKUP(AS39,$BW40:$BW10000,1,FALSE)) ->  | BW39: =IF(NEXTCELL(BW$4,M39:V39)="","",NEXTCELL(BW$4,M39:V39)&CI39) ->  | BZ39: =IF(BY39="","",groupketa()) ->  | CD39: =IF(CC39="","",groupketa()) ->  | CE39: =IF(BX39="","",IF(BW39<>"",VLOOKUP(BW39,$BV$6:$CV38,27,FALSE),SUM(CE38,CF38))) ->  | CS39: =IF(BW39<>"",VLOOKUP(BW39,$BV$5:$CQ38,22,FALSE),"") -> 
D40: =IF($A40="","",IF(C40=0,0,IF(ISERROR(SEARCH(" ",$B40,C40+1))=TRUE,0,SEARCH(" ",$B40,C40+1)))) ->  | BO40: =IF(A40="","",NewPic()) ->  | BP40: =IF(NEXTCELL("OCCURS",M40:V40)<>"",VALUE(NEXTCELL("OCCURS",M40:V40)),"") ->  | BV40: =IF(ISERROR(VLOOKUP(AS40,$BW41:$BW10000,1,FALSE))=TRUE,"",VLOOKUP(AS40,$BW41:$BW10000,1,FALSE)) ->  | BW40: =IF(NEXTCELL(BW$4,M40:V40)="","",NEXTCELL(BW$4,M40:V40)&CI40) ->  | BZ40: =IF(BY40="","",groupketa()) ->  | CD40: =IF(CC40="","",groupketa()) ->  | CE40: =IF(BX40="","",IF(BW40<>"",VLOOKUP(BW40,$BV$6:$CV39,27,FALSE),SUM(CE39,CF39))) ->  | CS40: =IF(BW40<>"",VLOOKUP(BW40,$BV$5:$CQ39,22,FALSE),"") -> 
D41: =IF($A41="","",IF(C41=0,0,IF(ISERROR(SEARCH(" ",$B41,C41+1))=TRUE,0,SEARCH(" ",$B41,C41+1)))) ->  | BO41: =IF(A41="","",NewPic()) ->  | BP41: =IF(NEXTCELL("OCCURS",M41:V41)<>"",VALUE(NEXTCELL("OCCURS",M41:V41)),"") ->  | BV41: =IF(ISERROR(VLOOKUP(AS41,$BW42:$BW10000,1,FALSE))=TRUE,"",VLOOKUP(AS41,$BW42:$BW10000,1,FALSE)) ->  | BW41: =IF(NEXTCELL(BW$4,M41:V41)="","",NEXTCELL(BW$4,M41:V41)&CI41) ->  | BZ41: =IF(BY41="","",groupketa()) ->  | CD41: =IF(CC41="","",groupketa()) ->  | CE41: =IF(BX41="","",IF(BW41<>"",VLOOKUP(BW41,$BV$6:$CV40,27,FALSE),SUM(CE40,CF40))) ->  | CS41: =IF(BW41<>"",VLOOKUP(BW41,$BV$5:$CQ40,22,FALSE),"") -> 
D42: =IF($A42="","",IF(C42=0,0,IF(ISERROR(SEARCH(" ",$B42,C42+1))=TRUE,0,SEARCH(" ",$B42,C42+1)))) ->  | BO42: =IF(A42="","",NewPic()) ->  | BP42: =IF(NEXTCELL("OCCURS",M42:V42)<>"",VALUE(NEXTCELL("OCCURS",M42:V42)),"") ->  | BV42: =IF(ISERROR(VLOOKUP(AS42,$BW43:$BW10000,1,FALSE))=TRUE,"",VLOOKUP(AS42,$BW43:$BW10000,1,FALSE)) ->  | BW42: =IF(NEXTCELL(BW$4,M42:V42)="","",NEXTCELL(BW$4,M42:V42)&CI42) ->  | BZ42: =IF(BY42="","",groupketa()) ->  | CD42: =IF(CC42="","",groupketa()) ->  | CE42: =IF(BX42="","",IF(BW42<>"",VLOOKUP(BW42,$BV$6:$CV41,27,FALSE),SUM(CE41,CF41))) ->  | CS42: =IF(BW42<>"",VLOOKUP(BW42,$BV$5:$CQ41,22,FALSE),"") -> 
D43: =IF($A43="","",IF(C43=0,0,IF(ISERROR(SEARCH(" ",$B43,C43+1))=TRUE,0,SEARCH(" ",$B43,C43+1)))) ->  | BO43: =IF(A43="","",NewPic()) ->  | BP43: =IF(NEXTCELL("OCCURS",M43:V43)<>"",VALUE(NEXTCELL("OCCURS",M43:V43)),"") ->  | BV43: =IF(ISERROR(VLOOKUP(AS43,$BW44:$BW10000,1,FALSE))=TRUE,"",VLOOKUP(AS43,$BW44:$BW10000,1,FALSE)) ->  | BW43: =IF(NEXTCELL(BW$4,M43:V43)="","",NEXTCELL(BW$4,M43:V43)&CI43) ->  | BZ43: =IF(BY43="","",groupketa()) ->  | CD43: =IF(CC43="","",groupketa()) ->  | CE43: =IF(BX43="","",IF(BW43<>"",VLOOKUP(BW43,$BV$6:$CV42,27,FALSE),SUM(CE42,CF42))) ->  | CS43: =IF(BW43<>"",VLOOKUP(BW43,$BV$5:$CQ42,22,FALSE),"") -> 
D44: =IF($A44="","",IF(C44=0,0,IF(ISERROR(SEARCH(" ",$B44,C44+1))=TRUE,0,SEARCH(" ",$B44,C44+1)))) ->  | BO44: =IF(A44="","",NewPic()) ->  | BP44: =IF(NEXTCELL("OCCURS",M44:V44)<>"",VALUE(NEXTCELL("OCCURS",M44:V44)),"") ->  | BV44: =IF(ISERROR(VLOOKUP(AS44,$BW45:$BW10000,1,FALSE))=TRUE,"",VLOOKUP(AS44,$BW45:$BW10000,1,FALSE)) ->  | BW44: =IF(NEXTCELL(BW$4,M44:V44)="","",NEXTCELL(BW$4,M44:V44)&CI44) ->  | BZ44: =IF(BY44="","",groupketa()) ->  | CD44: =IF(CC44="","",groupketa()) ->  | CE44: =IF(BX44="","",IF(BW44<>"",VLOOKUP(BW44,$BV$6:$CV43,27,FALSE),SUM(CE43,CF43))) ->  | CS44: =IF(BW44<>"",VLOOKUP(BW44,$BV$5:$CQ43,22,FALSE),"") -> 
D45: =IF($A45="","",IF(C45=0,0,IF(ISERROR(SEARCH(" ",$B45,C45+1))=TRUE,0,SEARCH(" ",$B45,C45+1)))) ->  | AI45: =IF($AH45<>AI$4,"",$M45) ->  | BO45: =IF(A45="","",NewPic()) ->  | BP45: =IF(NEXTCELL("OCCURS",M45:V45)<>"",VALUE(NEXTCELL("OCCURS",M45:V45)),"") ->  | BV45: =IF(ISERROR(VLOOKUP(AS45,$BW46:$BW10000,1,FALSE))=TRUE,"",VLOOKUP(AS45,$BW46:$BW10000,1,FALSE)) ->  | BW45: =IF(NEXTCELL(BW$4,M45:V45)="","",NEXTCELL(BW$4,M45:V45)&CI45) ->  | BZ45: =IF(BY45="","",groupketa()) ->  | CD45: =IF(CC45="","",groupketa()) ->  | CE45: =IF(BX45="","",IF(BW45<>"",VLOOKUP(BW45,$BV$6:$CV44,27,FALSE),SUM(CE44,CF44))) ->  | CS45: =IF(BW45<>"",VLOOKUP(BW45,$BV$5:$CQ44,22,FALSE),"") -> 
D46: =IF($A46="","",IF(C46=0,0,IF(ISERROR(SEARCH(" ",$B46,C46+1))=TRUE,0,SEARCH(" ",$B46,C46+1)))) ->  | BO46: =IF(A46="","",NewPic()) ->  | BP46: =IF(NEXTCELL("OCCURS",M46:V46)<>"",VALUE(NEXTCELL("OCCURS",M46:V46)),"") ->  | BV46: =IF(ISERROR(VLOOKUP(AS46,$BW47:$BW10000,1,FALSE))=TRUE,"",VLOOKUP(AS46,$BW47:$BW10000,1,FALSE)) ->  | BW46: =IF(NEXTCELL(BW$4,M46:V46)="","",NEXTCELL(BW$4,M46:V46)&CI46) ->  | BZ46: =IF(BY46="","",groupketa()) ->  | CD46: =IF(CC46="","",groupketa()) ->  | CE46: =IF(BX46="","",IF(BW46<>"",VLOOKUP(BW46,$BV$6:$CV45,27,FALSE),SUM(CE45,CF45))) ->  | CS46: =IF(BW46<>"",VLOOKUP(BW46,$BV$5:$CQ45,22,FALSE),"") -> 
D47: =IF($A47="","",IF(C47=0,0,IF(ISERROR(SEARCH(" ",$B47,C47+1))=TRUE,0,SEARCH(" ",$B47,C47+1)))) ->  | BO47: =IF(A47="","",NewPic()) ->  | BP47: =IF(NEXTCELL("OCCURS",M47:V47)<>"",VALUE(NEXTCELL("OCCURS",M47:V47)),"") ->  | BV47: =IF(ISERROR(VLOOKUP(AS47,$BW48:$BW10000,1,FALSE))=TRUE,"",VLOOKUP(AS47,$BW48:$BW10000,1,FALSE)) ->  | BW47: =IF(NEXTCELL(BW$4,M47:V47)="","",NEXTCELL(BW$4,M47:V47)&CI47) ->  | BZ47: =IF(BY47="","",groupketa()) ->  | CB47: =IF(AND(A47<>"",BX47="",BN47=""),BM47,"") ->  | CD47: =IF(CC47="","",groupketa()) ->  | CE47: =IF(BX47="","",IF(BW47<>"",VLOOKUP(BW47,$BV$6:$CV46,27,FALSE),SUM(CE46,CF46))) ->  | CS47: =IF(BW47<>"",VLOOKUP(BW47,$BV$5:$CQ46,22,FALSE),"") -> 
D48: =IF($A48="","",IF(C48=0,0,IF(ISERROR(SEARCH(" ",$B48,C48+1))=TRUE,0,SEARCH(" ",$B48,C48+1)))) ->  | BO48: =IF(A48="","",NewPic()) ->  | BP48: =IF(NEXTCELL("OCCURS",M48:V48)<>"",VALUE(NEXTCELL("OCCURS",M48:V48)),"") ->  | BV48: =IF(ISERROR(VLOOKUP(AS48,$BW49:$BW10000,1,FALSE))=TRUE,"",VLOOKUP(AS48,$BW49:$BW10000,1,FALSE)) ->  | BW48: =IF(NEXTCELL(BW$4,M48:V48)="","",NEXTCELL(BW$4,M48:V48)&CI48) ->  | BZ48: =IF(BY48="","",groupketa()) ->  | CD48: =IF(CC48="","",groupketa()) ->  | CE48: =IF(BX48="","",IF(BW48<>"",VLOOKUP(BW48,$BV$6:$CV47,27,FALSE),SUM(CE47,CF47))) ->  | CS48: =IF(BW48<>"",VLOOKUP(BW48,$BV$5:$CQ47,22,FALSE),"") -> 
D49: =IF($A49="","",IF(C49=0,0,IF(ISERROR(SEARCH(" ",$B49,C49+1))=TRUE,0,SEARCH(" ",$B49,C49+1)))) ->  | BO49: =IF(A49="","",NewPic()) ->  | BP49: =IF(NEXTCELL("OCCURS",M49:V49)<>"",VALUE(NEXTCELL("OCCURS",M49:V49)),"") ->  | BV49: =IF(ISERROR(VLOOKUP(AS49,$BW50:$BW10000,1,FALSE))=TRUE,"",VLOOKUP(AS49,$BW50:$BW10000,1,FALSE)) ->  | BW49: =IF(NEXTCELL(BW$4,M49:V49)="","",NEXTCELL(BW$4,M49:V49)&CI49) ->  | BZ49: =IF(BY49="","",groupketa()) ->  | CD49: =IF(CC49="","",groupketa()) ->  | CE49: =IF(BX49="","",IF(BW49<>"",VLOOKUP(BW49,$BV$6:$CV48,27,FALSE),SUM(CE48,CF48))) ->  | CS49: =IF(BW49<>"",VLOOKUP(BW49,$BV$5:$CQ48,22,FALSE),"") -> 
D50: =IF($A50="","",IF(C50=0,0,IF(ISERROR(SEARCH(" ",$B50,C50+1))=TRUE,0,SEARCH(" ",$B50,C50+1)))) ->  | AK50: =IF($AH50<>AK$4,"",$M50) ->  | BO50: =IF(A50="","",NewPic()) ->  | BP50: =IF(NEXTCELL("OCCURS",M50:V50)<>"",VALUE(NEXTCELL("OCCURS",M50:V50)),"") ->  | BV50: =IF(ISERROR(VLOOKUP(AS50,$BW51:$BW10000,1,FALSE))=TRUE,"",VLOOKUP(AS50,$BW51:$BW10000,1,FALSE)) ->  | BW50: =IF(NEXTCELL(BW$4,M50:V50)="","",NEXTCELL(BW$4,M50:V50)&CI50) ->  | BZ50: =IF(BY50="","",groupketa()) ->  | CD50: =IF(CC50="","",groupketa()) ->  | CE50: =IF(BX50="","",IF(BW50<>"",VLOOKUP(BW50,$BV$6:$CV49,27,FALSE),SUM(CE49,CF49))) ->  | CS50: =IF(BW50<>"",VLOOKUP(BW50,$BV$5:$CQ49,22,FALSE),"") -> 
D51: =IF($A51="","",IF(C51=0,0,IF(ISERROR(SEARCH(" ",$B51,C51+1))=TRUE,0,SEARCH(" ",$B51,C51+1)))) ->  | AK51: =IF($AH51<>AK$4,"",$M51) ->  | BO51: =IF(A51="","",NewPic()) ->  | BP51: =IF(NEXTCELL("OCCURS",M51:V51)<>"",VALUE(NEXTCELL("OCCURS",M51:V51)),"") ->  | BV51: =IF(ISERROR(VLOOKUP(AS51,$BW52:$BW10000,1,FALSE))=TRUE,"",VLOOKUP(AS51,$BW52:$BW10000,1,FALSE)) ->  | BW51: =IF(NEXTCELL(BW$4,M51:V51)="","",NEXTCELL(BW$4,M51:V51)&CI51) ->  | BZ51: =IF(BY51="","",groupketa()) ->  | CD51: =IF(CC51="","",groupketa()) ->  | CE51: =IF(BX51="","",IF(BW51<>"",VLOOKUP(BW51,$BV$6:$CV50,27,FALSE),SUM(CE50,CF50))) ->  | CS51: =IF(BW51<>"",VLOOKUP(BW51,$BV$5:$CQ50,22,FALSE),"") -> 
D52: =IF($A52="","",IF(C52=0,0,IF(ISERROR(SEARCH(" ",$B52,C52+1))=TRUE,0,SEARCH(" ",$B52,C52+1)))) ->  | AK52: =IF($AH52<>AK$4,"",$M52) ->  | BO52: =IF(A52="","",NewPic()) ->  | BP52: =IF(NEXTCELL("OCCURS",M52:V52)<>"",VALUE(NEXTCELL("OCCURS",M52:V52)),"") ->  | BV52: =IF(ISERROR(VLOOKUP(AS52,$BW53:$BW10000,1,FALSE))=TRUE,"",VLOOKUP(AS52,$BW53:$BW10000,1,FALSE)) ->  | BW52: =IF(NEXTCELL(BW$4,M52:V52)="","",NEXTCELL(BW$4,M52:V52)&CI52) ->  | BZ52: =IF(BY52="","",groupketa()) ->  | CD52: =IF(CC52="","",groupketa()) ->  | CE52: =IF(BX52="","",IF(BW52<>"",VLOOKUP(BW52,$BV$6:$CV51,27,FALSE),SUM(CE51,CF51))) ->  | CS52: =IF(BW52<>"",VLOOKUP(BW52,$BV$5:$CQ51,22,FALSE),"") -> 
D53: =IF($A53="","",IF(C53=0,0,IF(ISERROR(SEARCH(" ",$B53,C53+1))=TRUE,0,SEARCH(" ",$B53,C53+1)))) ->  | AK53: =IF($AH53<>AK$4,"",$M53) ->  | BO53: =IF(A53="","",NewPic()) ->  | BP53: =IF(NEXTCELL("OCCURS",M53:V53)<>"",VALUE(NEXTCELL("OCCURS",M53:V53)),"") ->  | BV53: =IF(ISERROR(VLOOKUP(AS53,$BW54:$BW10000,1,FALSE))=TRUE,"",VLOOKUP(AS53,$BW54:$BW10000,1,FALSE)) ->  | BW53: =IF(NEXTCELL(BW$4,M53:V53)="","",NEXTCELL(BW$4,M53:V53)&CI53) ->  | BZ53: =IF(BY53="","",groupketa()) ->  | CD53: =IF(CC53="","",groupketa()) ->  | CE53: =IF(BX53="","",IF(BW53<>"",VLOOKUP(BW53,$BV$6:$CV52,27,FALSE),SUM(CE52,CF52))) ->  | CS53: =IF(BW53<>"",VLOOKUP(BW53,$BV$5:$CQ52,22,FALSE),"") -> 
D54: =IF($A54="","",IF(C54=0,0,IF(ISERROR(SEARCH(" ",$B54,C54+1))=TRUE,0,SEARCH(" ",$B54,C54+1)))) ->  | AK54: =IF($AH54<>AK$4,"",$M54) ->  | BO54: =IF(A54="","",NewPic()) ->  | BP54: =IF(NEXTCELL("OCCURS",M54:V54)<>"",VALUE(NEXTCELL("OCCURS",M54:V54)),"") ->  | BV54: =IF(ISERROR(VLOOKUP(AS54,$BW55:$BW10000,1,FALSE))=TRUE,"",VLOOKUP(AS54,$BW55:$BW10000,1,FALSE)) ->  | BW54: =IF(NEXTCELL(BW$4,M54:V54)="","",NEXTCELL(BW$4,M54:V54)&CI54) ->  | BZ54: =IF(BY54="","",groupketa()) ->  | CD54: =IF(CC54="","",groupketa()) ->  | CE54: =IF(BX54="","",IF(BW54<>"",VLOOKUP(BW54,$BV$6:$CV53,27,FALSE),SUM(CE53,CF53))) ->  | CS54: =IF(BW54<>"",VLOOKUP(BW54,$BV$5:$CQ53,22,FALSE),"") -> 
D55: =IF($A55="","",IF(C55=0,0,IF(ISERROR(SEARCH(" ",$B55,C55+1))=TRUE,0,SEARCH(" ",$B55,C55+1)))) ->  | AI55: =IF($AH55<>AI$4,"",$M55) ->  | BO55: =IF(A55="","",NewPic()) ->  | BP55: =IF(NEXTCELL("OCCURS",M55:V55)<>"",VALUE(NEXTCELL("OCCURS",M55:V55)),"") ->  | BV55: =IF(ISERROR(VLOOKUP(AS55,$BW56:$BW10000,1,FALSE))=TRUE,"",VLOOKUP(AS55,$BW56:$BW10000,1,FALSE)) ->  | BW55: =IF(NEXTCELL(BW$4,M55:V55)="","",NEXTCELL(BW$4,M55:V55)&CI55) ->  | BZ55: =IF(BY55="","",groupketa()) ->  | CD55: =IF(CC55="","",groupketa()) ->  | CE55: =IF(BX55="","",IF(BW55<>"",VLOOKUP(BW55,$BV$6:$CV54,27,FALSE),SUM(CE54,CF54))) ->  | CS55: =IF(BW55<>"",VLOOKUP(BW55,$BV$5:$CQ54,22,FALSE),"") -> 
D56: =IF($A56="","",IF(C56=0,0,IF(ISERROR(SEARCH(" ",$B56,C56+1))=TRUE,0,SEARCH(" ",$B56,C56+1)))) ->  | BO56: =IF(A56="","",NewPic()) ->  | BP56: =IF(NEXTCELL("OCCURS",M56:V56)<>"",VALUE(NEXTCELL("OCCURS",M56:V56)),"") ->  | BV56: =IF(ISERROR(VLOOKUP(AS56,$BW57:$BW10000,1,FALSE))=TRUE,"",VLOOKUP(AS56,$BW57:$BW10000,1,FALSE)) ->  | BW56: =IF(NEXTCELL(BW$4,M56:V56)="","",NEXTCELL(BW$4,M56:V56)&CI56) ->  | BZ56: =IF(BY56="","",groupketa()) ->  | CD56: =IF(CC56="","",groupketa()) ->  | CE56: =IF(BX56="","",IF(BW56<>"",VLOOKUP(BW56,$BV$6:$CV55,27,FALSE),SUM(CE55,CF55))) ->  | CS56: =IF(BW56<>"",VLOOKUP(BW56,$BV$5:$CQ55,22,FALSE),"") -> 
D57: =IF($A57="","",IF(C57=0,0,IF(ISERROR(SEARCH(" ",$B57,C57+1))=TRUE,0,SEARCH(" ",$B57,C57+1)))) ->  | BO57: =IF(A57="","",NewPic()) ->  | BP57: =IF(NEXTCELL("OCCURS",M57:V57)<>"",VALUE(NEXTCELL("OCCURS",M57:V57)),"") ->  | BV57: =IF(ISERROR(VLOOKUP(AS57,$BW58:$BW10000,1,FALSE))=TRUE,"",VLOOKUP(AS57,$BW58:$BW10000,1,FALSE)) ->  | BW57: =IF(NEXTCELL(BW$4,M57:V57)="","",NEXTCELL(BW$4,M57:V57)&CI57) ->  | BZ57: =IF(BY57="","",groupketa()) ->  | CD57: =IF(CC57="","",groupketa()) ->  | CE57: =IF(BX57="","",IF(BW57<>"",VLOOKUP(BW57,$BV$6:$CV56,27,FALSE),SUM(CE56,CF56))) ->  | CS57: =IF(BW57<>"",VLOOKUP(BW57,$BV$5:$CQ56,22,FALSE),"") -> 
D58: =IF($A58="","",IF(C58=0,0,IF(ISERROR(SEARCH(" ",$B58,C58+1))=TRUE,0,SEARCH(" ",$B58,C58+1)))) ->  | BO58: =IF(A58="","",NewPic()) ->  | BP58: =IF(NEXTCELL("OCCURS",M58:V58)<>"",VALUE(NEXTCELL("OCCURS",M58:V58)),"") ->  | BV58: =IF(ISERROR(VLOOKUP(AS58,$BW59:$BW10000,1,FALSE))=TRUE,"",VLOOKUP(AS58,$BW59:$BW10000,1,FALSE)) ->  | BW58: =IF(NEXTCELL(BW$4,M58:V58)="","",NEXTCELL(BW$4,M58:V58)&CI58) ->  | BZ58: =IF(BY58="","",groupketa()) ->  | CD58: =IF(CC58="","",groupketa()) ->  | CE58: =IF(BX58="","",IF(BW58<>"",VLOOKUP(BW58,$BV$6:$CV57,27,FALSE),SUM(CE57,CF57))) ->  | CS58: =IF(BW58<>"",VLOOKUP(BW58,$BV$5:$CQ57,22,FALSE),"") -> 
D59: =IF($A59="","",IF(C59=0,0,IF(ISERROR(SEARCH(" ",$B59,C59+1))=TRUE,0,SEARCH(" ",$B59,C59+1)))) ->  | BO59: =IF(A59="","",NewPic()) ->  | BP59: =IF(NEXTCELL("OCCURS",M59:V59)<>"",VALUE(NEXTCELL("OCCURS",M59:V59)),"") ->  | BV59: =IF(ISERROR(VLOOKUP(AS59,$BW60:$BW10000,1,FALSE))=TRUE,"",VLOOKUP(AS59,$BW60:$BW10000,1,FALSE)) ->  | BW59: =IF(NEXTCELL(BW$4,M59:V59)="","",NEXTCELL(BW$4,M59:V59)&CI59) ->  | BZ59: =IF(BY59="","",groupketa()) ->  | CD59: =IF(CC59="","",groupketa()) ->  | CE59: =IF(BX59="","",IF(BW59<>"",VLOOKUP(BW59,$BV$6:$CV58,27,FALSE),SUM(CE58,CF58))) ->  | CS59: =IF(BW59<>"",VLOOKUP(BW59,$BV$5:$CQ58,22,FALSE),"") -> 
D60: =IF($A60="","",IF(C60=0,0,IF(ISERROR(SEARCH(" ",$B60,C60+1))=TRUE,0,SEARCH(" ",$B60,C60+1)))) ->  | BO60: =IF(A60="","",NewPic()) ->  | BP60: =IF(NEXTCELL("OCCURS",M60:V60)<>"",VALUE(NEXTCELL("OCCURS",M60:V60)),"") ->  | BV60: =IF(ISERROR(VLOOKUP(AS60,$BW61:$BW10000,1,FALSE))=TRUE,"",VLOOKUP(AS60,$BW61:$BW10000,1,FALSE)) ->  | BW60: =IF(NEXTCELL(BW$4,M60:V60)="","",NEXTCELL(BW$4,M60:V60)&CI60) ->  | BZ60: =IF(BY60="","",groupketa()) ->  | CD60: =IF(CC60="","",groupketa()) ->  | CE60: =IF(BX60="","",IF(BW60<>"",VLOOKUP(BW60,$BV$6:$CV59,27,FALSE),SUM(CE59,CF59))) ->  | CS60: =IF(BW60<>"",VLOOKUP(BW60,$BV$5:$CQ59,22,FALSE),"") -> 
D61: =IF($A61="","",IF(C61=0,0,IF(ISERROR(SEARCH(" ",$B61,C61+1))=TRUE,0,SEARCH(" ",$B61,C61+1)))) ->  | BO61: =IF(A61="","",NewPic()) ->  | BP61: =IF(NEXTCELL("OCCURS",M61:V61)<>"",VALUE(NEXTCELL("OCCURS",M61:V61)),"") ->  | BV61: =IF(ISERROR(VLOOKUP(AS61,$BW62:$BW10000,1,FALSE))=TRUE,"",VLOOKUP(AS61,$BW62:$BW10000,1,FALSE)) ->  | BW61: =IF(NEXTCELL(BW$4,M61:V61)="","",NEXTCELL(BW$4,M61:V61)&CI61) ->  | BZ61: =IF(BY61="","",groupketa()) ->  | CD61: =IF(CC61="","",groupketa()) ->  | CE61: =IF(BX61="","",IF(BW61<>"",VLOOKUP(BW61,$BV$6:$CV60,27,FALSE),SUM(CE60,CF60))) ->  | CS61: =IF(BW61<>"",VLOOKUP(BW61,$BV$5:$CQ60,22,FALSE),"") -> 
D62: =IF($A62="","",IF(C62=0,0,IF(ISERROR(SEARCH(" ",$B62,C62+1))=TRUE,0,SEARCH(" ",$B62,C62+1)))) ->  | BO62: =IF(A62="","",NewPic()) ->  | BP62: =IF(NEXTCELL("OCCURS",M62:V62)<>"",VALUE(NEXTCELL("OCCURS",M62:V62)),"") ->  | BV62: =IF(ISERROR(VLOOKUP(AS62,$BW63:$BW10000,1,FALSE))=TRUE,"",VLOOKUP(AS62,$BW63:$BW10000,1,FALSE)) ->  | BW62: =IF(NEXTCELL(BW$4,M62:V62)="","",NEXTCELL(BW$4,M62:V62)&CI62) ->  | BZ62: =IF(BY62="","",groupketa()) ->  | CD62: =IF(CC62="","",groupketa()) ->  | CE62: =IF(BX62="","",IF(BW62<>"",VLOOKUP(BW62,$BV$6:$CV61,27,FALSE),SUM(CE61,CF61))) ->  | CS62: =IF(BW62<>"",VLOOKUP(BW62,$BV$5:$CQ61,22,FALSE),"") -> 
D63: =IF($A63="","",IF(C63=0,0,IF(ISERROR(SEARCH(" ",$B63,C63+1))=TRUE,0,SEARCH(" ",$B63,C63+1)))) ->  | BO63: =IF(A63="","",NewPic()) ->  | BP63: =IF(NEXTCELL("OCCURS",M63:V63)<>"",VALUE(NEXTCELL("OCCURS",M63:V63)),"") ->  | BV63: =IF(ISERROR(VLOOKUP(AS63,$BW64:$BW10000,1,FALSE))=TRUE,"",VLOOKUP(AS63,$BW64:$BW10000,1,FALSE)) ->  | BW63: =IF(NEXTCELL(BW$4,M63:V63)="","",NEXTCELL(BW$4,M63:V63)&CI63) ->  | BZ63: =IF(BY63="","",groupketa()) ->  | CD63: =IF(CC63="","",groupketa()) ->  | CE63: =IF(BX63="","",IF(BW63<>"",VLOOKUP(BW63,$BV$6:$CV62,27,FALSE),SUM(CE62,CF62))) ->  | CS63: =IF(BW63<>"",VLOOKUP(BW63,$BV$5:$CQ62,22,FALSE),"") -> 
D64: =IF($A64="","",IF(C64=0,0,IF(ISERROR(SEARCH(" ",$B64,C64+1))=TRUE,0,SEARCH(" ",$B64,C64+1)))) ->  | BO64: =IF(A64="","",NewPic()) ->  | BP64: =IF(NEXTCELL("OCCURS",M64:V64)<>"",VALUE(NEXTCELL("OCCURS",M64:V64)),"") ->  | BV64: =IF(ISERROR(VLOOKUP(AS64,$BW65:$BW10000,1,FALSE))=TRUE,"",VLOOKUP(AS64,$BW65:$BW10000,1,FALSE)) ->  | BW64: =IF(NEXTCELL(BW$4,M64:V64)="","",NEXTCELL(BW$4,M64:V64)&CI64) ->  | BZ64: =IF(BY64="","",groupketa()) ->  | CD64: =IF(CC64="","",groupketa()) ->  | CE64: =IF(BX64="","",IF(BW64<>"",VLOOKUP(BW64,$BV$6:$CV63,27,FALSE),SUM(CE63,CF63))) ->  | CS64: =IF(BW64<>"",VLOOKUP(BW64,$BV$5:$CQ63,22,FALSE),"") -> 
D65: =IF($A65="","",IF(C65=0,0,IF(ISERROR(SEARCH(" ",$B65,C65+1))=TRUE,0,SEARCH(" ",$B65,C65+1)))) ->  | AI65: =IF($AH65<>AI$4,"",$M65) ->  | BO65: =IF(A65="","",NewPic()) ->  | BP65: =IF(NEXTCELL("OCCURS",M65:V65)<>"",VALUE(NEXTCELL("OCCURS",M65:V65)),"") ->  | BV65: =IF(ISERROR(VLOOKUP(AS65,$BW66:$BW10000,1,FALSE))=TRUE,"",VLOOKUP(AS65,$BW66:$BW10000,1,FALSE)) ->  | BW65: =IF(NEXTCELL(BW$4,M65:V65)="","",NEXTCELL(BW$4,M65:V65)&CI65) ->  | BZ65: =IF(BY65="","",groupketa()) ->  | CD65: =IF(CC65="","",groupketa()) ->  | CE65: =IF(BX65="","",IF(BW65<>"",VLOOKUP(BW65,$BV$6:$CV64,27,FALSE),SUM(CE64,CF64))) ->  | CS65: =IF(BW65<>"",VLOOKUP(BW65,$BV$5:$CQ64,22,FALSE),"") -> 
D66: =IF($A66="","",IF(C66=0,0,IF(ISERROR(SEARCH(" ",$B66,C66+1))=TRUE,0,SEARCH(" ",$B66,C66+1)))) ->  | BO66: =IF(A66="","",NewPic()) ->  | BP66: =IF(NEXTCELL("OCCURS",M66:V66)<>"",VALUE(NEXTCELL("OCCURS",M66:V66)),"") ->  | BV66: =IF(ISERROR(VLOOKUP(AS66,$BW67:$BW10000,1,FALSE))=TRUE,"",VLOOKUP(AS66,$BW67:$BW10000,1,FALSE)) ->  | BW66: =IF(NEXTCELL(BW$4,M66:V66)="","",NEXTCELL(BW$4,M66:V66)&CI66) ->  | BZ66: =IF(BY66="","",groupketa()) ->  | CD66: =IF(CC66="","",groupketa()) ->  | CE66: =IF(BX66="","",IF(BW66<>"",VLOOKUP(BW66,$BV$6:$CV65,27,FALSE),SUM(CE65,CF65))) ->  | CS66: =IF(BW66<>"",VLOOKUP(BW66,$BV$5:$CQ65,22,FALSE),"") -> 
D67: =IF($A67="","",IF(C67=0,0,IF(ISERROR(SEARCH(" ",$B67,C67+1))=TRUE,0,SEARCH(" ",$B67,C67+1)))) ->  | BO67: =IF(A67="","",NewPic()) ->  | BP67: =IF(NEXTCELL("OCCURS",M67:V67)<>"",VALUE(NEXTCELL("OCCURS",M67:V67)),"") ->  | BV67: =IF(ISERROR(VLOOKUP(AS67,$BW68:$BW10000,1,FALSE))=TRUE,"",VLOOKUP(AS67,$BW68:$BW10000,1,FALSE)) ->  | BW67: =IF(NEXTCELL(BW$4,M67:V67)="","",NEXTCELL(BW$4,M67:V67)&CI67) ->  | BZ67: =IF(BY67="","",groupketa()) ->  | CD67: =IF(CC67="","",groupketa()) ->  | CE67: =IF(BX67="","",IF(BW67<>"",VLOOKUP(BW67,$BV$6:$CV66,27,FALSE),SUM(CE66,CF66))) ->  | CS67: =IF(BW67<>"",VLOOKUP(BW67,$BV$5:$CQ66,22,FALSE),"") -> 
D68: =IF($A68="","",IF(C68=0,0,IF(ISERROR(SEARCH(" ",$B68,C68+1))=TRUE,0,SEARCH(" ",$B68,C68+1)))) ->  | BO68: =IF(A68="","",NewPic()) ->  | BP68: =IF(NEXTCELL("OCCURS",M68:V68)<>"",VALUE(NEXTCELL("OCCURS",M68:V68)),"") ->  | BV68: =IF(ISERROR(VLOOKUP(AS68,$BW69:$BW10000,1,FALSE))=TRUE,"",VLOOKUP(AS68,$BW69:$BW10000,1,FALSE)) ->  | BW68: =IF(NEXTCELL(BW$4,M68:V68)="","",NEXTCELL(BW$4,M68:V68)&CI68) ->  | BZ68: =IF(BY68="","",groupketa()) ->  | CD68: =IF(CC68="","",groupketa()) ->  | CE68: =IF(BX68="","",IF(BW68<>"",VLOOKUP(BW68,$BV$6:$CV67,27,FALSE),SUM(CE67,CF67))) ->  | CS68: =IF(BW68<>"",VLOOKUP(BW68,$BV$5:$CQ67,22,FALSE),"") -> 
B69: =IF(OR(LEFT(TRIM(SUBSTITUTE(A69,"."," ")),1) = "*",LEFT(TRIM(SUBSTITUTE(A69,"."," ")),1) = "/"),"",TRIM(SUBSTITUTE(A69,"."," "))&" ") ->  | C69: =IF($A69="","",IF(B69=" ",0,IF(ISERROR(SEARCH(" ",B69,1))=TRUE,0,SEARCH(" ",B69,1)))) ->  | D69: =IF($A69="","",IF(C69=0,0,IF(ISERROR(SEARCH(" ",$B69,C69+1))=TRUE,0,SEARCH(" ",$B69,C69+1)))) ->  | M69: =IF($A69="","",IF(C69=0,"",MID(B69,1,C69-1))) ->  | N69: =IF($A69="","",IF(OR(C69=0,D69=0),"",IF(MID(M69,1,2)="*>","",MID($B69,C69+1,D69-C69-1)))) ->  | O69: =IF($A69="","",IF(OR(D69=0,E69=0),"",IF(MID(N69,1,2)="*>","",MID($B69,D69+1,E69-D69-1)))) ->  | P69: =IF($A69="","",IF(OR(E69=0,F69=0),"",IF(MID(O69,1,2)="*>","",MID($B69,E69+1,F69-E69-1)))) ->  | Q69: =IF($A69="","",IF(OR(F69=0,G69=0),"",IF(MID(P69,1,2)="*>","",MID($B69,F69+1,G69-F69-1)))) ->  | R69: =IF($A69="","",IF(OR(G69=0,H69=0),"",IF(MID(Q69,1,2)="*>","",MID($B69,G69+1,H69-G69-1)))) ->  | S69: =IF($A69="","",IF(OR(H69=0,I69=0),"",IF(MID(R69,1,2)="*>","",MID($B69,H69+1,I69-H69-1)))) ->  | T69: =IF($A69="","",IF(OR(I69=0,J69=0),"",IF(MID(S69,1,2)="*>","",MID($B69,I69+1,J69-I69-1)))) ->  | U69: =IF($A69="","",IF(OR(J69=0,K69=0),"",IF(MID(T69,1,2)="*>","",MID($B69,J69+1,K69-J69-1)))) ->  | V69: =IF($A69="","",IF(OR(K69=0,L69=0),"",IF(MID(U69,1,2)="*>","",MID($B69,K69+1,L69-K69-1)))) ->  | AH69: =IF(M69="","",levelget()) ->  | AS69: =IF(N69<>"",TRIM(N69)&CI69,"") ->  | AU69: =IF(ISERROR(SEARCH("V",$AT69,1))=TRUE,"",SEARCH("V",$AT69,1)) ->  | AV69: =IF(AU69="",AT69,MID(AT69,1,AU69-1)) ->  | AW69: =IF(ISERROR(SEARCH(AW$4,$AV69,1))=TRUE,"",SEARCH(AW$4,$AV69,1)) ->  | AX69: =IF(MID(AV69,1,1)="S","S","") ->  | AY69: =IF(AX69="S","9",MID(AV69,1,1)) ->  | AZ69: =IF($AT69="","",IF(AW69="","",VALUE(MID(AV69,AW69+1,SEARCH(")",AV69,1)-AW69-1)))) ->  | BA69: =IF($AT69="","",IF(AZ69<>"","",IF(AX69="",VALUE(LEN(AV69)),VALUE(LEN(AV69)-1)))) ->  | BB69: =IF($AT69="","",SUM(AZ69:BA69)) ->  | BC69: =IF(AU69="","",MID(AT69,AU69+1,LEN(AT69)-AU69)) ->  | BD69: =IF(ISERROR(SEARCH(BD$4,$BC69,1))=TRUE,"",SEARCH(BD$4,$BC69,1)) ->  | BE69: =MID(BC69,1,1) ->  | BF69: =IF($AT69="","",IF(BD69="","",VALUE(MID(BC69,BD69+1,SEARCH(")",BC69,1)-BD69-1)))) ->  | BG69: =IF(OR($AT69="",BC69="",BF69<>""),"",VALUE(LEN(BC69))) ->  | BH69: =IF($BC69="","",SUM(BF69:BG69)) ->  | BI69: =IF($AT69="","",SUM(BB69,BH69)) ->  | BJ69: =IF(ISERROR(HLOOKUP(BJ$4,M69:V69,1,FALSE))=TRUE,"","P") ->  | BK69: =IF(ISERROR(HLOOKUP(BK$4,N69:AI69,1,FALSE))=TRUE,"","C") ->  | BL69: =IF(OR(BJ69<>"",BK69<>""),"P","") ->  | BM69: =IF(BI69=0,0,IF(AY69="N",BI69*2,IF(BL69<>"",ROUNDUP((BI69+1)/2,0),BI69))) ->  | BN69: =IF(A69="","",IF(AT69="","集団","")) ->  | BO69: =IF(A69="","",NewPic()) ->  | BP69: =IF(NEXTCELL("OCCURS",M69:V69)<>"",VALUE(NEXTCELL("OCCURS",M69:V69)),"") ->  | BQ69: =IF(AND(BQ68="",BP69=""),"",IF(AND(BQ68<>"",$AH69>BQ68),BQ68,IF($BP69<>"",$AH69,""))) ->  | BR69: =IF(AND(BR68="",BP69=""),"",IF(AND(BR68<>"",$AH69>BR68),BR68,IF(AND($BP69<>"",$AH69<>BQ69),$AH69,""))) ->  | BS69: =IF(AND(BS68="",BP69=""),"",IF(AND(BS68<>"",$AH69>BS68),BS68,IF(AND($BP69<>"",$AH69<>BQ69,$AH69<>BR69),$AH69,""))) ->  | BT69: =IF(AND(BT68="",BP69=""),"",IF(AND(BT68<>"",$AH69>BT68),BT68,IF(AND($BP69<>"",$AH69<>BQ69,$AH69<>BR69,$AH69<>BS69),$AH69,""))) ->  | BU69: =IF(AND(BU68="",BP69=""),"",IF(AND(BU68<>"",$AH69>BU68),BU68,IF(AND($BP69<>"",$AH69<>BQ69,$AH69<>BR69,$AH69<>BS69,$AH69<>BT69),$AH69,""))) ->  | BV69: =IF(ISERROR(VLOOKUP(AS69,$BW70:$BW10000,1,FALSE))=TRUE,"",VLOOKUP(AS69,$BW70:$BW10000,1,FALSE)) ->  | BW69: =IF(NEXTCELL(BW$4,M69:V69)="","",NEXTCELL(BW$4,M69:V69)&CI69) ->  | BX69: =IF(AND(BV69="",BW69="",BX68=""),"",IF(BW69<>"",IF(AND(BX68<>"",AH69>BX68),BX68,AH69),IF(AND(BX68<>"",AH69>BX68),BX68,""))) ->  | BY69: =IF(OR(BN69="",BX69<>""),"",CA69) ->  | BZ69: =IF(BY69="","",groupketa()) ->  | CD69: =IF(CC69="","",groupketa()) ->  | CE69: =IF(BX69="","",IF(BW69<>"",VLOOKUP(BW69,$BV$6:$CV68,27,FALSE),SUM(CE68,CF68))) ->  | CF69: =IF(AND(A69<>"",BX69<>"",BN69=""),BM69,"") ->  | CQ69: =IF(BZ69<>"",BZ69,IF(CB69<>"",CB69,IF(CD69<>"",CD69,IF(CF69<>"",CF69,"")))) ->  | CR69: =IF(BW69<>"",IF(CD69<>"",CD69,CF69),"") ->  | CS69: =IF(BW69<>"",VLOOKUP(BW69,$BV$5:$CQ68,22,FALSE),"") ->  | CT69: =IF(CR69<>CS69,"×","") -> 
D70: =IF($A70="","",IF(C70=0,0,IF(ISERROR(SEARCH(" ",$B70,C70+1))=TRUE,0,SEARCH(" ",$B70,C70+1)))) ->  | AT70: =NEXTCELL(AT$3,M70:V70) ->  | BO70: =IF(A70="","",NewPic()) ->  | BP70: =IF(NEXTCELL("OCCURS",M70:V70)<>"",VALUE(NEXTCELL("OCCURS",M70:V70)),"") ->  | BV70: =IF(ISERROR(VLOOKUP(AS70,$BW71:$BW10000,1,FALSE))=TRUE,"",VLOOKUP(AS70,$BW71:$BW10000,1,FALSE)) ->  | BW70: =IF(NEXTCELL(BW$4,M70:V70)="","",NEXTCELL(BW$4,M70:V70)&CI70) ->  | BZ70: =IF(BY70="","",groupketa()) ->  | CA70: =IF(BX70<>"","",IF(AH70=1,1,IF(A70<>"",IF(CA69<>"",SUM(CA69,CB69),SUM(CE69,CF69)),""))) ->  | CB70: =IF(AND(A70<>"",BX70="",BN70=""),BM70,"") ->  | CC70: =IF(AND(BN70<>"",CE70<>""),CE70,"") ->  | CD70: =IF(CC70="","",groupketa()) ->  | CE70: =IF(BX70="","",IF(BW70<>"",VLOOKUP(BW70,$BV$6:$CV69,27,FALSE),SUM(CE69,CF69))) ->  | CH70: =TRIM(MID(getcell("*>",M70:V70),3,30)) ->  | CS70: =IF(BW70<>"",VLOOKUP(BW70,$BV$5:$CQ69,22,FALSE),"") ->  | CU70: =IF(BV70<>"",AH70,IF(AH70>CU69,CU69,"")) -> 
D71: =IF($A71="","",IF(C71=0,0,IF(ISERROR(SEARCH(" ",$B71,C71+1))=TRUE,0,SEARCH(" ",$B71,C71+1)))) ->  | AK71: =IF($AH71<>AK$4,"",$M71) ->  | BO71: =IF(A71="","",NewPic()) ->  | BP71: =IF(NEXTCELL("OCCURS",M71:V71)<>"",VALUE(NEXTCELL("OCCURS",M71:V71)),"") ->  | BV71: =IF(ISERROR(VLOOKUP(AS71,$BW72:$BW10000,1,FALSE))=TRUE,"",VLOOKUP(AS71,$BW72:$BW10000,1,FALSE)) ->  | BW71: =IF(NEXTCELL(BW$4,M71:V71)="","",NEXTCELL(BW$4,M71:V71)&CI71) ->  | BZ71: =IF(BY71="","",groupketa()) ->  | CD71: =IF(CC71="","",groupketa()) ->  | CE71: =IF(BX71="","",IF(BW71<>"",VLOOKUP(BW71,$BV$6:$CV70,27,FALSE),SUM(CE70,CF70))) ->  | CS71: =IF(BW71<>"",VLOOKUP(BW71,$BV$5:$CQ70,22,FALSE),"") -> 
D72: =IF($A72="","",IF(C72=0,0,IF(ISERROR(SEARCH(" ",$B72,C72+1))=TRUE,0,SEARCH(" ",$B72,C72+1)))) ->  | BO72: =IF(A72="","",NewPic()) ->  | BP72: =IF(NEXTCELL("OCCURS",M72:V72)<>"",VALUE(NEXTCELL("OCCURS",M72:V72)),"") ->  | BV72: =IF(ISERROR(VLOOKUP(AS72,$BW73:$BW10000,1,FALSE))=TRUE,"",VLOOKUP(AS72,$BW73:$BW10000,1,FALSE)) ->  | BW72: =IF(NEXTCELL(BW$4,M72:V72)="","",NEXTCELL(BW$4,M72:V72)&CI72) ->  | BZ72: =IF(BY72="","",groupketa()) ->  | CD72: =IF(CC72="","",groupketa()) ->  | CE72: =IF(BX72="","",IF(BW72<>"",VLOOKUP(BW72,$BV$6:$CV71,27,FALSE),SUM(CE71,CF71))) ->  | CS72: =IF(BW72<>"",VLOOKUP(BW72,$BV$5:$CQ71,22,FALSE),"") -> 
D73: =IF($A73="","",IF(C73=0,0,IF(ISERROR(SEARCH(" ",$B73,C73+1))=TRUE,0,SEARCH(" ",$B73,C73+1)))) ->  | BO73: =IF(A73="","",NewPic()) ->  | BP73: =IF(NEXTCELL("OCCURS",M73:V73)<>"",VALUE(NEXTCELL("OCCURS",M73:V73)),"") ->  | BV73: =IF(ISERROR(VLOOKUP(AS73,$BW74:$BW1005,1,FALSE))=TRUE,"",VLOOKUP(AS73,$BW74:$BW1005,1,FALSE)) ->  | BW73: =IF(NEXTCELL(BW$4,M73:V73)="","",NEXTCELL(BW$4,M73:V73)&CI73) ->  | BZ73: =IF(BY73="","",groupketa()) ->  | CD73: =IF(CC73="","",groupketa()) ->  | CE73: =IF(BX73="","",IF(BW73<>"",VLOOKUP(BW73,$BV$6:$CV72,27,FALSE),SUM(CE72,CF72))) ->  | CS73: =IF(BW73<>"",VLOOKUP(BW73,$BV$5:$CQ72,22,FALSE),"") -> 
D74: =IF($A74="","",IF(C74=0,0,IF(ISERROR(SEARCH(" ",$B74,C74+1))=TRUE,0,SEARCH(" ",$B74,C74+1)))) ->  | BO74: =IF(A74="","",NewPic()) ->  | BP74: =IF(NEXTCELL("OCCURS",M74:V74)<>"",VALUE(NEXTCELL("OCCURS",M74:V74)),"") ->  | BW74: =IF(NEXTCELL(BW$4,M74:V74)="","",NEXTCELL(BW$4,M74:V74)&CI74) ->  | BZ74: =IF(BY74="","",groupketa()) ->  | CD74: =IF(CC74="","",groupketa()) ->  | CE74: =IF(BX74="","",IF(BW74<>"",VLOOKUP(BW74,$BV$6:$CV73,27,FALSE),SUM(CE73,CF73))) ->  | CS74: =IF(BW74<>"",VLOOKUP(BW74,$BV$5:$CQ73,22,FALSE),"") -> 
D75: =IF($A75="","",IF(C75=0,0,IF(ISERROR(SEARCH(" ",$B75,C75+1))=TRUE,0,SEARCH(" ",$B75,C75+1)))) ->  | AI75: =IF($AH75<>AI$4,"",$M75) ->  | BO75: =IF(A75="","",NewPic()) ->  | BP75: =IF(NEXTCELL("OCCURS",M75:V75)<>"",VALUE(NEXTCELL("OCCURS",M75:V75)),"") ->  | BW75: =IF(NEXTCELL(BW$4,M75:V75)="","",NEXTCELL(BW$4,M75:V75)&CI75) ->  | BZ75: =IF(BY75="","",groupketa()) ->  | CD75: =IF(CC75="","",groupketa()) ->  | CE75: =IF(BX75="","",IF(BW75<>"",VLOOKUP(BW75,$BV$6:$CV74,27,FALSE),SUM(CE74,CF74))) ->  | CS75: =IF(BW75<>"",VLOOKUP(BW75,$BV$5:$CQ74,22,FALSE),"") -> 
D76: =IF($A76="","",IF(C76=0,0,IF(ISERROR(SEARCH(" ",$B76,C76+1))=TRUE,0,SEARCH(" ",$B76,C76+1)))) ->  | BO76: =IF(A76="","",NewPic()) ->  | BP76: =IF(NEXTCELL("OCCURS",M76:V76)<>"",VALUE(NEXTCELL("OCCURS",M76:V76)),"") ->  | BW76: =IF(NEXTCELL(BW$4,M76:V76)="","",NEXTCELL(BW$4,M76:V76)&CI76) ->  | BZ76: =IF(BY76="","",groupketa()) ->  | CD76: =IF(CC76="","",groupketa()) ->  | CE76: =IF(BX76="","",IF(BW76<>"",VLOOKUP(BW76,$BV$6:$CV75,27,FALSE),SUM(CE75,CF75))) ->  | CS76: =IF(BW76<>"",VLOOKUP(BW76,$BV$5:$CQ75,22,FALSE),"") ->  | CV76: =IF(CA76<>"",CA76,CE76) -> 
D77: =IF($A77="","",IF(C77=0,0,IF(ISERROR(SEARCH(" ",$B77,C77+1))=TRUE,0,SEARCH(" ",$B77,C77+1)))) ->  | BO77: =IF(A77="","",NewPic()) ->  | BP77: =IF(NEXTCELL("OCCURS",M77:V77)<>"",VALUE(NEXTCELL("OCCURS",M77:V77)),"") ->  | BW77: =IF(NEXTCELL(BW$4,M77:V77)="","",NEXTCELL(BW$4,M77:V77)&CI77) ->  | BZ77: =IF(BY77="","",groupketa()) ->  | CD77: =IF(CC77="","",groupketa()) ->  | CE77: =IF(BX77="","",IF(BW77<>"",VLOOKUP(BW77,$BV$6:$CV76,27,FALSE),SUM(CE76,CF76))) ->  | CS77: =IF(BW77<>"",VLOOKUP(BW77,$BV$5:$CQ76,22,FALSE),"") -> 
D78: =IF($A78="","",IF(C78=0,0,IF(ISERROR(SEARCH(" ",$B78,C78+1))=TRUE,0,SEARCH(" ",$B78,C78+1)))) ->  | BO78: =IF(A78="","",NewPic()) ->  | BP78: =IF(NEXTCELL("OCCURS",M78:V78)<>"",VALUE(NEXTCELL("OCCURS",M78:V78)),"") ->  | BW78: =IF(NEXTCELL(BW$4,M78:V78)="","",NEXTCELL(BW$4,M78:V78)&CI78) ->  | BZ78: =IF(BY78="","",groupketa()) ->  | CD78: =IF(CC78="","",groupketa()) ->  | CE78: =IF(BX78="","",IF(BW78<>"",VLOOKUP(BW78,$BV$6:$CV77,27,FALSE),SUM(CE77,CF77))) ->  | CS78: =IF(BW78<>"",VLOOKUP(BW78,$BV$5:$CQ77,22,FALSE),"") -> 
D79: =IF($A79="","",IF(C79=0,0,IF(ISERROR(SEARCH(" ",$B79,C79+1))=TRUE,0,SEARCH(" ",$B79,C79+1)))) ->  | BO79: =IF(A79="","",NewPic()) ->  | BP79: =IF(NEXTCELL("OCCURS",M79:V79)<>"",VALUE(NEXTCELL("OCCURS",M79:V79)),"") ->  | BW79: =IF(NEXTCELL(BW$4,M79:V79)="","",NEXTCELL(BW$4,M79:V79)&CI79) ->  | BZ79: =IF(BY79="","",groupketa()) ->  | CD79: =IF(CC79="","",groupketa()) ->  | CE79: =IF(BX79="","",IF(BW79<>"",VLOOKUP(BW79,$BV$6:$CV78,27,FALSE),SUM(CE78,CF78))) ->  | CS79: =IF(BW79<>"",VLOOKUP(BW79,$BV$5:$CQ78,22,FALSE),"") -> 
D80: =IF($A80="","",IF(C80=0,0,IF(ISERROR(SEARCH(" ",$B80,C80+1))=TRUE,0,SEARCH(" ",$B80,C80+1)))) ->  | BO80: =IF(A80="","",NewPic()) ->  | BP80: =IF(NEXTCELL("OCCURS",M80:V80)<>"",VALUE(NEXTCELL("OCCURS",M80:V80)),"") ->  | BW80: =IF(NEXTCELL(BW$4,M80:V80)="","",NEXTCELL(BW$4,M80:V80)&CI80) ->  | BZ80: =IF(BY80="","",groupketa()) ->  | CD80: =IF(CC80="","",groupketa()) ->  | CE80: =IF(BX80="","",IF(BW80<>"",VLOOKUP(BW80,$BV$6:$CV79,27,FALSE),SUM(CE79,CF79))) ->  | CS80: =IF(BW80<>"",VLOOKUP(BW80,$BV$5:$CQ79,22,FALSE),"") -> 
D81: =IF($A81="","",IF(C81=0,0,IF(ISERROR(SEARCH(" ",$B81,C81+1))=TRUE,0,SEARCH(" ",$B81,C81+1)))) ->  | BO81: =IF(A81="","",NewPic()) ->  | BP81: =IF(NEXTCELL("OCCURS",M81:V81)<>"",VALUE(NEXTCELL("OCCURS",M81:V81)),"") ->  | BW81: =IF(NEXTCELL(BW$4,M81:V81)="","",NEXTCELL(BW$4,M81:V81)&CI81) ->  | BZ81: =IF(BY81="","",groupketa()) ->  | CD81: =IF(CC81="","",groupketa()) ->  | CE81: =IF(BX81="","",IF(BW81<>"",VLOOKUP(BW81,$BV$6:$CV80,27,FALSE),SUM(CE80,CF80))) ->  | CS81: =IF(BW81<>"",VLOOKUP(BW81,$BV$5:$CQ80,22,FALSE),"") -> 
D82: =IF($A82="","",IF(C82=0,0,IF(ISERROR(SEARCH(" ",$B82,C82+1))=TRUE,0,SEARCH(" ",$B82,C82+1)))) ->  | BO82: =IF(A82="","",NewPic()) ->  | BP82: =IF(NEXTCELL("OCCURS",M82:V82)<>"",VALUE(NEXTCELL("OCCURS",M82:V82)),"") ->  | BW82: =IF(NEXTCELL(BW$4,M82:V82)="","",NEXTCELL(BW$4,M82:V82)&CI82) ->  | BZ82: =IF(BY82="","",groupketa()) ->  | CD82: =IF(CC82="","",groupketa()) ->  | CE82: =IF(BX82="","",IF(BW82<>"",VLOOKUP(BW82,$BV$6:$CV81,27,FALSE),SUM(CE81,CF81))) ->  | CS82: =IF(BW82<>"",VLOOKUP(BW82,$BV$5:$CQ81,22,FALSE),"") -> 
D83: =IF($A83="","",IF(C83=0,0,IF(ISERROR(SEARCH(" ",$B83,C83+1))=TRUE,0,SEARCH(" ",$B83,C83+1)))) ->  | BO83: =IF(A83="","",NewPic()) ->  | BP83: =IF(NEXTCELL("OCCURS",M83:V83)<>"",VALUE(NEXTCELL("OCCURS",M83:V83)),"") ->  | BW83: =IF(NEXTCELL(BW$4,M83:V83)="","",NEXTCELL(BW$4,M83:V83)&CI83) ->  | BZ83: =IF(BY83="","",groupketa()) ->  | CD83: =IF(CC83="","",groupketa()) ->  | CE83: =IF(BX83="","",IF(BW83<>"",VLOOKUP(BW83,$BV$6:$CV82,27,FALSE),SUM(CE82,CF82))) ->  | CS83: =IF(BW83<>"",VLOOKUP(BW83,$BV$5:$CQ82,22,FALSE),"") -> 
D84: =IF($A84="","",IF(C84=0,0,IF(ISERROR(SEARCH(" ",$B84,C84+1))=TRUE,0,SEARCH(" ",$B84,C84+1)))) ->  | BO84: =IF(A84="","",NewPic()) ->  | BP84: =IF(NEXTCELL("OCCURS",M84:V84)<>"",VALUE(NEXTCELL("OCCURS",M84:V84)),"") ->  | BW84: =IF(NEXTCELL(BW$4,M84:V84)="","",NEXTCELL(BW$4,M84:V84)&CI84) ->  | BZ84: =IF(BY84="","",groupketa()) ->  | CD84: =IF(CC84="","",groupketa()) ->  | CE84: =IF(BX84="","",IF(BW84<>"",VLOOKUP(BW84,$BV$6:$CV83,27,FALSE),SUM(CE83,CF83))) ->  | CS84: =IF(BW84<>"",VLOOKUP(BW84,$BV$5:$CQ83,22,FALSE),"") -> 
D85: =IF($A85="","",IF(C85=0,0,IF(ISERROR(SEARCH(" ",$B85,C85+1))=TRUE,0,SEARCH(" ",$B85,C85+1)))) ->  | AI85: =IF($AH85<>AI$4,"",$M85) ->  | BO85: =IF(A85="","",NewPic()) ->  | BP85: =IF(NEXTCELL("OCCURS",M85:V85)<>"",VALUE(NEXTCELL("OCCURS",M85:V85)),"") ->  | BW85: =IF(NEXTCELL(BW$4,M85:V85)="","",NEXTCELL(BW$4,M85:V85)&CI85) ->  | BZ85: =IF(BY85="","",groupketa()) ->  | CD85: =IF(CC85="","",groupketa()) ->  | CE85: =IF(BX85="","",IF(BW85<>"",VLOOKUP(BW85,$BV$6:$CV84,27,FALSE),SUM(CE84,CF84))) ->  | CS85: =IF(BW85<>"",VLOOKUP(BW85,$BV$5:$CQ84,22,FALSE),"") -> 
D86: =IF($A86="","",IF(C86=0,0,IF(ISERROR(SEARCH(" ",$B86,C86+1))=TRUE,0,SEARCH(" ",$B86,C86+1)))) ->  | BO86: =IF(A86="","",NewPic()) ->  | BP86: =IF(NEXTCELL("OCCURS",M86:V86)<>"",VALUE(NEXTCELL("OCCURS",M86:V86)),"") ->  | BW86: =IF(NEXTCELL(BW$4,M86:V86)="","",NEXTCELL(BW$4,M86:V86)&CI86) ->  | BZ86: =IF(BY86="","",groupketa()) ->  | CD86: =IF(CC86="","",groupketa()) ->  | CE86: =IF(BX86="","",IF(BW86<>"",VLOOKUP(BW86,$BV$6:$CV85,27,FALSE),SUM(CE85,CF85))) ->  | CS86: =IF(BW86<>"",VLOOKUP(BW86,$BV$5:$CQ85,22,FALSE),"") -> 
D87: =IF($A87="","",IF(C87=0,0,IF(ISERROR(SEARCH(" ",$B87,C87+1))=TRUE,0,SEARCH(" ",$B87,C87+1)))) ->  | BO87: =IF(A87="","",NewPic()) ->  | BP87: =IF(NEXTCELL("OCCURS",M87:V87)<>"",VALUE(NEXTCELL("OCCURS",M87:V87)),"") ->  | BW87: =IF(NEXTCELL(BW$4,M87:V87)="","",NEXTCELL(BW$4,M87:V87)&CI87) ->  | BZ87: =IF(BY87="","",groupketa()) ->  | CD87: =IF(CC87="","",groupketa()) ->  | CE87: =IF(BX87="","",IF(BW87<>"",VLOOKUP(BW87,$BV$6:$CV86,27,FALSE),SUM(CE86,CF86))) ->  | CS87: =IF(BW87<>"",VLOOKUP(BW87,$BV$5:$CQ86,22,FALSE),"") -> 
D88: =IF($A88="","",IF(C88=0,0,IF(ISERROR(SEARCH(" ",$B88,C88+1))=TRUE,0,SEARCH(" ",$B88,C88+1)))) ->  | BO88: =IF(A88="","",NewPic()) ->  | BP88: =IF(NEXTCELL("OCCURS",M88:V88)<>"",VALUE(NEXTCELL("OCCURS",M88:V88)),"") ->  | BW88: =IF(NEXTCELL(BW$4,M88:V88)="","",NEXTCELL(BW$4,M88:V88)&CI88) ->  | BZ88: =IF(BY88="","",groupketa()) ->  | CD88: =IF(CC88="","",groupketa()) ->  | CE88: =IF(BX88="","",IF(BW88<>"",VLOOKUP(BW88,$BV$6:$CV87,27,FALSE),SUM(CE87,CF87))) ->  | CS88: =IF(BW88<>"",VLOOKUP(BW88,$BV$5:$CQ87,22,FALSE),"") -> 
D89: =IF($A89="","",IF(C89=0,0,IF(ISERROR(SEARCH(" ",$B89,C89+1))=TRUE,0,SEARCH(" ",$B89,C89+1)))) ->  | BO89: =IF(A89="","",NewPic()) ->  | BP89: =IF(NEXTCELL("OCCURS",M89:V89)<>"",VALUE(NEXTCELL("OCCURS",M89:V89)),"") ->  | BW89: =IF(NEXTCELL(BW$4,M89:V89)="","",NEXTCELL(BW$4,M89:V89)&CI89) ->  | BZ89: =IF(BY89="","",groupketa()) ->  | CD89: =IF(CC89="","",groupketa()) ->  | CE89: =IF(BX89="","",IF(BW89<>"",VLOOKUP(BW89,$BV$6:$CV88,27,FALSE),SUM(CE88,CF88))) ->  | CS89: =IF(BW89<>"",VLOOKUP(BW89,$BV$5:$CQ88,22,FALSE),"") -> 
D90: =IF($A90="","",IF(C90=0,0,IF(ISERROR(SEARCH(" ",$B90,C90+1))=TRUE,0,SEARCH(" ",$B90,C90+1)))) ->  | BO90: =IF(A90="","",NewPic()) ->  | BP90: =IF(NEXTCELL("OCCURS",M90:V90)<>"",VALUE(NEXTCELL("OCCURS",M90:V90)),"") ->  | BW90: =IF(NEXTCELL(BW$4,M90:V90)="","",NEXTCELL(BW$4,M90:V90)&CI90) ->  | BZ90: =IF(BY90="","",groupketa()) ->  | CD90: =IF(CC90="","",groupketa()) ->  | CE90: =IF(BX90="","",IF(BW90<>"",VLOOKUP(BW90,$BV$6:$CV89,27,FALSE),SUM(CE89,CF89))) ->  | CS90: =IF(BW90<>"",VLOOKUP(BW90,$BV$5:$CQ89,22,FALSE),"") -> 
D91: =IF($A91="","",IF(C91=0,0,IF(ISERROR(SEARCH(" ",$B91,C91+1))=TRUE,0,SEARCH(" ",$B91,C91+1)))) ->  | BO91: =IF(A91="","",NewPic()) ->  | BP91: =IF(NEXTCELL("OCCURS",M91:V91)<>"",VALUE(NEXTCELL("OCCURS",M91:V91)),"") ->  | BW91: =IF(NEXTCELL(BW$4,M91:V91)="","",NEXTCELL(BW$4,M91:V91)&CI91) ->  | BZ91: =IF(BY91="","",groupketa()) ->  | CD91: =IF(CC91="","",groupketa()) ->  | CE91: =IF(BX91="","",IF(BW91<>"",VLOOKUP(BW91,$BV$6:$CV90,27,FALSE),SUM(CE90,CF90))) ->  | CS91: =IF(BW91<>"",VLOOKUP(BW91,$BV$5:$CQ90,22,FALSE),"") -> 
D92: =IF($A92="","",IF(C92=0,0,IF(ISERROR(SEARCH(" ",$B92,C92+1))=TRUE,0,SEARCH(" ",$B92,C92+1)))) ->  | BO92: =IF(A92="","",NewPic()) ->  | BP92: =IF(NEXTCELL("OCCURS",M92:V92)<>"",VALUE(NEXTCELL("OCCURS",M92:V92)),"") ->  | BW92: =IF(NEXTCELL(BW$4,M92:V92)="","",NEXTCELL(BW$4,M92:V92)&CI92) ->  | BZ92: =IF(BY92="","",groupketa()) ->  | CD92: =IF(CC92="","",groupketa()) ->  | CE92: =IF(BX92="","",IF(BW92<>"",VLOOKUP(BW92,$BV$6:$CV91,27,FALSE),SUM(CE91,CF91))) ->  | CS92: =IF(BW92<>"",VLOOKUP(BW92,$BV$5:$CQ91,22,FALSE),"") -> 
D93: =IF($A93="","",IF(C93=0,0,IF(ISERROR(SEARCH(" ",$B93,C93+1))=TRUE,0,SEARCH(" ",$B93,C93+1)))) ->  | BO93: =IF(A93="","",NewPic()) ->  | BP93: =IF(NEXTCELL("OCCURS",M93:V93)<>"",VALUE(NEXTCELL("OCCURS",M93:V93)),"") ->  | BW93: =IF(NEXTCELL(BW$4,M93:V93)="","",NEXTCELL(BW$4,M93:V93)&CI93) ->  | BZ93: =IF(BY93="","",groupketa()) ->  | CD93: =IF(CC93="","",groupketa()) ->  | CE93: =IF(BX93="","",IF(BW93<>"",VLOOKUP(BW93,$BV$6:$CV92,27,FALSE),SUM(CE92,CF92))) ->  | CS93: =IF(BW93<>"",VLOOKUP(BW93,$BV$5:$CQ92,22,FALSE),"") -> 
D94: =IF($A94="","",IF(C94=0,0,IF(ISERROR(SEARCH(" ",$B94,C94+1))=TRUE,0,SEARCH(" ",$B94,C94+1)))) ->  | BO94: =IF(A94="","",NewPic()) ->  | BP94: =IF(NEXTCELL("OCCURS",M94:V94)<>"",VALUE(NEXTCELL("OCCURS",M94:V94)),"") ->  | BW94: =IF(NEXTCELL(BW$4,M94:V94)="","",NEXTCELL(BW$4,M94:V94)&CI94) ->  | BZ94: =IF(BY94="","",groupketa()) ->  | CD94: =IF(CC94="","",groupketa()) ->  | CE94: =IF(BX94="","",IF(BW94<>"",VLOOKUP(BW94,$BV$6:$CV93,27,FALSE),SUM(CE93,CF93))) ->  | CS94: =IF(BW94<>"",VLOOKUP(BW94,$BV$5:$CQ93,22,FALSE),"") -> 
D95: =IF($A95="","",IF(C95=0,0,IF(ISERROR(SEARCH(" ",$B95,C95+1))=TRUE,0,SEARCH(" ",$B95,C95+1)))) ->  | AI95: =IF($AH95<>AI$4,"",$M95) ->  | BO95: =IF(A95="","",NewPic()) ->  | BP95: =IF(NEXTCELL("OCCURS",M95:V95)<>"",VALUE(NEXTCELL("OCCURS",M95:V95)),"") ->  | BW95: =IF(NEXTCELL(BW$4,M95:V95)="","",NEXTCELL(BW$4,M95:V95)&CI95) ->  | BZ95: =IF(BY95="","",groupketa()) ->  | CD95: =IF(CC95="","",groupketa()) ->  | CE95: =IF(BX95="","",IF(BW95<>"",VLOOKUP(BW95,$BV$6:$CV94,27,FALSE),SUM(CE94,CF94))) ->  | CS95: =IF(BW95<>"",VLOOKUP(BW95,$BV$5:$CQ94,22,FALSE),"") -> 
D96: =IF($A96="","",IF(C96=0,0,IF(ISERROR(SEARCH(" ",$B96,C96+1))=TRUE,0,SEARCH(" ",$B96,C96+1)))) ->  | BO96: =IF(A96="","",NewPic()) ->  | BP96: =IF(NEXTCELL("OCCURS",M96:V96)<>"",VALUE(NEXTCELL("OCCURS",M96:V96)),"") ->  | BW96: =IF(NEXTCELL(BW$4,M96:V96)="","",NEXTCELL(BW$4,M96:V96)&CI96) ->  | BZ96: =IF(BY96="","",groupketa()) ->  | CD96: =IF(CC96="","",groupketa()) ->  | CE96: =IF(BX96="","",IF(BW96<>"",VLOOKUP(BW96,$BV$6:$CV95,27,FALSE),SUM(CE95,CF95))) ->  | CS96: =IF(BW96<>"",VLOOKUP(BW96,$BV$5:$CQ95,22,FALSE),"") -> 
D97: =IF($A97="","",IF(C97=0,0,IF(ISERROR(SEARCH(" ",$B97,C97+1))=TRUE,0,SEARCH(" ",$B97,C97+1)))) ->  | BO97: =IF(A97="","",NewPic()) ->  | BP97: =IF(NEXTCELL("OCCURS",M97:V97)<>"",VALUE(NEXTCELL("OCCURS",M97:V97)),"") ->  | BW97: =IF(NEXTCELL(BW$4,M97:V97)="","",NEXTCELL(BW$4,M97:V97)&CI97) ->  | BZ97: =IF(BY97="","",groupketa()) ->  | CD97: =IF(CC97="","",groupketa()) ->  | CE97: =IF(BX97="","",IF(BW97<>"",VLOOKUP(BW97,$BV$6:$CV96,27,FALSE),SUM(CE96,CF96))) ->  | CS97: =IF(BW97<>"",VLOOKUP(BW97,$BV$5:$CQ96,22,FALSE),"") -> 
D98: =IF($A98="","",IF(C98=0,0,IF(ISERROR(SEARCH(" ",$B98,C98+1))=TRUE,0,SEARCH(" ",$B98,C98+1)))) ->  | BO98: =IF(A98="","",NewPic()) ->  | BP98: =IF(NEXTCELL("OCCURS",M98:V98)<>"",VALUE(NEXTCELL("OCCURS",M98:V98)),"") ->  | BW98: =IF(NEXTCELL(BW$4,M98:V98)="","",NEXTCELL(BW$4,M98:V98)&CI98) ->  | BZ98: =IF(BY98="","",groupketa()) ->  | CD98: =IF(CC98="","",groupketa()) ->  | CE98: =IF(BX98="","",IF(BW98<>"",VLOOKUP(BW98,$BV$6:$CV97,27,FALSE),SUM(CE97,CF97))) ->  | CS98: =IF(BW98<>"",VLOOKUP(BW98,$BV$5:$CQ97,22,FALSE),"") -> 
D99: =IF($A99="","",IF(C99=0,0,IF(ISERROR(SEARCH(" ",$B99,C99+1))=TRUE,0,SEARCH(" ",$B99,C99+1)))) ->  | BO99: =IF(A99="","",NewPic()) ->  | BP99: =IF(NEXTCELL("OCCURS",M99:V99)<>"",VALUE(NEXTCELL("OCCURS",M99:V99)),"") ->  | BW99: =IF(NEXTCELL(BW$4,M99:V99)="","",NEXTCELL(BW$4,M99:V99)&CI99) ->  | BZ99: =IF(BY99="","",groupketa()) ->  | CD99: =IF(CC99="","",groupketa()) ->  | CE99: =IF(BX99="","",IF(BW99<>"",VLOOKUP(BW99,$BV$6:$CV98,27,FALSE),SUM(CE98,CF98))) ->  | CS99: =IF(BW99<>"",VLOOKUP(BW99,$BV$5:$CQ98,22,FALSE),"") -> 
D100: =IF($A100="","",IF(C100=0,0,IF(ISERROR(SEARCH(" ",$B100,C100+1))=TRUE,0,SEARCH(" ",$B100,C100+1)))) ->  | BO100: =IF(A100="","",NewPic()) ->  | BP100: =IF(NEXTCELL("OCCURS",M100:V100)<>"",VALUE(NEXTCELL("OCCURS",M100:V100)),"") ->  | BW100: =IF(NEXTCELL(BW$4,M100:V100)="","",NEXTCELL(BW$4,M100:V100)&CI100) ->  | BZ100: =IF(BY100="","",groupketa()) ->  | CD100: =IF(CC100="","",groupketa()) ->  | CE100: =IF(BX100="","",IF(BW100<>"",VLOOKUP(BW100,$BV$6:$CV99,27,FALSE),SUM(CE99,CF99))) ->  | CS100: =IF(BW100<>"",VLOOKUP(BW100,$BV$5:$CQ99,22,FALSE),"") -> 
D101: =IF($A101="","",IF(C101=0,0,IF(ISERROR(SEARCH(" ",$B101,C101+1))=TRUE,0,SEARCH(" ",$B101,C101+1)))) ->  | BO101: =IF(A101="","",NewPic()) ->  | BP101: =IF(NEXTCELL("OCCURS",M101:V101)<>"",VALUE(NEXTCELL("OCCURS",M101:V101)),"") ->  | BW101: =IF(NEXTCELL(BW$4,M101:V101)="","",NEXTCELL(BW$4,M101:V101)&CI101) ->  | BZ101: =IF(BY101="","",groupketa()) ->  | CD101: =IF(CC101="","",groupketa()) ->  | CE101: =IF(BX101="","",IF(BW101<>"",VLOOKUP(BW101,$BV$6:$CV100,27,FALSE),SUM(CE100,CF100))) ->  | CS101: =IF(BW101<>"",VLOOKUP(BW101,$BV$5:$CQ100,22,FALSE),"") -> 
D102: =IF($A102="","",IF(C102=0,0,IF(ISERROR(SEARCH(" ",$B102,C102+1))=TRUE,0,SEARCH(" ",$B102,C102+1)))) ->  | BO102: =IF(A102="","",NewPic()) ->  | BP102: =IF(NEXTCELL("OCCURS",M102:V102)<>"",VALUE(NEXTCELL("OCCURS",M102:V102)),"") ->  | BW102: =IF(NEXTCELL(BW$4,M102:V102)="","",NEXTCELL(BW$4,M102:V102)&CI102) ->  | BZ102: =IF(BY102="","",groupketa()) ->  | CD102: =IF(CC102="","",groupketa()) ->  | CE102: =IF(BX102="","",IF(BW102<>"",VLOOKUP(BW102,$BV$6:$CV101,27,FALSE),SUM(CE101,CF101))) ->  | CS102: =IF(BW102<>"",VLOOKUP(BW102,$BV$5:$CQ101,22,FALSE),"") -> 
D103: =IF($A103="","",IF(C103=0,0,IF(ISERROR(SEARCH(" ",$B103,C103+1))=TRUE,0,SEARCH(" ",$B103,C103+1)))) ->  | BO103: =IF(A103="","",NewPic()) ->  | BP103: =IF(NEXTCELL("OCCURS",M103:V103)<>"",VALUE(NEXTCELL("OCCURS",M103:V103)),"") ->  | BW103: =IF(NEXTCELL(BW$4,M103:V103)="","",NEXTCELL(BW$4,M103:V103)&CI103) ->  | BZ103: =IF(BY103="","",groupketa()) ->  | CD103: =IF(CC103="","",groupketa()) ->  | CE103: =IF(BX103="","",IF(BW103<>"",VLOOKUP(BW103,$BV$6:$CV102,27,FALSE),SUM(CE102,CF102))) ->  | CS103: =IF(BW103<>"",VLOOKUP(BW103,$BV$5:$CQ102,22,FALSE),"") -> 
D104: =IF($A104="","",IF(C104=0,0,IF(ISERROR(SEARCH(" ",$B104,C104+1))=TRUE,0,SEARCH(" ",$B104,C104+1)))) ->  | BO104: =IF(A104="","",NewPic()) ->  | BP104: =IF(NEXTCELL("OCCURS",M104:V104)<>"",VALUE(NEXTCELL("OCCURS",M104:V104)),"") ->  | BW104: =IF(NEXTCELL(BW$4,M104:V104)="","",NEXTCELL(BW$4,M104:V104)&CI104) ->  | BZ104: =IF(BY104="","",groupketa()) ->  | CC104: =IF(AND(BN104<>"",CE104<>""),CE104,"") ->  | CD104: =IF(CC104="","",groupketa()) ->  | CE104: =IF(BX104="","",IF(BW104<>"",VLOOKUP(BW104,$BV$6:$CV103,27,FALSE),SUM(CE103,CF103))) ->  | CS104: =IF(BW104<>"",VLOOKUP(BW104,$BV$5:$CQ103,22,FALSE),"") -> 
D105: =IF($A105="","",IF(C105=0,0,IF(ISERROR(SEARCH(" ",$B105,C105+1))=TRUE,0,SEARCH(" ",$B105,C105+1)))) ->  | AI105: =IF($AH105<>AI$4,"",$M105) ->  | BO105: =IF(A105="","",NewPic()) ->  | BP105: =IF(NEXTCELL("OCCURS",M105:V105)<>"",VALUE(NEXTCELL("OCCURS",M105:V105)),"") ->  | BW105: =IF(NEXTCELL(BW$4,M105:V105)="","",NEXTCELL(BW$4,M105:V105)&CI105) ->  | BZ105: =IF(BY105="","",groupketa()) ->  | CC105: =IF(AND(BN105<>"",CE105<>""),CE105,"") ->  | CD105: =IF(CC105="","",groupketa()) ->  | CE105: =IF(BX105="","",IF(BW105<>"",VLOOKUP(BW105,$BV$6:$CV104,27,FALSE),SUM(CE104,CF104))) ->  | CS105: =IF(BW105<>"",VLOOKUP(BW105,$BV$5:$CQ104,22,FALSE),"") -> 
D106: =IF($A106="","",IF(C106=0,0,IF(ISERROR(SEARCH(" ",$B106,C106+1))=TRUE,0,SEARCH(" ",$B106,C106+1)))) ->  | BO106: =IF(A106="","",NewPic()) ->  | BP106: =IF(NEXTCELL("OCCURS",M106:V106)<>"",VALUE(NEXTCELL("OCCURS",M106:V106)),"") ->  | BW106: =IF(NEXTCELL(BW$4,M106:V106)="","",NEXTCELL(BW$4,M106:V106)&CI106) ->  | BZ106: =IF(BY106="","",groupketa()) ->  | CA106: =IF(BX106<>"","",IF(AH106=1,1,IF(A106<>"",IF(CA105<>"",SUM(CA105,CB105),SUM(CE105,CF105)),""))) ->  | CD106: =IF(CC106="","",groupketa()) ->  | CE106: =IF(BX106="","",IF(BW106<>"",VLOOKUP(BW106,$BV$6:$CV105,27,FALSE),SUM(CE105,CF105))) ->  | CS106: =IF(BW106<>"",VLOOKUP(BW106,$BV$5:$CQ105,22,FALSE),"") -> 
D107: =IF($A107="","",IF(C107=0,0,IF(ISERROR(SEARCH(" ",$B107,C107+1))=TRUE,0,SEARCH(" ",$B107,C107+1)))) ->  | BO107: =IF(A107="","",NewPic()) ->  | BP107: =IF(NEXTCELL("OCCURS",M107:V107)<>"",VALUE(NEXTCELL("OCCURS",M107:V107)),"") ->  | BW107: =IF(NEXTCELL(BW$4,M107:V107)="","",NEXTCELL(BW$4,M107:V107)&CI107) ->  | BZ107: =IF(BY107="","",groupketa()) ->  | CA107: =IF(BX107<>"","",IF(AH107=1,1,IF(A107<>"",IF(CA106<>"",SUM(CA106,CB106),SUM(CE106,CF106)),""))) ->  | CD107: =IF(CC107="","",groupketa()) ->  | CE107: =IF(BX107="","",IF(BW107<>"",VLOOKUP(BW107,$BV$6:$CV106,27,FALSE),SUM(CE106,CF106))) ->  | CS107: =IF(BW107<>"",VLOOKUP(BW107,$BV$5:$CQ106,22,FALSE),"") -> 
D108: =IF($A108="","",IF(C108=0,0,IF(ISERROR(SEARCH(" ",$B108,C108+1))=TRUE,0,SEARCH(" ",$B108,C108+1)))) ->  | BO108: =IF(A108="","",NewPic()) ->  | BP108: =IF(NEXTCELL("OCCURS",M108:V108)<>"",VALUE(NEXTCELL("OCCURS",M108:V108)),"") ->  | BW108: =IF(NEXTCELL(BW$4,M108:V108)="","",NEXTCELL(BW$4,M108:V108)&CI108) ->  | BY108: =IF(OR(BN108="",BX108<>""),"",CA108) ->  | BZ108: =IF(BY108="","",groupketa()) ->  | CA108: =IF(BX108<>"","",IF(AH108=1,1,IF(A108<>"",IF(CA107<>"",SUM(CA107,CB107),SUM(CE107,CF107)),""))) ->  | CD108: =IF(CC108="","",groupketa()) ->  | CE108: =IF(BX108="","",IF(BW108<>"",VLOOKUP(BW108,$BV$6:$CV107,27,FALSE),SUM(CE107,CF107))) ->  | CS108: =IF(BW108<>"",VLOOKUP(BW108,$BV$5:$CQ107,22,FALSE),"") -> 
D109: =IF($A109="","",IF(C109=0,0,IF(ISERROR(SEARCH(" ",$B109,C109+1))=TRUE,0,SEARCH(" ",$B109,C109+1)))) ->  | BO109: =IF(A109="","",NewPic()) ->  | BP109: =IF(NEXTCELL("OCCURS",M109:V109)<>"",VALUE(NEXTCELL("OCCURS",M109:V109)),"") ->  | BW109: =IF(NEXTCELL(BW$4,M109:V109)="","",NEXTCELL(BW$4,M109:V109)&CI109) ->  | BZ109: =IF(BY109="","",groupketa()) ->  | CA109: =IF(BX109<>"","",IF(AH109=1,1,IF(A109<>"",IF(CA108<>"",SUM(CA108,CB108),SUM(CE108,CF108)),""))) ->  | CD109: =IF(CC109="","",groupketa()) ->  | CE109: =IF(BX109="","",IF(BW109<>"",VLOOKUP(BW109,$BV$6:$CV108,27,FALSE),SUM(CE108,CF108))) ->  | CS109: =IF(BW109<>"",VLOOKUP(BW109,$BV$5:$CQ108,22,FALSE),"") -> 
D110: =IF($A110="","",IF(C110=0,0,IF(ISERROR(SEARCH(" ",$B110,C110+1))=TRUE,0,SEARCH(" ",$B110,C110+1)))) ->  | BO110: =IF(A110="","",NewPic()) ->  | BP110: =IF(NEXTCELL("OCCURS",M110:V110)<>"",VALUE(NEXTCELL("OCCURS",M110:V110)),"") ->  | BW110: =IF(NEXTCELL(BW$4,M110:V110)="","",NEXTCELL(BW$4,M110:V110)&CI110) ->  | BZ110: =IF(BY110="","",groupketa()) ->  | CD110: =IF(CC110="","",groupketa()) ->  | CE110: =IF(BX110="","",IF(BW110<>"",VLOOKUP(BW110,$BV$6:$CV109,27,FALSE),SUM(CE109,CF109))) ->  | CS110: =IF(BW110<>"",VLOOKUP(BW110,$BV$5:$CQ109,22,FALSE),"") -> 
D111: =IF($A111="","",IF(C111=0,0,IF(ISERROR(SEARCH(" ",$B111,C111+1))=TRUE,0,SEARCH(" ",$B111,C111+1)))) ->  | BO111: =IF(A111="","",NewPic()) ->  | BP111: =IF(NEXTCELL("OCCURS",M111:V111)<>"",VALUE(NEXTCELL("OCCURS",M111:V111)),"") ->  | BW111: =IF(NEXTCELL(BW$4,M111:V111)="","",NEXTCELL(BW$4,M111:V111)&CI111) ->  | BZ111: =IF(BY111="","",groupketa()) ->  | CD111: =IF(CC111="","",groupketa()) ->  | CE111: =IF(BX111="","",IF(BW111<>"",VLOOKUP(BW111,$BV$6:$CV110,27,FALSE),SUM(CE110,CF110))) ->  | CS111: =IF(BW111<>"",VLOOKUP(BW111,$BV$5:$CQ110,22,FALSE),"") -> 
D112: =IF($A112="","",IF(C112=0,0,IF(ISERROR(SEARCH(" ",$B112,C112+1))=TRUE,0,SEARCH(" ",$B112,C112+1)))) ->  | BO112: =IF(A112="","",NewPic()) ->  | BP112: =IF(NEXTCELL("OCCURS",M112:V112)<>"",VALUE(NEXTCELL("OCCURS",M112:V112)),"") ->  | BW112: =IF(NEXTCELL(BW$4,M112:V112)="","",NEXTCELL(BW$4,M112:V112)&CI112) ->  | BZ112: =IF(BY112="","",groupketa()) ->  | CD112: =IF(CC112="","",groupketa()) ->  | CE112: =IF(BX112="","",IF(BW112<>"",VLOOKUP(BW112,$BV$6:$CV111,27,FALSE),SUM(CE111,CF111))) ->  | CS112: =IF(BW112<>"",VLOOKUP(BW112,$BV$5:$CQ111,22,FALSE),"") -> 
D113: =IF($A113="","",IF(C113=0,0,IF(ISERROR(SEARCH(" ",$B113,C113+1))=TRUE,0,SEARCH(" ",$B113,C113+1)))) ->  | BO113: =IF(A113="","",NewPic()) ->  | BP113: =IF(NEXTCELL("OCCURS",M113:V113)<>"",VALUE(NEXTCELL("OCCURS",M113:V113)),"") ->  | BW113: =IF(NEXTCELL(BW$4,M113:V113)="","",NEXTCELL(BW$4,M113:V113)&CI113) ->  | BZ113: =IF(BY113="","",groupketa()) ->  | CD113: =IF(CC113="","",groupketa()) ->  | CE113: =IF(BX113="","",IF(BW113<>"",VLOOKUP(BW113,$BV$6:$CV112,27,FALSE),SUM(CE112,CF112))) ->  | CS113: =IF(BW113<>"",VLOOKUP(BW113,$BV$5:$CQ112,22,FALSE),"") -> 
D114: =IF($A114="","",IF(C114=0,0,IF(ISERROR(SEARCH(" ",$B114,C114+1))=TRUE,0,SEARCH(" ",$B114,C114+1)))) ->  | BO114: =IF(A114="","",NewPic()) ->  | BP114: =IF(NEXTCELL("OCCURS",M114:V114)<>"",VALUE(NEXTCELL("OCCURS",M114:V114)),"") ->  | BW114: =IF(NEXTCELL(BW$4,M114:V114)="","",NEXTCELL(BW$4,M114:V114)&CI114) ->  | BZ114: =IF(BY114="","",groupketa()) ->  | CD114: =IF(CC114="","",groupketa()) ->  | CE114: =IF(BX114="","",IF(BW114<>"",VLOOKUP(BW114,$BV$6:$CV113,27,FALSE),SUM(CE113,CF113))) ->  | CS114: =IF(BW114<>"",VLOOKUP(BW114,$BV$5:$CQ113,22,FALSE),"") -> 
D115: =IF($A115="","",IF(C115=0,0,IF(ISERROR(SEARCH(" ",$B115,C115+1))=TRUE,0,SEARCH(" ",$B115,C115+1)))) ->  | AI115: =IF($AH115<>AI$4,"",$M115) ->  | BO115: =IF(A115="","",NewPic()) ->  | BP115: =IF(NEXTCELL("OCCURS",M115:V115)<>"",VALUE(NEXTCELL("OCCURS",M115:V115)),"") ->  | BW115: =IF(NEXTCELL(BW$4,M115:V115)="","",NEXTCELL(BW$4,M115:V115)&CI115) ->  | BZ115: =IF(BY115="","",groupketa()) ->  | CD115: =IF(CC115="","",groupketa()) ->  | CE115: =IF(BX115="","",IF(BW115<>"",VLOOKUP(BW115,$BV$6:$CV114,27,FALSE),SUM(CE114,CF114))) ->  | CS115: =IF(BW115<>"",VLOOKUP(BW115,$BV$5:$CQ114,22,FALSE),"") -> 
D116: =IF($A116="","",IF(C116=0,0,IF(ISERROR(SEARCH(" ",$B116,C116+1))=TRUE,0,SEARCH(" ",$B116,C116+1)))) ->  | BO116: =IF(A116="","",NewPic()) ->  | BP116: =IF(NEXTCELL("OCCURS",M116:V116)<>"",VALUE(NEXTCELL("OCCURS",M116:V116)),"") ->  | BW116: =IF(NEXTCELL(BW$4,M116:V116)="","",NEXTCELL(BW$4,M116:V116)&CI116) ->  | BZ116: =IF(BY116="","",groupketa()) ->  | CD116: =IF(CC116="","",groupketa()) ->  | CE116: =IF(BX116="","",IF(BW116<>"",VLOOKUP(BW116,$BV$6:$CV115,27,FALSE),SUM(CE115,CF115))) ->  | CS116: =IF(BW116<>"",VLOOKUP(BW116,$BV$5:$CQ115,22,FALSE),"") -> 
D117: =IF($A117="","",IF(C117=0,0,IF(ISERROR(SEARCH(" ",$B117,C117+1))=TRUE,0,SEARCH(" ",$B117,C117+1)))) ->  | BO117: =IF(A117="","",NewPic()) ->  | BP117: =IF(NEXTCELL("OCCURS",M117:V117)<>"",VALUE(NEXTCELL("OCCURS",M117:V117)),"") ->  | BW117: =IF(NEXTCELL(BW$4,M117:V117)="","",NEXTCELL(BW$4,M117:V117)&CI117) ->  | BZ117: =IF(BY117="","",groupketa()) ->  | CD117: =IF(CC117="","",groupketa()) ->  | CE117: =IF(BX117="","",IF(BW117<>"",VLOOKUP(BW117,$BV$6:$CV116,27,FALSE),SUM(CE116,CF116))) ->  | CS117: =IF(BW117<>"",VLOOKUP(BW117,$BV$5:$CQ116,22,FALSE),"") -> 
D118: =IF($A118="","",IF(C118=0,0,IF(ISERROR(SEARCH(" ",$B118,C118+1))=TRUE,0,SEARCH(" ",$B118,C118+1)))) ->  | BO118: =IF(A118="","",NewPic()) ->  | BP118: =IF(NEXTCELL("OCCURS",M118:V118)<>"",VALUE(NEXTCELL("OCCURS",M118:V118)),"") ->  | BW118: =IF(NEXTCELL(BW$4,M118:V118)="","",NEXTCELL(BW$4,M118:V118)&CI118) ->  | BZ118: =IF(BY118="","",groupketa()) ->  | CD118: =IF(CC118="","",groupketa()) ->  | CE118: =IF(BX118="","",IF(BW118<>"",VLOOKUP(BW118,$BV$6:$CV117,27,FALSE),SUM(CE117,CF117))) ->  | CS118: =IF(BW118<>"",VLOOKUP(BW118,$BV$5:$CQ117,22,FALSE),"") -> 
D119: =IF($A119="","",IF(C119=0,0,IF(ISERROR(SEARCH(" ",$B119,C119+1))=TRUE,0,SEARCH(" ",$B119,C119+1)))) ->  | BO119: =IF(A119="","",NewPic()) ->  | BP119: =IF(NEXTCELL("OCCURS",M119:V119)<>"",VALUE(NEXTCELL("OCCURS",M119:V119)),"") ->  | BW119: =IF(NEXTCELL(BW$4,M119:V119)="","",NEXTCELL(BW$4,M119:V119)&CI119) ->  | BZ119: =IF(BY119="","",groupketa()) ->  | CD119: =IF(CC119="","",groupketa()) ->  | CE119: =IF(BX119="","",IF(BW119<>"",VLOOKUP(BW119,$BV$6:$CV118,27,FALSE),SUM(CE118,CF118))) ->  | CS119: =IF(BW119<>"",VLOOKUP(BW119,$BV$5:$CQ118,22,FALSE),"") -> 
D120: =IF($A120="","",IF(C120=0,0,IF(ISERROR(SEARCH(" ",$B120,C120+1))=TRUE,0,SEARCH(" ",$B120,C120+1)))) ->  | BO120: =IF(A120="","",NewPic()) ->  | BP120: =IF(NEXTCELL("OCCURS",M120:V120)<>"",VALUE(NEXTCELL("OCCURS",M120:V120)),"") ->  | BW120: =IF(NEXTCELL(BW$4,M120:V120)="","",NEXTCELL(BW$4,M120:V120)&CI120) ->  | BZ120: =IF(BY120="","",groupketa()) ->  | CD120: =IF(CC120="","",groupketa()) ->  | CE120: =IF(BX120="","",IF(BW120<>"",VLOOKUP(BW120,$BV$6:$CV119,27,FALSE),SUM(CE119,CF119))) ->  | CS120: =IF(BW120<>"",VLOOKUP(BW120,$BV$5:$CQ119,22,FALSE),"") -> 
D121: =IF($A121="","",IF(C121=0,0,IF(ISERROR(SEARCH(" ",$B121,C121+1))=TRUE,0,SEARCH(" ",$B121,C121+1)))) ->  | BO121: =IF(A121="","",NewPic()) ->  | BP121: =IF(NEXTCELL("OCCURS",M121:V121)<>"",VALUE(NEXTCELL("OCCURS",M121:V121)),"") ->  | BW121: =IF(NEXTCELL(BW$4,M121:V121)="","",NEXTCELL(BW$4,M121:V121)&CI121) ->  | BZ121: =IF(BY121="","",groupketa()) ->  | CD121: =IF(CC121="","",groupketa()) ->  | CE121: =IF(BX121="","",IF(BW121<>"",VLOOKUP(BW121,$BV$6:$CV120,27,FALSE),SUM(CE120,CF120))) ->  | CS121: =IF(BW121<>"",VLOOKUP(BW121,$BV$5:$CQ120,22,FALSE),"") -> 
D122: =IF($A122="","",IF(C122=0,0,IF(ISERROR(SEARCH(" ",$B122,C122+1))=TRUE,0,SEARCH(" ",$B122,C122+1)))) ->  | BO122: =IF(A122="","",NewPic()) ->  | BP122: =IF(NEXTCELL("OCCURS",M122:V122)<>"",VALUE(NEXTCELL("OCCURS",M122:V122)),"") ->  | BW122: =IF(NEXTCELL(BW$4,M122:V122)="","",NEXTCELL(BW$4,M122:V122)&CI122) ->  | BZ122: =IF(BY122="","",groupketa()) ->  | CD122: =IF(CC122="","",groupketa()) ->  | CE122: =IF(BX122="","",IF(BW122<>"",VLOOKUP(BW122,$BV$6:$CV121,27,FALSE),SUM(CE121,CF121))) ->  | CS122: =IF(BW122<>"",VLOOKUP(BW122,$BV$5:$CQ121,22,FALSE),"") -> 
D123: =IF($A123="","",IF(C123=0,0,IF(ISERROR(SEARCH(" ",$B123,C123+1))=TRUE,0,SEARCH(" ",$B123,C123+1)))) ->  | BO123: =IF(A123="","",NewPic()) ->  | BP123: =IF(NEXTCELL("OCCURS",M123:V123)<>"",VALUE(NEXTCELL("OCCURS",M123:V123)),"") ->  | BW123: =IF(NEXTCELL(BW$4,M123:V123)="","",NEXTCELL(BW$4,M123:V123)&CI123) ->  | BZ123: =IF(BY123="","",groupketa()) ->  | CD123: =IF(CC123="","",groupketa()) ->  | CE123: =IF(BX123="","",IF(BW123<>"",VLOOKUP(BW123,$BV$6:$CV122,27,FALSE),SUM(CE122,CF122))) ->  | CS123: =IF(BW123<>"",VLOOKUP(BW123,$BV$5:$CQ122,22,FALSE),"") -> 
D124: =IF($A124="","",IF(C124=0,0,IF(ISERROR(SEARCH(" ",$B124,C124+1))=TRUE,0,SEARCH(" ",$B124,C124+1)))) ->  | BO124: =IF(A124="","",NewPic()) ->  | BP124: =IF(NEXTCELL("OCCURS",M124:V124)<>"",VALUE(NEXTCELL("OCCURS",M124:V124)),"") ->  | BW124: =IF(NEXTCELL(BW$4,M124:V124)="","",NEXTCELL(BW$4,M124:V124)&CI124) ->  | BZ124: =IF(BY124="","",groupketa()) ->  | CD124: =IF(CC124="","",groupketa()) ->  | CE124: =IF(BX124="","",IF(BW124<>"",VLOOKUP(BW124,$BV$6:$CV123,27,FALSE),SUM(CE123,CF123))) ->  | CS124: =IF(BW124<>"",VLOOKUP(BW124,$BV$5:$CQ123,22,FALSE),"") -> 
D125: =IF($A125="","",IF(C125=0,0,IF(ISERROR(SEARCH(" ",$B125,C125+1))=TRUE,0,SEARCH(" ",$B125,C125+1)))) ->  | AI125: =IF($AH125<>AI$4,"",$M125) ->  | BO125: =IF(A125="","",NewPic()) ->  | BP125: =IF(NEXTCELL("OCCURS",M125:V125)<>"",VALUE(NEXTCELL("OCCURS",M125:V125)),"") ->  | BW125: =IF(NEXTCELL(BW$4,M125:V125)="","",NEXTCELL(BW$4,M125:V125)&CI125) ->  | BZ125: =IF(BY125="","",groupketa()) ->  | CD125: =IF(CC125="","",groupketa()) ->  | CE125: =IF(BX125="","",IF(BW125<>"",VLOOKUP(BW125,$BV$6:$CV124,27,FALSE),SUM(CE124,CF124))) ->  | CS125: =IF(BW125<>"",VLOOKUP(BW125,$BV$5:$CQ124,22,FALSE),"") -> 
D126: =IF($A126="","",IF(C126=0,0,IF(ISERROR(SEARCH(" ",$B126,C126+1))=TRUE,0,SEARCH(" ",$B126,C126+1)))) ->  | BO126: =IF(A126="","",NewPic()) ->  | BP126: =IF(NEXTCELL("OCCURS",M126:V126)<>"",VALUE(NEXTCELL("OCCURS",M126:V126)),"") ->  | BW126: =IF(NEXTCELL(BW$4,M126:V126)="","",NEXTCELL(BW$4,M126:V126)&CI126) ->  | BZ126: =IF(BY126="","",groupketa()) ->  | CD126: =IF(CC126="","",groupketa()) ->  | CE126: =IF(BX126="","",IF(BW126<>"",VLOOKUP(BW126,$BV$6:$CV125,27,FALSE),SUM(CE125,CF125))) ->  | CS126: =IF(BW126<>"",VLOOKUP(BW126,$BV$5:$CQ125,22,FALSE),"") -> 
D127: =IF($A127="","",IF(C127=0,0,IF(ISERROR(SEARCH(" ",$B127,C127+1))=TRUE,0,SEARCH(" ",$B127,C127+1)))) ->  | BO127: =IF(A127="","",NewPic()) ->  | BP127: =IF(NEXTCELL("OCCURS",M127:V127)<>"",VALUE(NEXTCELL("OCCURS",M127:V127)),"") ->  | BW127: =IF(NEXTCELL(BW$4,M127:V127)="","",NEXTCELL(BW$4,M127:V127)&CI127) ->  | BZ127: =IF(BY127="","",groupketa()) ->  | CD127: =IF(CC127="","",groupketa()) ->  | CE127: =IF(BX127="","",IF(BW127<>"",VLOOKUP(BW127,$BV$6:$CV126,27,FALSE),SUM(CE126,CF126))) ->  | CS127: =IF(BW127<>"",VLOOKUP(BW127,$BV$5:$CQ126,22,FALSE),"") -> 
D128: =IF($A128="","",IF(C128=0,0,IF(ISERROR(SEARCH(" ",$B128,C128+1))=TRUE,0,SEARCH(" ",$B128,C128+1)))) ->  | BO128: =IF(A128="","",NewPic()) ->  | BP128: =IF(NEXTCELL("OCCURS",M128:V128)<>"",VALUE(NEXTCELL("OCCURS",M128:V128)),"") ->  | BW128: =IF(NEXTCELL(BW$4,M128:V128)="","",NEXTCELL(BW$4,M128:V128)&CI128) ->  | BZ128: =IF(BY128="","",groupketa()) ->  | CD128: =IF(CC128="","",groupketa()) ->  | CE128: =IF(BX128="","",IF(BW128<>"",VLOOKUP(BW128,$BV$6:$CV127,27,FALSE),SUM(CE127,CF127))) ->  | CS128: =IF(BW128<>"",VLOOKUP(BW128,$BV$5:$CQ127,22,FALSE),"") -> 
D129: =IF($A129="","",IF(C129=0,0,IF(ISERROR(SEARCH(" ",$B129,C129+1))=TRUE,0,SEARCH(" ",$B129,C129+1)))) ->  | BO129: =IF(A129="","",NewPic()) ->  | BP129: =IF(NEXTCELL("OCCURS",M129:V129)<>"",VALUE(NEXTCELL("OCCURS",M129:V129)),"") ->  | BW129: =IF(NEXTCELL(BW$4,M129:V129)="","",NEXTCELL(BW$4,M129:V129)&CI129) ->  | BZ129: =IF(BY129="","",groupketa()) ->  | CD129: =IF(CC129="","",groupketa()) ->  | CE129: =IF(BX129="","",IF(BW129<>"",VLOOKUP(BW129,$BV$6:$CV128,27,FALSE),SUM(CE128,CF128))) ->  | CS129: =IF(BW129<>"",VLOOKUP(BW129,$BV$5:$CQ128,22,FALSE),"") -> 
D130: =IF($A130="","",IF(C130=0,0,IF(ISERROR(SEARCH(" ",$B130,C130+1))=TRUE,0,SEARCH(" ",$B130,C130+1)))) ->  | BO130: =IF(A130="","",NewPic()) ->  | BP130: =IF(NEXTCELL("OCCURS",M130:V130)<>"",VALUE(NEXTCELL("OCCURS",M130:V130)),"") ->  | BW130: =IF(NEXTCELL(BW$4,M130:V130)="","",NEXTCELL(BW$4,M130:V130)&CI130) ->  | BZ130: =IF(BY130="","",groupketa()) ->  | CD130: =IF(CC130="","",groupketa()) ->  | CE130: =IF(BX130="","",IF(BW130<>"",VLOOKUP(BW130,$BV$6:$CV129,27,FALSE),SUM(CE129,CF129))) ->  | CS130: =IF(BW130<>"",VLOOKUP(BW130,$BV$5:$CQ129,22,FALSE),"") -> 
D131: =IF($A131="","",IF(C131=0,0,IF(ISERROR(SEARCH(" ",$B131,C131+1))=TRUE,0,SEARCH(" ",$B131,C131+1)))) ->  | BO131: =IF(A131="","",NewPic()) ->  | BP131: =IF(NEXTCELL("OCCURS",M131:V131)<>"",VALUE(NEXTCELL("OCCURS",M131:V131)),"") ->  | BW131: =IF(NEXTCELL(BW$4,M131:V131)="","",NEXTCELL(BW$4,M131:V131)&CI131) ->  | BZ131: =IF(BY131="","",groupketa()) ->  | CD131: =IF(CC131="","",groupketa()) ->  | CE131: =IF(BX131="","",IF(BW131<>"",VLOOKUP(BW131,$BV$6:$CV130,27,FALSE),SUM(CE130,CF130))) ->  | CS131: =IF(BW131<>"",VLOOKUP(BW131,$BV$5:$CQ130,22,FALSE),"") -> 
D132: =IF($A132="","",IF(C132=0,0,IF(ISERROR(SEARCH(" ",$B132,C132+1))=TRUE,0,SEARCH(" ",$B132,C132+1)))) ->  | BO132: =IF(A132="","",NewPic()) ->  | BP132: =IF(NEXTCELL("OCCURS",M132:V132)<>"",VALUE(NEXTCELL("OCCURS",M132:V132)),"") ->  | BW132: =IF(NEXTCELL(BW$4,M132:V132)="","",NEXTCELL(BW$4,M132:V132)&CI132) ->  | BZ132: =IF(BY132="","",groupketa()) ->  | CD132: =IF(CC132="","",groupketa()) ->  | CE132: =IF(BX132="","",IF(BW132<>"",VLOOKUP(BW132,$BV$6:$CV131,27,FALSE),SUM(CE131,CF131))) ->  | CS132: =IF(BW132<>"",VLOOKUP(BW132,$BV$5:$CQ131,22,FALSE),"") -> 
B133: =IF(OR(LEFT(TRIM(SUBSTITUTE(A133,"."," ")),1) = "*",LEFT(TRIM(SUBSTITUTE(A133,"."," ")),1) = "/"),"",TRIM(SUBSTITUTE(A133,"."," "))&" ") ->  | C133: =IF($A133="","",IF(B133=" ",0,IF(ISERROR(SEARCH(" ",B133,1))=TRUE,0,SEARCH(" ",B133,1)))) ->  | D133: =IF($A133="","",IF(C133=0,0,IF(ISERROR(SEARCH(" ",$B133,C133+1))=TRUE,0,SEARCH(" ",$B133,C133+1)))) ->  | M133: =IF($A133="","",IF(C133=0,"",MID(B133,1,C133-1))) ->  | N133: =IF($A133="","",IF(OR(C133=0,D133=0),"",IF(MID(M133,1,2)="*>","",MID($B133,C133+1,D133-C133-1)))) ->  | O133: =IF($A133="","",IF(OR(D133=0,E133=0),"",IF(MID(N133,1,2)="*>","",MID($B133,D133+1,E133-D133-1)))) ->  | P133: =IF($A133="","",IF(OR(E133=0,F133=0),"",IF(MID(O133,1,2)="*>","",MID($B133,E133+1,F133-E133-1)))) ->  | Q133: =IF($A133="","",IF(OR(F133=0,G133=0),"",IF(MID(P133,1,2)="*>","",MID($B133,F133+1,G133-F133-1)))) ->  | R133: =IF($A133="","",IF(OR(G133=0,H133=0),"",IF(MID(Q133,1,2)="*>","",MID($B133,G133+1,H133-G133-1)))) ->  | S133: =IF($A133="","",IF(OR(H133=0,I133=0),"",IF(MID(R133,1,2)="*>","",MID($B133,H133+1,I133-H133-1)))) ->  | T133: =IF($A133="","",IF(OR(I133=0,J133=0),"",IF(MID(S133,1,2)="*>","",MID($B133,I133+1,J133-I133-1)))) ->  | U133: =IF($A133="","",IF(OR(J133=0,K133=0),"",IF(MID(T133,1,2)="*>","",MID($B133,J133+1,K133-J133-1)))) ->  | V133: =IF($A133="","",IF(OR(K133=0,L133=0),"",IF(MID(U133,1,2)="*>","",MID($B133,K133+1,L133-K133-1)))) ->  | AH133: =IF(M133="","",levelget()) ->  | AS133: =IF(N133<>"",TRIM(N133)&CI133,"") ->  | AU133: =IF(ISERROR(SEARCH("V",$AT133,1))=TRUE,"",SEARCH("V",$AT133,1)) ->  | AV133: =IF(AU133="",AT133,MID(AT133,1,AU133-1)) ->  | AW133: =IF(ISERROR(SEARCH(AW$4,$AV133,1))=TRUE,"",SEARCH(AW$4,$AV133,1)) ->  | AX133: =IF(MID(AV133,1,1)="S","S","") ->  | AY133: =IF(AX133="S","9",MID(AV133,1,1)) ->  | AZ133: =IF($AT133="","",IF(AW133="","",VALUE(MID(AV133,AW133+1,SEARCH(")",AV133,1)-AW133-1)))) ->  | BA133: =IF($AT133="","",IF(AZ133<>"","",IF(AX133="",VALUE(LEN(AV133)),VALUE(LEN(AV133)-1)))) ->  | BB133: =IF($AT133="","",SUM(AZ133:BA133)) ->  | BC133: =IF(AU133="","",MID(AT133,AU133+1,LEN(AT133)-AU133)) ->  | BD133: =IF(ISERROR(SEARCH(BD$4,$BC133,1))=TRUE,"",SEARCH(BD$4,$BC133,1)) ->  | BE133: =MID(BC133,1,1) ->  | BF133: =IF($AT133="","",IF(BD133="","",VALUE(MID(BC133,BD133+1,SEARCH(")",BC133,1)-BD133-1)))) ->  | BG133: =IF(OR($AT133="",BC133="",BF133<>""),"",VALUE(LEN(BC133))) ->  | BH133: =IF($BC133="","",SUM(BF133:BG133)) ->  | BI133: =IF($AT133="","",SUM(BB133,BH133)) ->  | BJ133: =IF(ISERROR(HLOOKUP(BJ$4,M133:V133,1,FALSE))=TRUE,"","P") ->  | BK133: =IF(ISERROR(HLOOKUP(BK$4,N133:AI133,1,FALSE))=TRUE,"","C") ->  | BL133: =IF(OR(BJ133<>"",BK133<>""),"P","") ->  | BM133: =IF(BI133=0,0,IF(AY133="N",BI133*2,IF(BL133<>"",ROUNDUP((BI133+1)/2,0),BI133))) ->  | BN133: =IF(A133="","",IF(AT133="","集団","")) ->  | BO133: =IF(A133="","",NewPic()) ->  | BP133: =IF(NEXTCELL("OCCURS",M133:V133)<>"",VALUE(NEXTCELL("OCCURS",M133:V133)),"") ->  | BQ133: =IF(AND(BQ132="",BP133=""),"",IF(AND(BQ132<>"",$AH133>BQ132),BQ132,IF($BP133<>"",$AH133,""))) ->  | BR133: =IF(AND(BR132="",BP133=""),"",IF(AND(BR132<>"",$AH133>BR132),BR132,IF(AND($BP133<>"",$AH133<>BQ133),$AH133,""))) ->  | BS133: =IF(AND(BS132="",BP133=""),"",IF(AND(BS132<>"",$AH133>BS132),BS132,IF(AND($BP133<>"",$AH133<>BQ133,$AH133<>BR133),$AH133,""))) ->  | BT133: =IF(AND(BT132="",BP133=""),"",IF(AND(BT132<>"",$AH133>BT132),BT132,IF(AND($BP133<>"",$AH133<>BQ133,$AH133<>BR133,$AH133<>BS133),$AH133,""))) ->  | BU133: =IF(AND(BU132="",BP133=""),"",IF(AND(BU132<>"",$AH133>BU132),BU132,IF(AND($BP133<>"",$AH133<>BQ133,$AH133<>BR133,$AH133<>BS133,$AH133<>BT133),$AH133,""))) ->  | BW133: =IF(NEXTCELL(BW$4,M133:V133)="","",NEXTCELL(BW$4,M133:V133)&CI133) ->  | BX133: =IF(AND(BV133="",BW133="",BX132=""),"",IF(BW133<>"",IF(AND(BX132<>"",AH133>BX132),BX132,AH133),IF(AND(BX132<>"",AH133>BX132),BX132,""))) ->  | BY133: =IF(OR(BN133="",BX133<>""),"",CA133) ->  | BZ133: =IF(BY133="","",groupketa()) ->  | CD133: =IF(CC133="","",groupketa()) ->  | CE133: =IF(BX133="","",IF(BW133<>"",VLOOKUP(BW133,$BV$6:$CV132,27,FALSE),SUM(CE132,CF132))) ->  | CF133: =IF(AND(A133<>"",BX133<>"",BN133=""),BM133,"") ->  | CQ133: =IF(BZ133<>"",BZ133,IF(CB133<>"",CB133,IF(CD133<>"",CD133,IF(CF133<>"",CF133,"")))) ->  | CR133: =IF(BW133<>"",IF(CD133<>"",CD133,CF133),"") ->  | CS133: =IF(BW133<>"",VLOOKUP(BW133,$BV$5:$CQ132,22,FALSE),"") ->  | CT133: =IF(CR133<>CS133,"×","") -> 
D134: =IF($A134="","",IF(C134=0,0,IF(ISERROR(SEARCH(" ",$B134,C134+1))=TRUE,0,SEARCH(" ",$B134,C134+1)))) ->  | AT134: =NEXTCELL(AT$3,M134:V134) ->  | BO134: =IF(A134="","",NewPic()) ->  | BP134: =IF(NEXTCELL("OCCURS",M134:V134)<>"",VALUE(NEXTCELL("OCCURS",M134:V134)),"") ->  | BW134: =IF(NEXTCELL(BW$4,M134:V134)="","",NEXTCELL(BW$4,M134:V134)&CI134) ->  | BZ134: =IF(BY134="","",groupketa()) ->  | CA134: =IF(BX134<>"","",IF(AH134=1,1,IF(A134<>"",IF(CA133<>"",SUM(CA133,CB133),SUM(CE133,CF133)),""))) ->  | CB134: =IF(AND(A134<>"",BX134="",BN134=""),BM134,"") ->  | CC134: =IF(AND(BN134<>"",CE134<>""),CE134,"") ->  | CD134: =IF(CC134="","",groupketa()) ->  | CE134: =IF(BX134="","",IF(BW134<>"",VLOOKUP(BW134,$BV$6:$CV133,27,FALSE),SUM(CE133,CF133))) ->  | CH134: =TRIM(MID(getcell("*>",M134:V134),3,30)) ->  | CS134: =IF(BW134<>"",VLOOKUP(BW134,$BV$5:$CQ133,22,FALSE),"") ->  | CU134: =IF(BV134<>"",AH134,IF(AH134>CU133,CU133,"")) -> 
D135: =IF($A135="","",IF(C135=0,0,IF(ISERROR(SEARCH(" ",$B135,C135+1))=TRUE,0,SEARCH(" ",$B135,C135+1)))) ->  | AI135: =IF($AH135<>AI$4,"",$M135) ->  | BO135: =IF(A135="","",NewPic()) ->  | BP135: =IF(NEXTCELL("OCCURS",M135:V135)<>"",VALUE(NEXTCELL("OCCURS",M135:V135)),"") ->  | BW135: =IF(NEXTCELL(BW$4,M135:V135)="","",NEXTCELL(BW$4,M135:V135)&CI135) ->  | BZ135: =IF(BY135="","",groupketa()) ->  | CD135: =IF(CC135="","",groupketa()) ->  | CE135: =IF(BX135="","",IF(BW135<>"",VLOOKUP(BW135,$BV$6:$CV134,27,FALSE),SUM(CE134,CF134))) ->  | CS135: =IF(BW135<>"",VLOOKUP(BW135,$BV$5:$CQ134,22,FALSE),"") -> 
D136: =IF($A136="","",IF(C136=0,0,IF(ISERROR(SEARCH(" ",$B136,C136+1))=TRUE,0,SEARCH(" ",$B136,C136+1)))) ->  | BO136: =IF(A136="","",NewPic()) ->  | BP136: =IF(NEXTCELL("OCCURS",M136:V136)<>"",VALUE(NEXTCELL("OCCURS",M136:V136)),"") ->  | BV136: =IF(ISERROR(VLOOKUP(AS136,$BW137:$BW1068,1,FALSE))=TRUE,"",VLOOKUP(AS136,$BW137:$BW1068,1,FALSE)) ->  | BW136: =IF(NEXTCELL(BW$4,M136:V136)="","",NEXTCELL(BW$4,M136:V136)&CI136) ->  | BZ136: =IF(BY136="","",groupketa()) ->  | CD136: =IF(CC136="","",groupketa()) ->  | CE136: =IF(BX136="","",IF(BW136<>"",VLOOKUP(BW136,$BV$6:$CV135,27,FALSE),SUM(CE135,CF135))) ->  | CS136: =IF(BW136<>"",VLOOKUP(BW136,$BV$5:$CQ135,22,FALSE),"") -> 
D137: =IF($A137="","",IF(C137=0,0,IF(ISERROR(SEARCH(" ",$B137,C137+1))=TRUE,0,SEARCH(" ",$B137,C137+1)))) ->  | BO137: =IF(A137="","",NewPic()) ->  | BP137: =IF(NEXTCELL("OCCURS",M137:V137)<>"",VALUE(NEXTCELL("OCCURS",M137:V137)),"") ->  | BW137: =IF(NEXTCELL(BW$4,M137:V137)="","",NEXTCELL(BW$4,M137:V137)&CI137) ->  | BZ137: =IF(BY137="","",groupketa()) ->  | CD137: =IF(CC137="","",groupketa()) ->  | CE137: =IF(BX137="","",IF(BW137<>"",VLOOKUP(BW137,$BV$6:$CV136,27,FALSE),SUM(CE136,CF136))) ->  | CS137: =IF(BW137<>"",VLOOKUP(BW137,$BV$5:$CQ136,22,FALSE),"") -> 
D138: =IF($A138="","",IF(C138=0,0,IF(ISERROR(SEARCH(" ",$B138,C138+1))=TRUE,0,SEARCH(" ",$B138,C138+1)))) ->  | BO138: =IF(A138="","",NewPic()) ->  | BP138: =IF(NEXTCELL("OCCURS",M138:V138)<>"",VALUE(NEXTCELL("OCCURS",M138:V138)),"") ->  | BW138: =IF(NEXTCELL(BW$4,M138:V138)="","",NEXTCELL(BW$4,M138:V138)&CI138) ->  | BZ138: =IF(BY138="","",groupketa()) ->  | CD138: =IF(CC138="","",groupketa()) ->  | CE138: =IF(BX138="","",IF(BW138<>"",VLOOKUP(BW138,$BV$6:$CV137,27,FALSE),SUM(CE137,CF137))) ->  | CS138: =IF(BW138<>"",VLOOKUP(BW138,$BV$5:$CQ137,22,FALSE),"") -> 
D139: =IF($A139="","",IF(C139=0,0,IF(ISERROR(SEARCH(" ",$B139,C139+1))=TRUE,0,SEARCH(" ",$B139,C139+1)))) ->  | BO139: =IF(A139="","",NewPic()) ->  | BP139: =IF(NEXTCELL("OCCURS",M139:V139)<>"",VALUE(NEXTCELL("OCCURS",M139:V139)),"") ->  | BW139: =IF(NEXTCELL(BW$4,M139:V139)="","",NEXTCELL(BW$4,M139:V139)&CI139) ->  | BZ139: =IF(BY139="","",groupketa()) ->  | CD139: =IF(CC139="","",groupketa()) ->  | CE139: =IF(BX139="","",IF(BW139<>"",VLOOKUP(BW139,$BV$6:$CV138,27,FALSE),SUM(CE138,CF138))) ->  | CS139: =IF(BW139<>"",VLOOKUP(BW139,$BV$5:$CQ138,22,FALSE),"") -> 
D140: =IF($A140="","",IF(C140=0,0,IF(ISERROR(SEARCH(" ",$B140,C140+1))=TRUE,0,SEARCH(" ",$B140,C140+1)))) ->  | BO140: =IF(A140="","",NewPic()) ->  | BP140: =IF(NEXTCELL("OCCURS",M140:V140)<>"",VALUE(NEXTCELL("OCCURS",M140:V140)),"") ->  | BW140: =IF(NEXTCELL(BW$4,M140:V140)="","",NEXTCELL(BW$4,M140:V140)&CI140) ->  | BZ140: =IF(BY140="","",groupketa()) ->  | CD140: =IF(CC140="","",groupketa()) ->  | CE140: =IF(BX140="","",IF(BW140<>"",VLOOKUP(BW140,$BV$6:$CV139,27,FALSE),SUM(CE139,CF139))) ->  | CS140: =IF(BW140<>"",VLOOKUP(BW140,$BV$5:$CQ139,22,FALSE),"") ->  | CV140: =IF(CA140<>"",CA140,CE140) -> 
D141: =IF($A141="","",IF(C141=0,0,IF(ISERROR(SEARCH(" ",$B141,C141+1))=TRUE,0,SEARCH(" ",$B141,C141+1)))) ->  | BO141: =IF(A141="","",NewPic()) ->  | BP141: =IF(NEXTCELL("OCCURS",M141:V141)<>"",VALUE(NEXTCELL("OCCURS",M141:V141)),"") ->  | BW141: =IF(NEXTCELL(BW$4,M141:V141)="","",NEXTCELL(BW$4,M141:V141)&CI141) ->  | BZ141: =IF(BY141="","",groupketa()) ->  | CD141: =IF(CC141="","",groupketa()) ->  | CE141: =IF(BX141="","",IF(BW141<>"",VLOOKUP(BW141,$BV$6:$CV140,27,FALSE),SUM(CE140,CF140))) ->  | CS141: =IF(BW141<>"",VLOOKUP(BW141,$BV$5:$CQ140,22,FALSE),"") -> 
D142: =IF($A142="","",IF(C142=0,0,IF(ISERROR(SEARCH(" ",$B142,C142+1))=TRUE,0,SEARCH(" ",$B142,C142+1)))) ->  | BO142: =IF(A142="","",NewPic()) ->  | BP142: =IF(NEXTCELL("OCCURS",M142:V142)<>"",VALUE(NEXTCELL("OCCURS",M142:V142)),"") ->  | BW142: =IF(NEXTCELL(BW$4,M142:V142)="","",NEXTCELL(BW$4,M142:V142)&CI142) ->  | BZ142: =IF(BY142="","",groupketa()) ->  | CD142: =IF(CC142="","",groupketa()) ->  | CE142: =IF(BX142="","",IF(BW142<>"",VLOOKUP(BW142,$BV$6:$CV141,27,FALSE),SUM(CE141,CF141))) ->  | CS142: =IF(BW142<>"",VLOOKUP(BW142,$BV$5:$CQ141,22,FALSE),"") -> 
D143: =IF($A143="","",IF(C143=0,0,IF(ISERROR(SEARCH(" ",$B143,C143+1))=TRUE,0,SEARCH(" ",$B143,C143+1)))) ->  | BO143: =IF(A143="","",NewPic()) ->  | BP143: =IF(NEXTCELL("OCCURS",M143:V143)<>"",VALUE(NEXTCELL("OCCURS",M143:V143)),"") ->  | BW143: =IF(NEXTCELL(BW$4,M143:V143)="","",NEXTCELL(BW$4,M143:V143)&CI143) ->  | BZ143: =IF(BY143="","",groupketa()) ->  | CD143: =IF(CC143="","",groupketa()) ->  | CE143: =IF(BX143="","",IF(BW143<>"",VLOOKUP(BW143,$BV$6:$CV142,27,FALSE),SUM(CE142,CF142))) ->  | CS143: =IF(BW143<>"",VLOOKUP(BW143,$BV$5:$CQ142,22,FALSE),"") -> 
D144: =IF($A144="","",IF(C144=0,0,IF(ISERROR(SEARCH(" ",$B144,C144+1))=TRUE,0,SEARCH(" ",$B144,C144+1)))) ->  | BO144: =IF(A144="","",NewPic()) ->  | BP144: =IF(NEXTCELL("OCCURS",M144:V144)<>"",VALUE(NEXTCELL("OCCURS",M144:V144)),"") ->  | BW144: =IF(NEXTCELL(BW$4,M144:V144)="","",NEXTCELL(BW$4,M144:V144)&CI144) ->  | BZ144: =IF(BY144="","",groupketa()) ->  | CD144: =IF(CC144="","",groupketa()) ->  | CE144: =IF(BX144="","",IF(BW144<>"",VLOOKUP(BW144,$BV$6:$CV143,27,FALSE),SUM(CE143,CF143))) ->  | CS144: =IF(BW144<>"",VLOOKUP(BW144,$BV$5:$CQ143,22,FALSE),"") -> 
D145: =IF($A145="","",IF(C145=0,0,IF(ISERROR(SEARCH(" ",$B145,C145+1))=TRUE,0,SEARCH(" ",$B145,C145+1)))) ->  | AI145: =IF($AH145<>AI$4,"",$M145) ->  | BO145: =IF(A145="","",NewPic()) ->  | BP145: =IF(NEXTCELL("OCCURS",M145:V145)<>"",VALUE(NEXTCELL("OCCURS",M145:V145)),"") ->  | BW145: =IF(NEXTCELL(BW$4,M145:V145)="","",NEXTCELL(BW$4,M145:V145)&CI145) ->  | BZ145: =IF(BY145="","",groupketa()) ->  | CD145: =IF(CC145="","",groupketa()) ->  | CE145: =IF(BX145="","",IF(BW145<>"",VLOOKUP(BW145,$BV$6:$CV144,27,FALSE),SUM(CE144,CF144))) ->  | CS145: =IF(BW145<>"",VLOOKUP(BW145,$BV$5:$CQ144,22,FALSE),"") -> 
D146: =IF($A146="","",IF(C146=0,0,IF(ISERROR(SEARCH(" ",$B146,C146+1))=TRUE,0,SEARCH(" ",$B146,C146+1)))) ->  | BO146: =IF(A146="","",NewPic()) ->  | BP146: =IF(NEXTCELL("OCCURS",M146:V146)<>"",VALUE(NEXTCELL("OCCURS",M146:V146)),"") ->  | BW146: =IF(NEXTCELL(BW$4,M146:V146)="","",NEXTCELL(BW$4,M146:V146)&CI146) ->  | BZ146: =IF(BY146="","",groupketa()) ->  | CD146: =IF(CC146="","",groupketa()) ->  | CE146: =IF(BX146="","",IF(BW146<>"",VLOOKUP(BW146,$BV$6:$CV145,27,FALSE),SUM(CE145,CF145))) ->  | CS146: =IF(BW146<>"",VLOOKUP(BW146,$BV$5:$CQ145,22,FALSE),"") -> 
D147: =IF($A147="","",IF(C147=0,0,IF(ISERROR(SEARCH(" ",$B147,C147+1))=TRUE,0,SEARCH(" ",$B147,C147+1)))) ->  | BO147: =IF(A147="","",NewPic()) ->  | BP147: =IF(NEXTCELL("OCCURS",M147:V147)<>"",VALUE(NEXTCELL("OCCURS",M147:V147)),"") ->  | BW147: =IF(NEXTCELL(BW$4,M147:V147)="","",NEXTCELL(BW$4,M147:V147)&CI147) ->  | BZ147: =IF(BY147="","",groupketa()) ->  | CD147: =IF(CC147="","",groupketa()) ->  | CE147: =IF(BX147="","",IF(BW147<>"",VLOOKUP(BW147,$BV$6:$CV146,27,FALSE),SUM(CE146,CF146))) ->  | CS147: =IF(BW147<>"",VLOOKUP(BW147,$BV$5:$CQ146,22,FALSE),"") -> 
D148: =IF($A148="","",IF(C148=0,0,IF(ISERROR(SEARCH(" ",$B148,C148+1))=TRUE,0,SEARCH(" ",$B148,C148+1)))) ->  | BO148: =IF(A148="","",NewPic()) ->  | BP148: =IF(NEXTCELL("OCCURS",M148:V148)<>"",VALUE(NEXTCELL("OCCURS",M148:V148)),"") ->  | BW148: =IF(NEXTCELL(BW$4,M148:V148)="","",NEXTCELL(BW$4,M148:V148)&CI148) ->  | BZ148: =IF(BY148="","",groupketa()) ->  | CD148: =IF(CC148="","",groupketa()) ->  | CE148: =IF(BX148="","",IF(BW148<>"",VLOOKUP(BW148,$BV$6:$CV147,27,FALSE),SUM(CE147,CF147))) ->  | CS148: =IF(BW148<>"",VLOOKUP(BW148,$BV$5:$CQ147,22,FALSE),"") -> 
D149: =IF($A149="","",IF(C149=0,0,IF(ISERROR(SEARCH(" ",$B149,C149+1))=TRUE,0,SEARCH(" ",$B149,C149+1)))) ->  | BO149: =IF(A149="","",NewPic()) ->  | BP149: =IF(NEXTCELL("OCCURS",M149:V149)<>"",VALUE(NEXTCELL("OCCURS",M149:V149)),"") ->  | BW149: =IF(NEXTCELL(BW$4,M149:V149)="","",NEXTCELL(BW$4,M149:V149)&CI149) ->  | BZ149: =IF(BY149="","",groupketa()) ->  | CD149: =IF(CC149="","",groupketa()) ->  | CE149: =IF(BX149="","",IF(BW149<>"",VLOOKUP(BW149,$BV$6:$CV148,27,FALSE),SUM(CE148,CF148))) ->  | CS149: =IF(BW149<>"",VLOOKUP(BW149,$BV$5:$CQ148,22,FALSE),"") -> 
D150: =IF($A150="","",IF(C150=0,0,IF(ISERROR(SEARCH(" ",$B150,C150+1))=TRUE,0,SEARCH(" ",$B150,C150+1)))) ->  | BO150: =IF(A150="","",NewPic()) ->  | BP150: =IF(NEXTCELL("OCCURS",M150:V150)<>"",VALUE(NEXTCELL("OCCURS",M150:V150)),"") ->  | BW150: =IF(NEXTCELL(BW$4,M150:V150)="","",NEXTCELL(BW$4,M150:V150)&CI150) ->  | BZ150: =IF(BY150="","",groupketa()) ->  | CD150: =IF(CC150="","",groupketa()) ->  | CE150: =IF(BX150="","",IF(BW150<>"",VLOOKUP(BW150,$BV$6:$CV149,27,FALSE),SUM(CE149,CF149))) ->  | CS150: =IF(BW150<>"",VLOOKUP(BW150,$BV$5:$CQ149,22,FALSE),"") -> 
D151: =IF($A151="","",IF(C151=0,0,IF(ISERROR(SEARCH(" ",$B151,C151+1))=TRUE,0,SEARCH(" ",$B151,C151+1)))) ->  | BO151: =IF(A151="","",NewPic()) ->  | BP151: =IF(NEXTCELL("OCCURS",M151:V151)<>"",VALUE(NEXTCELL("OCCURS",M151:V151)),"") ->  | BW151: =IF(NEXTCELL(BW$4,M151:V151)="","",NEXTCELL(BW$4,M151:V151)&CI151) ->  | BZ151: =IF(BY151="","",groupketa()) ->  | CD151: =IF(CC151="","",groupketa()) ->  | CE151: =IF(BX151="","",IF(BW151<>"",VLOOKUP(BW151,$BV$6:$CV150,27,FALSE),SUM(CE150,CF150))) ->  | CS151: =IF(BW151<>"",VLOOKUP(BW151,$BV$5:$CQ150,22,FALSE),"") -> 
D152: =IF($A152="","",IF(C152=0,0,IF(ISERROR(SEARCH(" ",$B152,C152+1))=TRUE,0,SEARCH(" ",$B152,C152+1)))) ->  | BO152: =IF(A152="","",NewPic()) ->  | BP152: =IF(NEXTCELL("OCCURS",M152:V152)<>"",VALUE(NEXTCELL("OCCURS",M152:V152)),"") ->  | BW152: =IF(NEXTCELL(BW$4,M152:V152)="","",NEXTCELL(BW$4,M152:V152)&CI152) ->  | BZ152: =IF(BY152="","",groupketa()) ->  | CD152: =IF(CC152="","",groupketa()) ->  | CE152: =IF(BX152="","",IF(BW152<>"",VLOOKUP(BW152,$BV$6:$CV151,27,FALSE),SUM(CE151,CF151))) ->  | CS152: =IF(BW152<>"",VLOOKUP(BW152,$BV$5:$CQ151,22,FALSE),"") -> 
D153: =IF($A153="","",IF(C153=0,0,IF(ISERROR(SEARCH(" ",$B153,C153+1))=TRUE,0,SEARCH(" ",$B153,C153+1)))) ->  | BO153: =IF(A153="","",NewPic()) ->  | BP153: =IF(NEXTCELL("OCCURS",M153:V153)<>"",VALUE(NEXTCELL("OCCURS",M153:V153)),"") ->  | BW153: =IF(NEXTCELL(BW$4,M153:V153)="","",NEXTCELL(BW$4,M153:V153)&CI153) ->  | BZ153: =IF(BY153="","",groupketa()) ->  | CD153: =IF(CC153="","",groupketa()) ->  | CE153: =IF(BX153="","",IF(BW153<>"",VLOOKUP(BW153,$BV$6:$CV152,27,FALSE),SUM(CE152,CF152))) ->  | CS153: =IF(BW153<>"",VLOOKUP(BW153,$BV$5:$CQ152,22,FALSE),"") -> 
D154: =IF($A154="","",IF(C154=0,0,IF(ISERROR(SEARCH(" ",$B154,C154+1))=TRUE,0,SEARCH(" ",$B154,C154+1)))) ->  | BO154: =IF(A154="","",NewPic()) ->  | BP154: =IF(NEXTCELL("OCCURS",M154:V154)<>"",VALUE(NEXTCELL("OCCURS",M154:V154)),"") ->  | BW154: =IF(NEXTCELL(BW$4,M154:V154)="","",NEXTCELL(BW$4,M154:V154)&CI154) ->  | BZ154: =IF(BY154="","",groupketa()) ->  | CD154: =IF(CC154="","",groupketa()) ->  | CE154: =IF(BX154="","",IF(BW154<>"",VLOOKUP(BW154,$BV$6:$CV153,27,FALSE),SUM(CE153,CF153))) ->  | CS154: =IF(BW154<>"",VLOOKUP(BW154,$BV$5:$CQ153,22,FALSE),"") -> 
D155: =IF($A155="","",IF(C155=0,0,IF(ISERROR(SEARCH(" ",$B155,C155+1))=TRUE,0,SEARCH(" ",$B155,C155+1)))) ->  | AI155: =IF($AH155<>AI$4,"",$M155) ->  | BO155: =IF(A155="","",NewPic()) ->  | BP155: =IF(NEXTCELL("OCCURS",M155:V155)<>"",VALUE(NEXTCELL("OCCURS",M155:V155)),"") ->  | BW155: =IF(NEXTCELL(BW$4,M155:V155)="","",NEXTCELL(BW$4,M155:V155)&CI155) ->  | BZ155: =IF(BY155="","",groupketa()) ->  | CD155: =IF(CC155="","",groupketa()) ->  | CE155: =IF(BX155="","",IF(BW155<>"",VLOOKUP(BW155,$BV$6:$CV154,27,FALSE),SUM(CE154,CF154))) ->  | CS155: =IF(BW155<>"",VLOOKUP(BW155,$BV$5:$CQ154,22,FALSE),"") -> 
D156: =IF($A156="","",IF(C156=0,0,IF(ISERROR(SEARCH(" ",$B156,C156+1))=TRUE,0,SEARCH(" ",$B156,C156+1)))) ->  | BO156: =IF(A156="","",NewPic()) ->  | BP156: =IF(NEXTCELL("OCCURS",M156:V156)<>"",VALUE(NEXTCELL("OCCURS",M156:V156)),"") ->  | BW156: =IF(NEXTCELL(BW$4,M156:V156)="","",NEXTCELL(BW$4,M156:V156)&CI156) ->  | BZ156: =IF(BY156="","",groupketa()) ->  | CD156: =IF(CC156="","",groupketa()) ->  | CE156: =IF(BX156="","",IF(BW156<>"",VLOOKUP(BW156,$BV$6:$CV155,27,FALSE),SUM(CE155,CF155))) ->  | CS156: =IF(BW156<>"",VLOOKUP(BW156,$BV$5:$CQ155,22,FALSE),"") -> 
D157: =IF($A157="","",IF(C157=0,0,IF(ISERROR(SEARCH(" ",$B157,C157+1))=TRUE,0,SEARCH(" ",$B157,C157+1)))) ->  | BO157: =IF(A157="","",NewPic()) ->  | BP157: =IF(NEXTCELL("OCCURS",M157:V157)<>"",VALUE(NEXTCELL("OCCURS",M157:V157)),"") ->  | BW157: =IF(NEXTCELL(BW$4,M157:V157)="","",NEXTCELL(BW$4,M157:V157)&CI157) ->  | BZ157: =IF(BY157="","",groupketa()) ->  | CD157: =IF(CC157="","",groupketa()) ->  | CE157: =IF(BX157="","",IF(BW157<>"",VLOOKUP(BW157,$BV$6:$CV156,27,FALSE),SUM(CE156,CF156))) ->  | CS157: =IF(BW157<>"",VLOOKUP(BW157,$BV$5:$CQ156,22,FALSE),"") -> 
D158: =IF($A158="","",IF(C158=0,0,IF(ISERROR(SEARCH(" ",$B158,C158+1))=TRUE,0,SEARCH(" ",$B158,C158+1)))) ->  | BO158: =IF(A158="","",NewPic()) ->  | BP158: =IF(NEXTCELL("OCCURS",M158:V158)<>"",VALUE(NEXTCELL("OCCURS",M158:V158)),"") ->  | BW158: =IF(NEXTCELL(BW$4,M158:V158)="","",NEXTCELL(BW$4,M158:V158)&CI158) ->  | BZ158: =IF(BY158="","",groupketa()) ->  | CD158: =IF(CC158="","",groupketa()) ->  | CE158: =IF(BX158="","",IF(BW158<>"",VLOOKUP(BW158,$BV$6:$CV157,27,FALSE),SUM(CE157,CF157))) ->  | CS158: =IF(BW158<>"",VLOOKUP(BW158,$BV$5:$CQ157,22,FALSE),"") -> 
D159: =IF($A159="","",IF(C159=0,0,IF(ISERROR(SEARCH(" ",$B159,C159+1))=TRUE,0,SEARCH(" ",$B159,C159+1)))) ->  | BO159: =IF(A159="","",NewPic()) ->  | BP159: =IF(NEXTCELL("OCCURS",M159:V159)<>"",VALUE(NEXTCELL("OCCURS",M159:V159)),"") ->  | BW159: =IF(NEXTCELL(BW$4,M159:V159)="","",NEXTCELL(BW$4,M159:V159)&CI159) ->  | BZ159: =IF(BY159="","",groupketa()) ->  | CD159: =IF(CC159="","",groupketa()) ->  | CE159: =IF(BX159="","",IF(BW159<>"",VLOOKUP(BW159,$BV$6:$CV158,27,FALSE),SUM(CE158,CF158))) ->  | CS159: =IF(BW159<>"",VLOOKUP(BW159,$BV$5:$CQ158,22,FALSE),"") -> 
D160: =IF($A160="","",IF(C160=0,0,IF(ISERROR(SEARCH(" ",$B160,C160+1))=TRUE,0,SEARCH(" ",$B160,C160+1)))) ->  | BO160: =IF(A160="","",NewPic()) ->  | BP160: =IF(NEXTCELL("OCCURS",M160:V160)<>"",VALUE(NEXTCELL("OCCURS",M160:V160)),"") ->  | BW160: =IF(NEXTCELL(BW$4,M160:V160)="","",NEXTCELL(BW$4,M160:V160)&CI160) ->  | BZ160: =IF(BY160="","",groupketa()) ->  | CD160: =IF(CC160="","",groupketa()) ->  | CE160: =IF(BX160="","",IF(BW160<>"",VLOOKUP(BW160,$BV$6:$CV159,27,FALSE),SUM(CE159,CF159))) ->  | CS160: =IF(BW160<>"",VLOOKUP(BW160,$BV$5:$CQ159,22,FALSE),"") -> 
D161: =IF($A161="","",IF(C161=0,0,IF(ISERROR(SEARCH(" ",$B161,C161+1))=TRUE,0,SEARCH(" ",$B161,C161+1)))) ->  | BO161: =IF(A161="","",NewPic()) ->  | BP161: =IF(NEXTCELL("OCCURS",M161:V161)<>"",VALUE(NEXTCELL("OCCURS",M161:V161)),"") ->  | BW161: =IF(NEXTCELL(BW$4,M161:V161)="","",NEXTCELL(BW$4,M161:V161)&CI161) ->  | BZ161: =IF(BY161="","",groupketa()) ->  | CD161: =IF(CC161="","",groupketa()) ->  | CE161: =IF(BX161="","",IF(BW161<>"",VLOOKUP(BW161,$BV$6:$CV160,27,FALSE),SUM(CE160,CF160))) ->  | CS161: =IF(BW161<>"",VLOOKUP(BW161,$BV$5:$CQ160,22,FALSE),"") -> 
D162: =IF($A162="","",IF(C162=0,0,IF(ISERROR(SEARCH(" ",$B162,C162+1))=TRUE,0,SEARCH(" ",$B162,C162+1)))) ->  | BO162: =IF(A162="","",NewPic()) ->  | BP162: =IF(NEXTCELL("OCCURS",M162:V162)<>"",VALUE(NEXTCELL("OCCURS",M162:V162)),"") ->  | BW162: =IF(NEXTCELL(BW$4,M162:V162)="","",NEXTCELL(BW$4,M162:V162)&CI162) ->  | BZ162: =IF(BY162="","",groupketa()) ->  | CD162: =IF(CC162="","",groupketa()) ->  | CE162: =IF(BX162="","",IF(BW162<>"",VLOOKUP(BW162,$BV$6:$CV161,27,FALSE),SUM(CE161,CF161))) ->  | CS162: =IF(BW162<>"",VLOOKUP(BW162,$BV$5:$CQ161,22,FALSE),"") -> 
D163: =IF($A163="","",IF(C163=0,0,IF(ISERROR(SEARCH(" ",$B163,C163+1))=TRUE,0,SEARCH(" ",$B163,C163+1)))) ->  | BO163: =IF(A163="","",NewPic()) ->  | BP163: =IF(NEXTCELL("OCCURS",M163:V163)<>"",VALUE(NEXTCELL("OCCURS",M163:V163)),"") ->  | BW163: =IF(NEXTCELL(BW$4,M163:V163)="","",NEXTCELL(BW$4,M163:V163)&CI163) ->  | BZ163: =IF(BY163="","",groupketa()) ->  | CD163: =IF(CC163="","",groupketa()) ->  | CE163: =IF(BX163="","",IF(BW163<>"",VLOOKUP(BW163,$BV$6:$CV162,27,FALSE),SUM(CE162,CF162))) ->  | CS163: =IF(BW163<>"",VLOOKUP(BW163,$BV$5:$CQ162,22,FALSE),"") -> 
D164: =IF($A164="","",IF(C164=0,0,IF(ISERROR(SEARCH(" ",$B164,C164+1))=TRUE,0,SEARCH(" ",$B164,C164+1)))) ->  | BO164: =IF(A164="","",NewPic()) ->  | BP164: =IF(NEXTCELL("OCCURS",M164:V164)<>"",VALUE(NEXTCELL("OCCURS",M164:V164)),"") ->  | BW164: =IF(NEXTCELL(BW$4,M164:V164)="","",NEXTCELL(BW$4,M164:V164)&CI164) ->  | BZ164: =IF(BY164="","",groupketa()) ->  | CD164: =IF(CC164="","",groupketa()) ->  | CE164: =IF(BX164="","",IF(BW164<>"",VLOOKUP(BW164,$BV$6:$CV163,27,FALSE),SUM(CE163,CF163))) ->  | CS164: =IF(BW164<>"",VLOOKUP(BW164,$BV$5:$CQ163,22,FALSE),"") -> 
D165: =IF($A165="","",IF(C165=0,0,IF(ISERROR(SEARCH(" ",$B165,C165+1))=TRUE,0,SEARCH(" ",$B165,C165+1)))) ->  | AI165: =IF($AH165<>AI$4,"",$M165) ->  | BO165: =IF(A165="","",NewPic()) ->  | BP165: =IF(NEXTCELL("OCCURS",M165:V165)<>"",VALUE(NEXTCELL("OCCURS",M165:V165)),"") ->  | BW165: =IF(NEXTCELL(BW$4,M165:V165)="","",NEXTCELL(BW$4,M165:V165)&CI165) ->  | BZ165: =IF(BY165="","",groupketa()) ->  | CD165: =IF(CC165="","",groupketa()) ->  | CE165: =IF(BX165="","",IF(BW165<>"",VLOOKUP(BW165,$BV$6:$CV164,27,FALSE),SUM(CE164,CF164))) ->  | CS165: =IF(BW165<>"",VLOOKUP(BW165,$BV$5:$CQ164,22,FALSE),"") -> 
D166: =IF($A166="","",IF(C166=0,0,IF(ISERROR(SEARCH(" ",$B166,C166+1))=TRUE,0,SEARCH(" ",$B166,C166+1)))) ->  | BO166: =IF(A166="","",NewPic()) ->  | BP166: =IF(NEXTCELL("OCCURS",M166:V166)<>"",VALUE(NEXTCELL("OCCURS",M166:V166)),"") ->  | BW166: =IF(NEXTCELL(BW$4,M166:V166)="","",NEXTCELL(BW$4,M166:V166)&CI166) ->  | BZ166: =IF(BY166="","",groupketa()) ->  | CD166: =IF(CC166="","",groupketa()) ->  | CE166: =IF(BX166="","",IF(BW166<>"",VLOOKUP(BW166,$BV$6:$CV165,27,FALSE),SUM(CE165,CF165))) ->  | CS166: =IF(BW166<>"",VLOOKUP(BW166,$BV$5:$CQ165,22,FALSE),"") -> 
D167: =IF($A167="","",IF(C167=0,0,IF(ISERROR(SEARCH(" ",$B167,C167+1))=TRUE,0,SEARCH(" ",$B167,C167+1)))) ->  | BO167: =IF(A167="","",NewPic()) ->  | BP167: =IF(NEXTCELL("OCCURS",M167:V167)<>"",VALUE(NEXTCELL("OCCURS",M167:V167)),"") ->  | BW167: =IF(NEXTCELL(BW$4,M167:V167)="","",NEXTCELL(BW$4,M167:V167)&CI167) ->  | BZ167: =IF(BY167="","",groupketa()) ->  | CD167: =IF(CC167="","",groupketa()) ->  | CE167: =IF(BX167="","",IF(BW167<>"",VLOOKUP(BW167,$BV$6:$CV166,27,FALSE),SUM(CE166,CF166))) ->  | CS167: =IF(BW167<>"",VLOOKUP(BW167,$BV$5:$CQ166,22,FALSE),"") -> 
D168: =IF($A168="","",IF(C168=0,0,IF(ISERROR(SEARCH(" ",$B168,C168+1))=TRUE,0,SEARCH(" ",$B168,C168+1)))) ->  | BO168: =IF(A168="","",NewPic()) ->  | BP168: =IF(NEXTCELL("OCCURS",M168:V168)<>"",VALUE(NEXTCELL("OCCURS",M168:V168)),"") ->  | BW168: =IF(NEXTCELL(BW$4,M168:V168)="","",NEXTCELL(BW$4,M168:V168)&CI168) ->  | BZ168: =IF(BY168="","",groupketa()) ->  | CD168: =IF(CC168="","",groupketa()) ->  | CE168: =IF(BX168="","",IF(BW168<>"",VLOOKUP(BW168,$BV$6:$CV167,27,FALSE),SUM(CE167,CF167))) ->  | CS168: =IF(BW168<>"",VLOOKUP(BW168,$BV$5:$CQ167,22,FALSE),"") -> 
D169: =IF($A169="","",IF(C169=0,0,IF(ISERROR(SEARCH(" ",$B169,C169+1))=TRUE,0,SEARCH(" ",$B169,C169+1)))) ->  | BO169: =IF(A169="","",NewPic()) ->  | BP169: =IF(NEXTCELL("OCCURS",M169:V169)<>"",VALUE(NEXTCELL("OCCURS",M169:V169)),"") ->  | BW169: =IF(NEXTCELL(BW$4,M169:V169)="","",NEXTCELL(BW$4,M169:V169)&CI169) ->  | BZ169: =IF(BY169="","",groupketa()) ->  | CD169: =IF(CC169="","",groupketa()) ->  | CE169: =IF(BX169="","",IF(BW169<>"",VLOOKUP(BW169,$BV$6:$CV168,27,FALSE),SUM(CE168,CF168))) ->  | CS169: =IF(BW169<>"",VLOOKUP(BW169,$BV$5:$CQ168,22,FALSE),"") -> 
D170: =IF($A170="","",IF(C170=0,0,IF(ISERROR(SEARCH(" ",$B170,C170+1))=TRUE,0,SEARCH(" ",$B170,C170+1)))) ->  | BO170: =IF(A170="","",NewPic()) ->  | BP170: =IF(NEXTCELL("OCCURS",M170:V170)<>"",VALUE(NEXTCELL("OCCURS",M170:V170)),"") ->  | BW170: =IF(NEXTCELL(BW$4,M170:V170)="","",NEXTCELL(BW$4,M170:V170)&CI170) ->  | BZ170: =IF(BY170="","",groupketa()) ->  | CD170: =IF(CC170="","",groupketa()) ->  | CE170: =IF(BX170="","",IF(BW170<>"",VLOOKUP(BW170,$BV$6:$CV169,27,FALSE),SUM(CE169,CF169))) ->  | CS170: =IF(BW170<>"",VLOOKUP(BW170,$BV$5:$CQ169,22,FALSE),"") -> 
D171: =IF($A171="","",IF(C171=0,0,IF(ISERROR(SEARCH(" ",$B171,C171+1))=TRUE,0,SEARCH(" ",$B171,C171+1)))) ->  | BO171: =IF(A171="","",NewPic()) ->  | BP171: =IF(NEXTCELL("OCCURS",M171:V171)<>"",VALUE(NEXTCELL("OCCURS",M171:V171)),"") ->  | BW171: =IF(NEXTCELL(BW$4,M171:V171)="","",NEXTCELL(BW$4,M171:V171)&CI171) ->  | BZ171: =IF(BY171="","",groupketa()) ->  | CD171: =IF(CC171="","",groupketa()) ->  | CE171: =IF(BX171="","",IF(BW171<>"",VLOOKUP(BW171,$BV$6:$CV170,27,FALSE),SUM(CE170,CF170))) ->  | CS171: =IF(BW171<>"",VLOOKUP(BW171,$BV$5:$CQ170,22,FALSE),"") -> 
D172: =IF($A172="","",IF(C172=0,0,IF(ISERROR(SEARCH(" ",$B172,C172+1))=TRUE,0,SEARCH(" ",$B172,C172+1)))) ->  | BO172: =IF(A172="","",NewPic()) ->  | BP172: =IF(NEXTCELL("OCCURS",M172:V172)<>"",VALUE(NEXTCELL("OCCURS",M172:V172)),"") ->  | BW172: =IF(NEXTCELL(BW$4,M172:V172)="","",NEXTCELL(BW$4,M172:V172)&CI172) ->  | BZ172: =IF(BY172="","",groupketa()) ->  | CD172: =IF(CC172="","",groupketa()) ->  | CE172: =IF(BX172="","",IF(BW172<>"",VLOOKUP(BW172,$BV$6:$CV171,27,FALSE),SUM(CE171,CF171))) ->  | CS172: =IF(BW172<>"",VLOOKUP(BW172,$BV$5:$CQ171,22,FALSE),"") -> 
D173: =IF($A173="","",IF(C173=0,0,IF(ISERROR(SEARCH(" ",$B173,C173+1))=TRUE,0,SEARCH(" ",$B173,C173+1)))) ->  | BO173: =IF(A173="","",NewPic()) ->  | BP173: =IF(NEXTCELL("OCCURS",M173:V173)<>"",VALUE(NEXTCELL("OCCURS",M173:V173)),"") ->  | BW173: =IF(NEXTCELL(BW$4,M173:V173)="","",NEXTCELL(BW$4,M173:V173)&CI173) ->  | BZ173: =IF(BY173="","",groupketa()) ->  | CD173: =IF(CC173="","",groupketa()) ->  | CE173: =IF(BX173="","",IF(BW173<>"",VLOOKUP(BW173,$BV$6:$CV172,27,FALSE),SUM(CE172,CF172))) ->  | CS173: =IF(BW173<>"",VLOOKUP(BW173,$BV$5:$CQ172,22,FALSE),"") -> 
D174: =IF($A174="","",IF(C174=0,0,IF(ISERROR(SEARCH(" ",$B174,C174+1))=TRUE,0,SEARCH(" ",$B174,C174+1)))) ->  | BO174: =IF(A174="","",NewPic()) ->  | BP174: =IF(NEXTCELL("OCCURS",M174:V174)<>"",VALUE(NEXTCELL("OCCURS",M174:V174)),"") ->  | BW174: =IF(NEXTCELL(BW$4,M174:V174)="","",NEXTCELL(BW$4,M174:V174)&CI174) ->  | BZ174: =IF(BY174="","",groupketa()) ->  | CD174: =IF(CC174="","",groupketa()) ->  | CE174: =IF(BX174="","",IF(BW174<>"",VLOOKUP(BW174,$BV$6:$CV173,27,FALSE),SUM(CE173,CF173))) ->  | CS174: =IF(BW174<>"",VLOOKUP(BW174,$BV$5:$CQ173,22,FALSE),"") -> 
D175: =IF($A175="","",IF(C175=0,0,IF(ISERROR(SEARCH(" ",$B175,C175+1))=TRUE,0,SEARCH(" ",$B175,C175+1)))) ->  | AI175: =IF($AH175<>AI$4,"",$M175) ->  | BO175: =IF(A175="","",NewPic()) ->  | BP175: =IF(NEXTCELL("OCCURS",M175:V175)<>"",VALUE(NEXTCELL("OCCURS",M175:V175)),"") ->  | BW175: =IF(NEXTCELL(BW$4,M175:V175)="","",NEXTCELL(BW$4,M175:V175)&CI175) ->  | BZ175: =IF(BY175="","",groupketa()) ->  | CD175: =IF(CC175="","",groupketa()) ->  | CE175: =IF(BX175="","",IF(BW175<>"",VLOOKUP(BW175,$BV$6:$CV174,27,FALSE),SUM(CE174,CF174))) ->  | CS175: =IF(BW175<>"",VLOOKUP(BW175,$BV$5:$CQ174,22,FALSE),"") -> 
D176: =IF($A176="","",IF(C176=0,0,IF(ISERROR(SEARCH(" ",$B176,C176+1))=TRUE,0,SEARCH(" ",$B176,C176+1)))) ->  | BO176: =IF(A176="","",NewPic()) ->  | BP176: =IF(NEXTCELL("OCCURS",M176:V176)<>"",VALUE(NEXTCELL("OCCURS",M176:V176)),"") ->  | BW176: =IF(NEXTCELL(BW$4,M176:V176)="","",NEXTCELL(BW$4,M176:V176)&CI176) ->  | BZ176: =IF(BY176="","",groupketa()) ->  | CD176: =IF(CC176="","",groupketa()) ->  | CE176: =IF(BX176="","",IF(BW176<>"",VLOOKUP(BW176,$BV$6:$CV175,27,FALSE),SUM(CE175,CF175))) ->  | CS176: =IF(BW176<>"",VLOOKUP(BW176,$BV$5:$CQ175,22,FALSE),"") -> 
D177: =IF($A177="","",IF(C177=0,0,IF(ISERROR(SEARCH(" ",$B177,C177+1))=TRUE,0,SEARCH(" ",$B177,C177+1)))) ->  | BO177: =IF(A177="","",NewPic()) ->  | BP177: =IF(NEXTCELL("OCCURS",M177:V177)<>"",VALUE(NEXTCELL("OCCURS",M177:V177)),"") ->  | BW177: =IF(NEXTCELL(BW$4,M177:V177)="","",NEXTCELL(BW$4,M177:V177)&CI177) ->  | BZ177: =IF(BY177="","",groupketa()) ->  | CD177: =IF(CC177="","",groupketa()) ->  | CE177: =IF(BX177="","",IF(BW177<>"",VLOOKUP(BW177,$BV$6:$CV176,27,FALSE),SUM(CE176,CF176))) ->  | CS177: =IF(BW177<>"",VLOOKUP(BW177,$BV$5:$CQ176,22,FALSE),"") -> 
D178: =IF($A178="","",IF(C178=0,0,IF(ISERROR(SEARCH(" ",$B178,C178+1))=TRUE,0,SEARCH(" ",$B178,C178+1)))) ->  | BO178: =IF(A178="","",NewPic()) ->  | BP178: =IF(NEXTCELL("OCCURS",M178:V178)<>"",VALUE(NEXTCELL("OCCURS",M178:V178)),"") ->  | BW178: =IF(NEXTCELL(BW$4,M178:V178)="","",NEXTCELL(BW$4,M178:V178)&CI178) ->  | BZ178: =IF(BY178="","",groupketa()) ->  | CD178: =IF(CC178="","",groupketa()) ->  | CE178: =IF(BX178="","",IF(BW178<>"",VLOOKUP(BW178,$BV$6:$CV177,27,FALSE),SUM(CE177,CF177))) ->  | CS178: =IF(BW178<>"",VLOOKUP(BW178,$BV$5:$CQ177,22,FALSE),"") -> 
D179: =IF($A179="","",IF(C179=0,0,IF(ISERROR(SEARCH(" ",$B179,C179+1))=TRUE,0,SEARCH(" ",$B179,C179+1)))) ->  | BO179: =IF(A179="","",NewPic()) ->  | BP179: =IF(NEXTCELL("OCCURS",M179:V179)<>"",VALUE(NEXTCELL("OCCURS",M179:V179)),"") ->  | BW179: =IF(NEXTCELL(BW$4,M179:V179)="","",NEXTCELL(BW$4,M179:V179)&CI179) ->  | BZ179: =IF(BY179="","",groupketa()) ->  | CD179: =IF(CC179="","",groupketa()) ->  | CE179: =IF(BX179="","",IF(BW179<>"",VLOOKUP(BW179,$BV$6:$CV178,27,FALSE),SUM(CE178,CF178))) ->  | CS179: =IF(BW179<>"",VLOOKUP(BW179,$BV$5:$CQ178,22,FALSE),"") -> 
D180: =IF($A180="","",IF(C180=0,0,IF(ISERROR(SEARCH(" ",$B180,C180+1))=TRUE,0,SEARCH(" ",$B180,C180+1)))) ->  | BO180: =IF(A180="","",NewPic()) ->  | BP180: =IF(NEXTCELL("OCCURS",M180:V180)<>"",VALUE(NEXTCELL("OCCURS",M180:V180)),"") ->  | BW180: =IF(NEXTCELL(BW$4,M180:V180)="","",NEXTCELL(BW$4,M180:V180)&CI180) ->  | BZ180: =IF(BY180="","",groupketa()) ->  | CD180: =IF(CC180="","",groupketa()) ->  | CE180: =IF(BX180="","",IF(BW180<>"",VLOOKUP(BW180,$BV$6:$CV179,27,FALSE),SUM(CE179,CF179))) ->  | CS180: =IF(BW180<>"",VLOOKUP(BW180,$BV$5:$CQ179,22,FALSE),"") -> 
D181: =IF($A181="","",IF(C181=0,0,IF(ISERROR(SEARCH(" ",$B181,C181+1))=TRUE,0,SEARCH(" ",$B181,C181+1)))) ->  | BO181: =IF(A181="","",NewPic()) ->  | BP181: =IF(NEXTCELL("OCCURS",M181:V181)<>"",VALUE(NEXTCELL("OCCURS",M181:V181)),"") ->  | BW181: =IF(NEXTCELL(BW$4,M181:V181)="","",NEXTCELL(BW$4,M181:V181)&CI181) ->  | BZ181: =IF(BY181="","",groupketa()) ->  | CD181: =IF(CC181="","",groupketa()) ->  | CE181: =IF(BX181="","",IF(BW181<>"",VLOOKUP(BW181,$BV$6:$CV180,27,FALSE),SUM(CE180,CF180))) ->  | CS181: =IF(BW181<>"",VLOOKUP(BW181,$BV$5:$CQ180,22,FALSE),"") -> 
D182: =IF($A182="","",IF(C182=0,0,IF(ISERROR(SEARCH(" ",$B182,C182+1))=TRUE,0,SEARCH(" ",$B182,C182+1)))) ->  | BO182: =IF(A182="","",NewPic()) ->  | BP182: =IF(NEXTCELL("OCCURS",M182:V182)<>"",VALUE(NEXTCELL("OCCURS",M182:V182)),"") ->  | BW182: =IF(NEXTCELL(BW$4,M182:V182)="","",NEXTCELL(BW$4,M182:V182)&CI182) ->  | BZ182: =IF(BY182="","",groupketa()) ->  | CD182: =IF(CC182="","",groupketa()) ->  | CE182: =IF(BX182="","",IF(BW182<>"",VLOOKUP(BW182,$BV$6:$CV181,27,FALSE),SUM(CE181,CF181))) ->  | CS182: =IF(BW182<>"",VLOOKUP(BW182,$BV$5:$CQ181,22,FALSE),"") -> 
D183: =IF($A183="","",IF(C183=0,0,IF(ISERROR(SEARCH(" ",$B183,C183+1))=TRUE,0,SEARCH(" ",$B183,C183+1)))) ->  | BO183: =IF(A183="","",NewPic()) ->  | BP183: =IF(NEXTCELL("OCCURS",M183:V183)<>"",VALUE(NEXTCELL("OCCURS",M183:V183)),"") ->  | BW183: =IF(NEXTCELL(BW$4,M183:V183)="","",NEXTCELL(BW$4,M183:V183)&CI183) ->  | BZ183: =IF(BY183="","",groupketa()) ->  | CD183: =IF(CC183="","",groupketa()) ->  | CE183: =IF(BX183="","",IF(BW183<>"",VLOOKUP(BW183,$BV$6:$CV182,27,FALSE),SUM(CE182,CF182))) ->  | CS183: =IF(BW183<>"",VLOOKUP(BW183,$BV$5:$CQ182,22,FALSE),"") -> 
D184: =IF($A184="","",IF(C184=0,0,IF(ISERROR(SEARCH(" ",$B184,C184+1))=TRUE,0,SEARCH(" ",$B184,C184+1)))) ->  | BO184: =IF(A184="","",NewPic()) ->  | BP184: =IF(NEXTCELL("OCCURS",M184:V184)<>"",VALUE(NEXTCELL("OCCURS",M184:V184)),"") ->  | BW184: =IF(NEXTCELL(BW$4,M184:V184)="","",NEXTCELL(BW$4,M184:V184)&CI184) ->  | BZ184: =IF(BY184="","",groupketa()) ->  | CD184: =IF(CC184="","",groupketa()) ->  | CE184: =IF(BX184="","",IF(BW184<>"",VLOOKUP(BW184,$BV$6:$CV183,27,FALSE),SUM(CE183,CF183))) ->  | CS184: =IF(BW184<>"",VLOOKUP(BW184,$BV$5:$CQ183,22,FALSE),"") -> 
D185: =IF($A185="","",IF(C185=0,0,IF(ISERROR(SEARCH(" ",$B185,C185+1))=TRUE,0,SEARCH(" ",$B185,C185+1)))) ->  | AI185: =IF($AH185<>AI$4,"",$M185) ->  | BO185: =IF(A185="","",NewPic()) ->  | BP185: =IF(NEXTCELL("OCCURS",M185:V185)<>"",VALUE(NEXTCELL("OCCURS",M185:V185)),"") ->  | BW185: =IF(NEXTCELL(BW$4,M185:V185)="","",NEXTCELL(BW$4,M185:V185)&CI185) ->  | BZ185: =IF(BY185="","",groupketa()) ->  | CD185: =IF(CC185="","",groupketa()) ->  | CE185: =IF(BX185="","",IF(BW185<>"",VLOOKUP(BW185,$BV$6:$CV184,27,FALSE),SUM(CE184,CF184))) ->  | CS185: =IF(BW185<>"",VLOOKUP(BW185,$BV$5:$CQ184,22,FALSE),"") -> 
D186: =IF($A186="","",IF(C186=0,0,IF(ISERROR(SEARCH(" ",$B186,C186+1))=TRUE,0,SEARCH(" ",$B186,C186+1)))) ->  | BO186: =IF(A186="","",NewPic()) ->  | BP186: =IF(NEXTCELL("OCCURS",M186:V186)<>"",VALUE(NEXTCELL("OCCURS",M186:V186)),"") ->  | BW186: =IF(NEXTCELL(BW$4,M186:V186)="","",NEXTCELL(BW$4,M186:V186)&CI186) ->  | BZ186: =IF(BY186="","",groupketa()) ->  | CD186: =IF(CC186="","",groupketa()) ->  | CE186: =IF(BX186="","",IF(BW186<>"",VLOOKUP(BW186,$BV$6:$CV185,27,FALSE),SUM(CE185,CF185))) ->  | CS186: =IF(BW186<>"",VLOOKUP(BW186,$BV$5:$CQ185,22,FALSE),"") -> 
D187: =IF($A187="","",IF(C187=0,0,IF(ISERROR(SEARCH(" ",$B187,C187+1))=TRUE,0,SEARCH(" ",$B187,C187+1)))) ->  | BO187: =IF(A187="","",NewPic()) ->  | BP187: =IF(NEXTCELL("OCCURS",M187:V187)<>"",VALUE(NEXTCELL("OCCURS",M187:V187)),"") ->  | BW187: =IF(NEXTCELL(BW$4,M187:V187)="","",NEXTCELL(BW$4,M187:V187)&CI187) ->  | BZ187: =IF(BY187="","",groupketa()) ->  | CD187: =IF(CC187="","",groupketa()) ->  | CE187: =IF(BX187="","",IF(BW187<>"",VLOOKUP(BW187,$BV$6:$CV186,27,FALSE),SUM(CE186,CF186))) ->  | CS187: =IF(BW187<>"",VLOOKUP(BW187,$BV$5:$CQ186,22,FALSE),"") -> 
D188: =IF($A188="","",IF(C188=0,0,IF(ISERROR(SEARCH(" ",$B188,C188+1))=TRUE,0,SEARCH(" ",$B188,C188+1)))) ->  | BO188: =IF(A188="","",NewPic()) ->  | BP188: =IF(NEXTCELL("OCCURS",M188:V188)<>"",VALUE(NEXTCELL("OCCURS",M188:V188)),"") ->  | BW188: =IF(NEXTCELL(BW$4,M188:V188)="","",NEXTCELL(BW$4,M188:V188)&CI188) ->  | BZ188: =IF(BY188="","",groupketa()) ->  | CD188: =IF(CC188="","",groupketa()) ->  | CE188: =IF(BX188="","",IF(BW188<>"",VLOOKUP(BW188,$BV$6:$CV187,27,FALSE),SUM(CE187,CF187))) ->  | CS188: =IF(BW188<>"",VLOOKUP(BW188,$BV$5:$CQ187,22,FALSE),"") -> 
D189: =IF($A189="","",IF(C189=0,0,IF(ISERROR(SEARCH(" ",$B189,C189+1))=TRUE,0,SEARCH(" ",$B189,C189+1)))) ->  | BO189: =IF(A189="","",NewPic()) ->  | BP189: =IF(NEXTCELL("OCCURS",M189:V189)<>"",VALUE(NEXTCELL("OCCURS",M189:V189)),"") ->  | BW189: =IF(NEXTCELL(BW$4,M189:V189)="","",NEXTCELL(BW$4,M189:V189)&CI189) ->  | BZ189: =IF(BY189="","",groupketa()) ->  | CD189: =IF(CC189="","",groupketa()) ->  | CE189: =IF(BX189="","",IF(BW189<>"",VLOOKUP(BW189,$BV$6:$CV188,27,FALSE),SUM(CE188,CF188))) ->  | CS189: =IF(BW189<>"",VLOOKUP(BW189,$BV$5:$CQ188,22,FALSE),"") -> 
D190: =IF($A190="","",IF(C190=0,0,IF(ISERROR(SEARCH(" ",$B190,C190+1))=TRUE,0,SEARCH(" ",$B190,C190+1)))) ->  | BO190: =IF(A190="","",NewPic()) ->  | BP190: =IF(NEXTCELL("OCCURS",M190:V190)<>"",VALUE(NEXTCELL("OCCURS",M190:V190)),"") ->  | BW190: =IF(NEXTCELL(BW$4,M190:V190)="","",NEXTCELL(BW$4,M190:V190)&CI190) ->  | BZ190: =IF(BY190="","",groupketa()) ->  | CD190: =IF(CC190="","",groupketa()) ->  | CE190: =IF(BX190="","",IF(BW190<>"",VLOOKUP(BW190,$BV$6:$CV189,27,FALSE),SUM(CE189,CF189))) ->  | CS190: =IF(BW190<>"",VLOOKUP(BW190,$BV$5:$CQ189,22,FALSE),"") -> 
D191: =IF($A191="","",IF(C191=0,0,IF(ISERROR(SEARCH(" ",$B191,C191+1))=TRUE,0,SEARCH(" ",$B191,C191+1)))) ->  | BO191: =IF(A191="","",NewPic()) ->  | BP191: =IF(NEXTCELL("OCCURS",M191:V191)<>"",VALUE(NEXTCELL("OCCURS",M191:V191)),"") ->  | BW191: =IF(NEXTCELL(BW$4,M191:V191)="","",NEXTCELL(BW$4,M191:V191)&CI191) ->  | BZ191: =IF(BY191="","",groupketa()) ->  | CD191: =IF(CC191="","",groupketa()) ->  | CE191: =IF(BX191="","",IF(BW191<>"",VLOOKUP(BW191,$BV$6:$CV190,27,FALSE),SUM(CE190,CF190))) ->  | CS191: =IF(BW191<>"",VLOOKUP(BW191,$BV$5:$CQ190,22,FALSE),"") -> 
D192: =IF($A192="","",IF(C192=0,0,IF(ISERROR(SEARCH(" ",$B192,C192+1))=TRUE,0,SEARCH(" ",$B192,C192+1)))) ->  | BO192: =IF(A192="","",NewPic()) ->  | BP192: =IF(NEXTCELL("OCCURS",M192:V192)<>"",VALUE(NEXTCELL("OCCURS",M192:V192)),"") ->  | BW192: =IF(NEXTCELL(BW$4,M192:V192)="","",NEXTCELL(BW$4,M192:V192)&CI192) ->  | BZ192: =IF(BY192="","",groupketa()) ->  | CD192: =IF(CC192="","",groupketa()) ->  | CE192: =IF(BX192="","",IF(BW192<>"",VLOOKUP(BW192,$BV$6:$CV191,27,FALSE),SUM(CE191,CF191))) ->  | CS192: =IF(BW192<>"",VLOOKUP(BW192,$BV$5:$CQ191,22,FALSE),"") -> 
D193: =IF($A193="","",IF(C193=0,0,IF(ISERROR(SEARCH(" ",$B193,C193+1))=TRUE,0,SEARCH(" ",$B193,C193+1)))) ->  | BO193: =IF(A193="","",NewPic()) ->  | BP193: =IF(NEXTCELL("OCCURS",M193:V193)<>"",VALUE(NEXTCELL("OCCURS",M193:V193)),"") ->  | BW193: =IF(NEXTCELL(BW$4,M193:V193)="","",NEXTCELL(BW$4,M193:V193)&CI193) ->  | BZ193: =IF(BY193="","",groupketa()) ->  | CD193: =IF(CC193="","",groupketa()) ->  | CE193: =IF(BX193="","",IF(BW193<>"",VLOOKUP(BW193,$BV$6:$CV192,27,FALSE),SUM(CE192,CF192))) ->  | CS193: =IF(BW193<>"",VLOOKUP(BW193,$BV$5:$CQ192,22,FALSE),"") -> 
D194: =IF($A194="","",IF(C194=0,0,IF(ISERROR(SEARCH(" ",$B194,C194+1))=TRUE,0,SEARCH(" ",$B194,C194+1)))) ->  | BO194: =IF(A194="","",NewPic()) ->  | BP194: =IF(NEXTCELL("OCCURS",M194:V194)<>"",VALUE(NEXTCELL("OCCURS",M194:V194)),"") ->  | BW194: =IF(NEXTCELL(BW$4,M194:V194)="","",NEXTCELL(BW$4,M194:V194)&CI194) ->  | BZ194: =IF(BY194="","",groupketa()) ->  | CD194: =IF(CC194="","",groupketa()) ->  | CE194: =IF(BX194="","",IF(BW194<>"",VLOOKUP(BW194,$BV$6:$CV193,27,FALSE),SUM(CE193,CF193))) ->  | CS194: =IF(BW194<>"",VLOOKUP(BW194,$BV$5:$CQ193,22,FALSE),"") -> 
D195: =IF($A195="","",IF(C195=0,0,IF(ISERROR(SEARCH(" ",$B195,C195+1))=TRUE,0,SEARCH(" ",$B195,C195+1)))) ->  | AI195: =IF($AH195<>AI$4,"",$M195) ->  | BO195: =IF(A195="","",NewPic()) ->  | BP195: =IF(NEXTCELL("OCCURS",M195:V195)<>"",VALUE(NEXTCELL("OCCURS",M195:V195)),"") ->  | BW195: =IF(NEXTCELL(BW$4,M195:V195)="","",NEXTCELL(BW$4,M195:V195)&CI195) ->  | BZ195: =IF(BY195="","",groupketa()) ->  | CD195: =IF(CC195="","",groupketa()) ->  | CE195: =IF(BX195="","",IF(BW195<>"",VLOOKUP(BW195,$BV$6:$CV194,27,FALSE),SUM(CE194,CF194))) ->  | CS195: =IF(BW195<>"",VLOOKUP(BW195,$BV$5:$CQ194,22,FALSE),"") -> 
D196: =IF($A196="","",IF(C196=0,0,IF(ISERROR(SEARCH(" ",$B196,C196+1))=TRUE,0,SEARCH(" ",$B196,C196+1)))) ->  | BO196: =IF(A196="","",NewPic()) ->  | BP196: =IF(NEXTCELL("OCCURS",M196:V196)<>"",VALUE(NEXTCELL("OCCURS",M196:V196)),"") ->  | BW196: =IF(NEXTCELL(BW$4,M196:V196)="","",NEXTCELL(BW$4,M196:V196)&CI196) ->  | BZ196: =IF(BY196="","",groupketa()) ->  | CD196: =IF(CC196="","",groupketa()) ->  | CE196: =IF(BX196="","",IF(BW196<>"",VLOOKUP(BW196,$BV$6:$CV195,27,FALSE),SUM(CE195,CF195))) ->  | CS196: =IF(BW196<>"",VLOOKUP(BW196,$BV$5:$CQ195,22,FALSE),"") -> 
B197: =IF(OR(LEFT(TRIM(SUBSTITUTE(A197,"."," ")),1) = "*",LEFT(TRIM(SUBSTITUTE(A197,"."," ")),1) = "/"),"",TRIM(SUBSTITUTE(A197,"."," "))&" ") ->  | C197: =IF($A197="","",IF(B197=" ",0,IF(ISERROR(SEARCH(" ",B197,1))=TRUE,0,SEARCH(" ",B197,1)))) ->  | D197: =IF($A197="","",IF(C197=0,0,IF(ISERROR(SEARCH(" ",$B197,C197+1))=TRUE,0,SEARCH(" ",$B197,C197+1)))) ->  | M197: =IF($A197="","",IF(C197=0,"",MID(B197,1,C197-1))) ->  | N197: =IF($A197="","",IF(OR(C197=0,D197=0),"",IF(MID(M197,1,2)="*>","",MID($B197,C197+1,D197-C197-1)))) ->  | O197: =IF($A197="","",IF(OR(D197=0,E197=0),"",IF(MID(N197,1,2)="*>","",MID($B197,D197+1,E197-D197-1)))) ->  | P197: =IF($A197="","",IF(OR(E197=0,F197=0),"",IF(MID(O197,1,2)="*>","",MID($B197,E197+1,F197-E197-1)))) ->  | Q197: =IF($A197="","",IF(OR(F197=0,G197=0),"",IF(MID(P197,1,2)="*>","",MID($B197,F197+1,G197-F197-1)))) ->  | R197: =IF($A197="","",IF(OR(G197=0,H197=0),"",IF(MID(Q197,1,2)="*>","",MID($B197,G197+1,H197-G197-1)))) ->  | S197: =IF($A197="","",IF(OR(H197=0,I197=0),"",IF(MID(R197,1,2)="*>","",MID($B197,H197+1,I197-H197-1)))) ->  | T197: =IF($A197="","",IF(OR(I197=0,J197=0),"",IF(MID(S197,1,2)="*>","",MID($B197,I197+1,J197-I197-1)))) ->  | U197: =IF($A197="","",IF(OR(J197=0,K197=0),"",IF(MID(T197,1,2)="*>","",MID($B197,J197+1,K197-J197-1)))) ->  | V197: =IF($A197="","",IF(OR(K197=0,L197=0),"",IF(MID(U197,1,2)="*>","",MID($B197,K197+1,L197-K197-1)))) ->  | AH197: =IF(M197="","",levelget()) ->  | AS197: =IF(N197<>"",TRIM(N197)&CI197,"") ->  | AU197: =IF(ISERROR(SEARCH("V",$AT197,1))=TRUE,"",SEARCH("V",$AT197,1)) ->  | AV197: =IF(AU197="",AT197,MID(AT197,1,AU197-1)) ->  | AW197: =IF(ISERROR(SEARCH(AW$4,$AV197,1))=TRUE,"",SEARCH(AW$4,$AV197,1)) ->  | AX197: =IF(MID(AV197,1,1)="S","S","") ->  | AY197: =IF(AX197="S","9",MID(AV197,1,1)) ->  | AZ197: =IF($AT197="","",IF(AW197="","",VALUE(MID(AV197,AW197+1,SEARCH(")",AV197,1)-AW197-1)))) ->  | BA197: =IF($AT197="","",IF(AZ197<>"","",IF(AX197="",VALUE(LEN(AV197)),VALUE(LEN(AV197)-1)))) ->  | BB197: =IF($AT197="","",SUM(AZ197:BA197)) ->  | BC197: =IF(AU197="","",MID(AT197,AU197+1,LEN(AT197)-AU197)) ->  | BD197: =IF(ISERROR(SEARCH(BD$4,$BC197,1))=TRUE,"",SEARCH(BD$4,$BC197,1)) ->  | BE197: =MID(BC197,1,1) ->  | BF197: =IF($AT197="","",IF(BD197="","",VALUE(MID(BC197,BD197+1,SEARCH(")",BC197,1)-BD197-1)))) ->  | BG197: =IF(OR($AT197="",BC197="",BF197<>""),"",VALUE(LEN(BC197))) ->  | BH197: =IF($BC197="","",SUM(BF197:BG197)) ->  | BI197: =IF($AT197="","",SUM(BB197,BH197)) ->  | BJ197: =IF(ISERROR(HLOOKUP(BJ$4,M197:V197,1,FALSE))=TRUE,"","P") ->  | BK197: =IF(ISERROR(HLOOKUP(BK$4,N197:AI197,1,FALSE))=TRUE,"","C") ->  | BL197: =IF(OR(BJ197<>"",BK197<>""),"P","") ->  | BM197: =IF(BI197=0,0,IF(AY197="N",BI197*2,IF(BL197<>"",ROUNDUP((BI197+1)/2,0),BI197))) ->  | BN197: =IF(A197="","",IF(AT197="","集団","")) ->  | BO197: =IF(A197="","",NewPic()) ->  | BP197: =IF(NEXTCELL("OCCURS",M197:V197)<>"",VALUE(NEXTCELL("OCCURS",M197:V197)),"") ->  | BQ197: =IF(AND(BQ196="",BP197=""),"",IF(AND(BQ196<>"",$AH197>BQ196),BQ196,IF($BP197<>"",$AH197,""))) ->  | BR197: =IF(AND(BR196="",BP197=""),"",IF(AND(BR196<>"",$AH197>BR196),BR196,IF(AND($BP197<>"",$AH197<>BQ197),$AH197,""))) ->  | BS197: =IF(AND(BS196="",BP197=""),"",IF(AND(BS196<>"",$AH197>BS196),BS196,IF(AND($BP197<>"",$AH197<>BQ197,$AH197<>BR197),$AH197,""))) ->  | BT197: =IF(AND(BT196="",BP197=""),"",IF(AND(BT196<>"",$AH197>BT196),BT196,IF(AND($BP197<>"",$AH197<>BQ197,$AH197<>BR197,$AH197<>BS197),$AH197,""))) ->  | BU197: =IF(AND(BU196="",BP197=""),"",IF(AND(BU196<>"",$AH197>BU196),BU196,IF(AND($BP197<>"",$AH197<>BQ197,$AH197<>BR197,$AH197<>BS197,$AH197<>BT197),$AH197,""))) ->  | BW197: =IF(NEXTCELL(BW$4,M197:V197)="","",NEXTCELL(BW$4,M197:V197)&CI197) ->  | BX197: =IF(AND(BV197="",BW197="",BX196=""),"",IF(BW197<>"",IF(AND(BX196<>"",AH197>BX196),BX196,AH197),IF(AND(BX196<>"",AH197>BX196),BX196,""))) ->  | BY197: =IF(OR(BN197="",BX197<>""),"",CA197) ->  | BZ197: =IF(BY197="","",groupketa()) ->  | CD197: =IF(CC197="","",groupketa()) ->  | CE197: =IF(BX197="","",IF(BW197<>"",VLOOKUP(BW197,$BV$6:$CV196,27,FALSE),SUM(CE196,CF196))) ->  | CF197: =IF(AND(A197<>"",BX197<>"",BN197=""),BM197,"") ->  | CQ197: =IF(BZ197<>"",BZ197,IF(CB197<>"",CB197,IF(CD197<>"",CD197,IF(CF197<>"",CF197,"")))) ->  | CR197: =IF(BW197<>"",IF(CD197<>"",CD197,CF197),"") ->  | CS197: =IF(BW197<>"",VLOOKUP(BW197,$BV$5:$CQ196,22,FALSE),"") ->  | CT197: =IF(CR197<>CS197,"×","") -> 
D198: =IF($A198="","",IF(C198=0,0,IF(ISERROR(SEARCH(" ",$B198,C198+1))=TRUE,0,SEARCH(" ",$B198,C198+1)))) ->  | AT198: =NEXTCELL(AT$3,M198:V198) ->  | BO198: =IF(A198="","",NewPic()) ->  | BP198: =IF(NEXTCELL("OCCURS",M198:V198)<>"",VALUE(NEXTCELL("OCCURS",M198:V198)),"") ->  | BW198: =IF(NEXTCELL(BW$4,M198:V198)="","",NEXTCELL(BW$4,M198:V198)&CI198) ->  | BZ198: =IF(BY198="","",groupketa()) ->  | CA198: =IF(BX198<>"","",IF(AH198=1,1,IF(A198<>"",IF(CA197<>"",SUM(CA197,CB197),SUM(CE197,CF197)),""))) ->  | CB198: =IF(AND(A198<>"",BX198="",BN198=""),BM198,"") ->  | CC198: =IF(AND(BN198<>"",CE198<>""),CE198,"") ->  | CD198: =IF(CC198="","",groupketa()) ->  | CE198: =IF(BX198="","",IF(BW198<>"",VLOOKUP(BW198,$BV$6:$CV197,27,FALSE),SUM(CE197,CF197))) ->  | CH198: =TRIM(MID(getcell("*>",M198:V198),3,30)) ->  | CS198: =IF(BW198<>"",VLOOKUP(BW198,$BV$5:$CQ197,22,FALSE),"") ->  | CU198: =IF(BV198<>"",AH198,IF(AH198>CU197,CU197,"")) -> 
D199: =IF($A199="","",IF(C199=0,0,IF(ISERROR(SEARCH(" ",$B199,C199+1))=TRUE,0,SEARCH(" ",$B199,C199+1)))) ->  | BO199: =IF(A199="","",NewPic()) ->  | BP199: =IF(NEXTCELL("OCCURS",M199:V199)<>"",VALUE(NEXTCELL("OCCURS",M199:V199)),"") ->  | BW199: =IF(NEXTCELL(BW$4,M199:V199)="","",NEXTCELL(BW$4,M199:V199)&CI199) ->  | BZ199: =IF(BY199="","",groupketa()) ->  | CD199: =IF(CC199="","",groupketa()) ->  | CE199: =IF(BX199="","",IF(BW199<>"",VLOOKUP(BW199,$BV$6:$CV198,27,FALSE),SUM(CE198,CF198))) ->  | CS199: =IF(BW199<>"",VLOOKUP(BW199,$BV$5:$CQ198,22,FALSE),"") -> 
D200: =IF($A200="","",IF(C200=0,0,IF(ISERROR(SEARCH(" ",$B200,C200+1))=TRUE,0,SEARCH(" ",$B200,C200+1)))) ->  | BO200: =IF(A200="","",NewPic()) ->  | BP200: =IF(NEXTCELL("OCCURS",M200:V200)<>"",VALUE(NEXTCELL("OCCURS",M200:V200)),"") ->  | BV200: =IF(ISERROR(VLOOKUP(AS200,$BW201:$BW1132,1,FALSE))=TRUE,"",VLOOKUP(AS200,$BW201:$BW1132,1,FALSE)) ->  | BW200: =IF(NEXTCELL(BW$4,M200:V200)="","",NEXTCELL(BW$4,M200:V200)&CI200) ->  | BZ200: =IF(BY200="","",groupketa()) ->  | CD200: =IF(CC200="","",groupketa()) ->  | CE200: =IF(BX200="","",IF(BW200<>"",VLOOKUP(BW200,$BV$6:$CV199,27,FALSE),SUM(CE199,CF199))) ->  | CS200: =IF(BW200<>"",VLOOKUP(BW200,$BV$5:$CQ199,22,FALSE),"") -> 
... 362 more rows

Sheet ソーステキスト (hidden)
A399: 

Sheet TEMPLATE1 (hidden)
B1: お客様名称 | U1: ファイル名 | AZ1: 作成日：
B2: システム名 | U2: レコード名 | AO2: ＲＬ
B3: ｻﾌﾞｼｽﾃﾑ名 | U3: コピー句名 | AO3: PREFIX | BF3: /
B5: レベル番号 | G5: ｱｲﾃﾑ名称 | R5: 項目名称（日本語） | AC5: ﾃｰﾌﾞﾙ 添字 | AF5: ﾀｲﾌﾟ | AH5: 桁数 | AL5: USAGE | AM5: 開始桁 | AP5: 集団 | AS5: 基本 | AV5: OCCURS | AX5: 再定義先 | BC5: 備考
AH6: 整数部 | AJ6: 少数部 | AP6: バイト数 | AS6: バイト数

Sheet TEMPLATE2 (hidden)
A1: お客様名称 | N1: システム名 | AA1: サブシステム名 | AN1: ファイル名 | BA1: レコード名 | BN1: ＲＬ | BS1: PREFIX | BW1: コピー句名 | CH1: 作成日 | CQ1: 頁
CT2: /
I4: 10 | S4: =I4+10 -> 20 | AC4: =S4+10 -> 30 | AM4: =AC4+10 -> 40 | AW4: =AM4+10 -> 50 | BG4: =AW4+10 -> 60 | BQ4: =BG4+10 -> 70 | CA4: =BQ4+10 -> 80 | CK4: =CA4+10 -> 90 | CU4: =CK4+10 -> 100
A5: 桁 | B5: 1 | C5: 2 | D5: 3 | E5: 4 | F5: 5 | G5: 6 | H5: 7 | I5: 8 | J5: 9 | L5: 1 | M5: 2 | N5: 3 | O5: 4 | P5: 5 | Q5: 6 | R5: 7 | S5: 8 | T5: 9 | V5: 1 | W5: 2 | X5: 3 | Y5: 4 | Z5: 5 | AA5: 6 | AB5: 7 | AC5: 8 | AD5: 9 | AF5: 1 | AG5: 2 | AH5: 3 | AI5: 4 | AJ5: 5 | AK5: 6 | AL5: 7 | AM5: 8 | AN5: 9 | AP5: 1 | AQ5: 2 | AR5: 3 | AS5: 4 | AT5: 5 | AU5: 6 | AV5: 7 | AW5: 8 | AX5: 9 | AZ5: 1 | BA5: 2 | BB5: 3 | BC5: 4 | BD5: 5 | BE5: 6 | BF5: 7 | BG5: 8 | BH5: 9 | BJ5: 1 | BK5: 2 | BL5: 3 | BM5: 4 | BN5: 5 | BO5: 6 | BP5: 7 | BQ5: 8 | BR5: 9 | BT5: 1 | BU5: 2 | BV5: 3 | BW5: 4 | BX5: 5 | BY5: 6 | BZ5: 7 | CA5: 8 | CB5: 9 | CD5: 1 | CE5: 2 | CF5: 3 | CG5: 4 | CH5: 5 | CI5: 6 | CJ5: 7 | CK5: 8 | CL5: 9 | CN5: 1 | CO5: 2 | CP5: 3 | CQ5: 4 | CR5: 5 | CS5: 6 | CT5: 7 | CU5: 8 | CV5: 9
A6: 内 容
A17: 属性
A18: USAGE
A19: byte
I21: =I4+100 -> 110 | S21: =I21+10 -> 120 | AC21: =S21+10 -> 130 | AM21: =AC21+10 -> 140 | AW21: =AM21+10 -> 150 | BG21: =AW21+10 -> 160 | BQ21: =BG21+10 -> 170 | CA21: =BQ21+10 -> 180 | CK21: =CA21+10 -> 190 | CU21: =CK21+10 -> 200
A22: 桁 | B22: 1 | C22: 2 | D22: 3 | E22: 4 | F22: 5 | G22: 6 | H22: 7 | I22: 8 | J22: 9 | L22: 1 | M22: 2 | N22: 3 | O22: 4 | P22: 5 | Q22: 6 | R22: 7 | S22: 8 | T22: 9 | V22: 1 | W22: 2 | X22: 3 | Y22: 4 | Z22: 5 | AA22: 6 | AB22: 7 | AC22: 8 | AD22: 9 | AF22: 1 | AG22: 2 | AH22: 3 | AI22: 4 | AJ22: 5 | AK22: 6 | AL22: 7 | AM22: 8 | AN22: 9 | AP22: 1 | AQ22: 2 | AR22: 3 | AS22: 4 | AT22: 5 | AU22: 6 | AV22: 7 | AW22: 8 | AX22: 9 | AZ22: 1 | BA22: 2 | BB22: 3 | BC22: 4 | BD22: 5 | BE22: 6 | BF22: 7 | BG22: 8 | BH22: 9 | BJ22: 1 | BK22: 2 | BL22: 3 | BM22: 4 | BN22: 5 | BO22: 6 | BP22: 7 | BQ22: 8 | BR22: 9 | BT22: 1 | BU22: 2 | BV22: 3 | BW22: 4 | BX22: 5 | BY22: 6 | BZ22: 7 | CA22: 8 | CB22: 9 | CD22: 1 | CE22: 2 | CF22: 3 | CG22: 4 | CH22: 5 | CI22: 6 | CJ22: 7 | CK22: 8 | CL22: 9 | CN22: 1 | CO22: 2 | CP22: 3 | CQ22: 4 | CR22: 5 | CS22: 6 | CT22: 7 | CU22: 8 | CV22: 9
A23: 内 容
A34: 属性
A35: USAGE
A36: byte
I38: =I21+100 -> 210 | S38: =I38+10 -> 220 | AC38: =S38+10 -> 230 | AM38: =AC38+10 -> 240 | AW38: =AM38+10 -> 250 | BG38: =AW38+10 -> 260 | BQ38: =BG38+10 -> 270 | CA38: =BQ38+10 -> 280 | CK38: =CA38+10 -> 290 | CU38: =CK38+10 -> 300
A39: 桁 | B39: 1 | C39: 2 | D39: 3 | E39: 4 | F39: 5 | G39: 6 | H39: 7 | I39: 8 | J39: 9 | L39: 1 | M39: 2 | N39: 3 | O39: 4 | P39: 5 | Q39: 6 | R39: 7 | S39: 8 | T39: 9 | V39: 1 | W39: 2 | X39: 3 | Y39: 4 | Z39: 5 | AA39: 6 | AB39: 7 | AC39: 8 | AD39: 9 | AF39: 1 | AG39: 2 | AH39: 3 | AI39: 4 | AJ39: 5 | AK39: 6 | AL39: 7 | AM39: 8 | AN39: 9 | AP39: 1 | AQ39: 2 | AR39: 3 | AS39: 4 | AT39: 5 | AU39: 6 | AV39: 7 | AW39: 8 | AX39: 9 | AZ39: 1 | BA39: 2 | BB39: 3 | BC39: 4 | BD39: 5 | BE39: 6 | BF39: 7 | BG39: 8 | BH39: 9 | BJ39: 1 | BK39: 2 | BL39: 3 | BM39: 4 | BN39: 5 | BO39: 6 | BP39: 7 | BQ39: 8 | BR39: 9 | BT39: 1 | BU39: 2 | BV39: 3 | BW39: 4 | BX39: 5 | BY39: 6 | BZ39: 7 | CA39: 8 | CB39: 9 | CD39: 1 | CE39: 2 | CF39: 3 | CG39: 4 | CH39: 5 | CI39: 6 | CJ39: 7 | CK39: 8 | CL39: 9 | CN39: 1 | CO39: 2 | CP39: 3 | CQ39: 4 | CR39: 5 | CS39: 6 | CT39: 7 | CU39: 8 | CV39: 9
A40: 内 容
A51: 属性
A52: USAGE
A53: byte
I55: =I38+100 -> 310 | S55: =I55+10 -> 320 | AC55: =S55+10 -> 330 | AM55: =AC55+10 -> 340 | AW55: =AM55+10 -> 350 | BG55: =AW55+10 -> 360 | BQ55: =BG55+10 -> 370 | CA55: =BQ55+10 -> 380 | CK55: =CA55+10 -> 390 | CU55: =CK55+10 -> 400
A56: 桁 | B56: 1 | C56: 2 | D56: 3 | E56: 4 | F56: 5 | G56: 6 | H56: 7 | I56: 8 | J56: 9 | L56: 1 | M56: 2 | N56: 3 | O56: 4 | P56: 5 | Q56: 6 | R56: 7 | S56: 8 | T56: 9 | V56: 1 | W56: 2 | X56: 3 | Y56: 4 | Z56: 5 | AA56: 6 | AB56: 7 | AC56: 8 | AD56: 9 | AF56: 1 | AG56: 2 | AH56: 3 | AI56: 4 | AJ56: 5 | AK56: 6 | AL56: 7 | AM56: 8 | AN56: 9 | AP56: 1 | AQ56: 2 | AR56: 3 | AS56: 4 | AT56: 5 | AU56: 6 | AV56: 7 | AW56: 8 | AX56: 9 | AZ56: 1 | BA56: 2 | BB56: 3 | BC56: 4 | BD56: 5 | BE56: 6 | BF56: 7 | BG56: 8 | BH56: 9 | BJ56: 1 | BK56: 2 | BL56: 3 | BM56: 4 | BN56: 5 | BO56: 6 | BP56: 7 | BQ56: 8 | BR56: 9 | BT56: 1 | BU56: 2 | BV56: 3 | BW56: 4 | BX56: 5 | BY56: 6 | BZ56: 7 | CA56: 8 | CB56: 9 | CD56: 1 | CE56: 2 | CF56: 3 | CG56: 4 | CH56: 5 | CI56: 6 | CJ56: 7 | CK56: 8 | CL56: 9 | CN56: 1 | CO56: 2 | CP56: 3 | CQ56: 4 | CR56: 5 | CS56: 6 | CT56: 7 | CU56: 8 | CV56: 9
A57: 内 容
A68: 属性
A69: USAGE
A70: byte
